Business Unit Name,Invoice Number,Voucher Number,Invoice Type,Invoice Date,Invoice Amount,Invoice Creation Date,Invoice Created By,Supplier Type,Supplier Name,Supplier Site,Supplier Post Code,Distribution Amount,Invoice Line Number,Invoice Line Type,Invoice Line Description,Tax Code,CC Parent 9,CC Parent 8,CC Parent 7,CC Parent 6,CC Parent 5,CC Parent 4,CC Parent 3,CC Parent 2,CC Parent 1,Cost Centre Code,CC Description,Subjective Code,Subjective Description,Sub One Code,Sub One Description,Sub Two Code,Sub Two Description,Accounting Status,Payment Status,Payment Amount,Payment Date
York and Scarborough Teaching Hospitals NHS Foundation Trust BU,0000113745,6732157,STANDARD,01/02/2023,"694,928.47",17/02/2023,RCBNSHAWJ2,OTHSUPP,Lloyds Pharmacy Ltd,CV2 2TX_02,CV2 2TX,"646,473.86",1,ITEM,,,,,,,TOTAL TRUST,TOTAL TRUST,OPERATING EXPENDITURE,PHARMACY,PHARMACY - YORK,112527,Lloyds Pharmacy,700000,Drugs,2511,Healthcare At Home,1000,Default Value,Accounted,Fully Paid,"694,928.47",03/03/2023
York and Scarborough Teaching Hospitals NHS Foundation Trust BU,0000113745,6732157,STANDARD,01/02/2023,"694,928.47",17/02/2023,RCBNSHAWJ2,OTHSUPP,Lloyds Pharmacy Ltd,CV2 2TX_02,CV2 2TX,"48,454.61",2,ITEM,,,,,,,TOTAL TRUST,TOTAL TRUST,OPERATING EXPENDITURE,PHARMACY,PHARMACY - YORK,112527,Lloyds Pharmacy,721000,Other General Supplies and Services,2511,Healthcare At Home,1000,Default Value,Accounted,Fully Paid,"694,928.47",03/03/2023
York and Scarborough Teaching Hospitals NHS Foundation Trust BU,0000113745,6732157,STANDARD,01/02/2023,"694,928.47",17/02/2023,RCBNSHAWJ2,OTHSUPP,Lloyds Pharmacy Ltd,CV2 2TX_02,CV2 2TX,0.00,3,TAX,NEP VAT REGIME - VAT TAX,ZERO,,,,,TOTAL TRUST,TOTAL TRUST,OPERATING EXPENDITURE,PHARMACY,PHARMACY - YORK,112527,Lloyds Pharmacy,700000,Drugs,2511,Healthcare At Home,1000,Default Value,Accounted,Fully Paid,"694,928.47",03/03/2023
York and Scarborough Teaching Hospitals NHS Foundation Trust BU,0000113745,6732157,STANDARD,01/02/2023,"694,928.47",17/02/2023,RCBNSHAWJ2,OTHSUPP,Lloyds Pharmacy Ltd,CV2 2TX_02,CV2 2TX,0.00,3,TAX,NEP VAT REGIME - VAT TAX,ZERO,,,,,TOTAL TRUST,TOTAL TRUST,BALANCE SHEET,FINANCE - BALANCE SHEET,DEBTORS,119405,Dr Vat Debtor,156000,Vat Debtor < One Year,1000,Default Value,1000,Default Value,Accounted,Fully Paid,"694,928.47",03/03/2023
York and Scarborough Teaching Hospitals NHS Foundation Trust BU,0000113745,6732157,STANDARD,01/02/2023,"694,928.47",17/02/2023,RCBNSHAWJ2,OTHSUPP,Lloyds Pharmacy Ltd,CV2 2TX_02,CV2 2TX,0.00,3,TAX,NEP VAT REGIME - VAT TAX,ZERO,,,,,TOTAL TRUST,TOTAL TRUST,OPERATING EXPENDITURE,PHARMACY,PHARMACY - YORK,112527,Lloyds Pharmacy,721000,Other General Supplies and Services,2511,Healthcare At Home,1000,Default Value,Accounted,Fully Paid,"694,928.47",03/03/2023
York and Scarborough Teaching Hospitals NHS Foundation Trust BU,0000113745,6732157,STANDARD,01/02/2023,"694,928.47",17/02/2023,RCBNSHAWJ2,OTHSUPP,Lloyds Pharmacy Ltd,CV2 2TX_02,CV2 2TX,0.00,3,TAX,NEP VAT REGIME - VAT TAX,ZERO,,,,,TOTAL TRUST,TOTAL TRUST,BALANCE SHEET,FINANCE - BALANCE SHEET,DEBTORS,119405,Dr Vat Debtor,156000,Vat Debtor < One Year,1000,Default Value,1000,Default Value,Accounted,Fully Paid,"694,928.47",03/03/2023
York and Scarborough Teaching Hospitals NHS Foundation Trust BU,0000114377,6741191,STANDARD,01/03/2023,"852,865.68",15/03/2023,RCBNSHAWJ2,OTHSUPP,Lloyds Pharmacy Ltd,CV2 2TX_02,CV2 2TX,"-796,650.24",1,ITEM,,,,,,,TOTAL TRUST,TOTAL TRUST,OPERATING EXPENDITURE,PHARMACY,PHARMACY - YORK,112527,Lloyds Pharmacy,700000,Drugs,2511,Healthcare At Home,1000,Default Value,Accounted,Fully Paid,"852,865.68",31/03/2023
York and Scarborough Teaching Hospitals NHS Foundation Trust BU,0000114377,6741191,STANDARD,01/03/2023,"852,865.68",15/03/2023,RCBNSHAWJ2,OTHSUPP,Lloyds Pharmacy Ltd,CV2 2TX_02,CV2 2TX,"796,650.24",1,ITEM,,,,,,,TOTAL TRUST,TOTAL TRUST,OPERATING EXPENDITURE,PHARMACY,PHARMACY - YORK,112527,Lloyds Pharmacy,700000,Drugs,2511,Healthcare At Home,1000,Default Value,Accounted,Fully Paid,"852,865.68",31/03/2023
York and Scarborough Teaching Hospitals NHS Foundation Trust BU,0000114377,6741191,STANDARD,01/03/2023,"852,865.68",15/03/2023,RCBNSHAWJ2,OTHSUPP,Lloyds Pharmacy Ltd,CV2 2TX_02,CV2 2TX,"48,454.61",2,ITEM,,,,,,,TOTAL TRUST,TOTAL TRUST,OPERATING EXPENDITURE,PHARMACY,PHARMACY - YORK,112527,Lloyds Pharmacy,721000,Other General Supplies and Services,2511,Healthcare At Home,1000,Default Value,Accounted,Fully Paid,"852,865.68",31/03/2023
York and Scarborough Teaching Hospitals NHS Foundation Trust BU,0000114377,6741191,STANDARD,01/03/2023,"852,865.68",15/03/2023,RCBNSHAWJ2,OTHSUPP,Lloyds Pharmacy Ltd,CV2 2TX_02,CV2 2TX,0.00,3,TAX,NEP VAT REGIME - VAT TAX,ZERO,,,,,TOTAL TRUST,TOTAL TRUST,BALANCE SHEET,FINANCE - BALANCE SHEET,DEBTORS,119405,Dr Vat Debtor,156000,Vat Debtor < One Year,1000,Default Value,1000,Default Value,Accounted,Fully Paid,"852,865.68",31/03/2023
York and Scarborough Teaching Hospitals NHS Foundation Trust BU,0000114377,6741191,STANDARD,01/03/2023,"852,865.68",15/03/2023,RCBNSHAWJ2,OTHSUPP,Lloyds Pharmacy Ltd,CV2 2TX_02,CV2 2TX,0.00,3,TAX,NEP VAT REGIME - VAT TAX,ZERO,,,,,TOTAL TRUST,TOTAL TRUST,OPERATING EXPENDITURE,PHARMACY,PHARMACY - YORK,112527,Lloyds Pharmacy,700000,Drugs,2511,Healthcare At Home,1000,Default Value,Accounted,Fully Paid,"852,865.68",31/03/2023
York and Scarborough Teaching Hospitals NHS Foundation Trust BU,0000114377,6741191,STANDARD,01/03/2023,"852,865.68",15/03/2023,RCBNSHAWJ2,OTHSUPP,Lloyds Pharmacy Ltd,CV2 2TX_02,CV2 2TX,0.00,3,TAX,NEP VAT REGIME - VAT TAX,ZERO,,,,,TOTAL TRUST,TOTAL TRUST,BALANCE SHEET,FINANCE - BALANCE SHEET,DEBTORS,119405,Dr Vat Debtor,156000,Vat Debtor < One Year,1000,Default Value,1000,Default Value,Accounted,Fully Paid,"852,865.68",31/03/2023
York and Scarborough Teaching Hospitals NHS Foundation Trust BU,0000114377,6741191,STANDARD,01/03/2023,"852,865.68",15/03/2023,RCBNSHAWJ2,OTHSUPP,Lloyds Pharmacy Ltd,CV2 2TX_02,CV2 2TX,0.00,3,TAX,NEP VAT REGIME - VAT TAX,ZERO,,,,,TOTAL TRUST,TOTAL TRUST,OPERATING EXPENDITURE,PHARMACY,PHARMACY - YORK,112527,Lloyds Pharmacy,700000,Drugs,2511,Healthcare At Home,1000,Default Value,Accounted,Fully Paid,"852,865.68",31/03/2023
York and Scarborough Teaching Hospitals NHS Foundation Trust BU,0000114377,6741191,STANDARD,01/03/2023,"852,865.68",15/03/2023,RCBNSHAWJ2,OTHSUPP,Lloyds Pharmacy Ltd,CV2 2TX_02,CV2 2TX,0.00,3,TAX,NEP VAT REGIME - VAT TAX,ZERO,,,,,TOTAL TRUST,TOTAL TRUST,BALANCE SHEET,FINANCE - BALANCE SHEET,DEBTORS,119405,Dr Vat Debtor,156000,Vat Debtor < One Year,1000,Default Value,1000,Default Value,Accounted,Fully Paid,"852,865.68",31/03/2023
York and Scarborough Teaching Hospitals NHS Foundation Trust BU,0000114377,6741191,STANDARD,01/03/2023,"852,865.68",15/03/2023,RCBNSHAWJ2,OTHSUPP,Lloyds Pharmacy Ltd,CV2 2TX_02,CV2 2TX,0.00,3,TAX,NEP VAT REGIME - VAT TAX,ZERO,,,,,TOTAL TRUST,TOTAL TRUST,OPERATING EXPENDITURE,PHARMACY,PHARMACY - YORK,112527,Lloyds Pharmacy,721000,Other General Supplies and Services,2511,Healthcare At Home,1000,Default Value,Accounted,Fully Paid,"852,865.68",31/03/2023
York and Scarborough Teaching Hospitals NHS Foundation Trust BU,0000114377,6741191,STANDARD,01/03/2023,"852,865.68",15/03/2023,RCBNSHAWJ2,OTHSUPP,Lloyds Pharmacy Ltd,CV2 2TX_02,CV2 2TX,0.00,3,TAX,NEP VAT REGIME - VAT TAX,ZERO,,,,,TOTAL TRUST,TOTAL TRUST,OPERATING EXPENDITURE,PHARMACY,PHARMACY - YORK,112527,Lloyds Pharmacy,700000,Drugs,2511,Healthcare At Home,1000,Default Value,Accounted,Fully Paid,"852,865.68",31/03/2023
York and Scarborough Teaching Hospitals NHS Foundation Trust BU,0000114377,6741191,STANDARD,01/03/2023,"852,865.68",15/03/2023,RCBNSHAWJ2,OTHSUPP,Lloyds Pharmacy Ltd,CV2 2TX_02,CV2 2TX,0.00,3,TAX,NEP VAT REGIME - VAT TAX,ZERO,,,,,TOTAL TRUST,TOTAL TRUST,BALANCE SHEET,FINANCE - BALANCE SHEET,DEBTORS,119405,Dr Vat Debtor,156000,Vat Debtor < One Year,1000,Default Value,1000,Default Value,Accounted,Fully Paid,"852,865.68",31/03/2023
York and Scarborough Teaching Hospitals NHS Foundation Trust BU,0000114377,6741191,STANDARD,01/03/2023,"852,865.68",15/03/2023,RCBNSHAWJ2,OTHSUPP,Lloyds Pharmacy Ltd,CV2 2TX_02,CV2 2TX,"804,411.07",4,ITEM,,,,,,,TOTAL TRUST,TOTAL TRUST,OPERATING EXPENDITURE,PHARMACY,PHARMACY - YORK,112527,Lloyds Pharmacy,700000,Drugs,2511,Healthcare At Home,1000,Default Value,Accounted,Fully Paid,"852,865.68",31/03/2023
York Teaching Hospital Facilities Management LLP BU,013983,6094809,STANDARD,15/03/2023,"321,336.30",16/03/2023,RCBNCOOKM1,OTHSUPP,Mmm Medical Equipment U K Ltd,LEEDS,LS19 7XY,"235,380.25",1,ITEM,QUOTE REF 22-10343 REV B � SGH AUTOCLAVE REPLACEMENT PROJECT - SUPPLY - INSTALL - COMMISSION - 314245 112000FW REF: DECONTAMINATION CAPITAL EQUIPMENT (ENDOSCOPY AND STERILE SERVICES) AND ASSOCIATED ACCESSORIES - 2020/S 115-28060.,,,,,,TOTAL TRUST,TOTAL TRUST,BALANCE SHEET,LLP FINANCE - BALANCE SHEET,LLP WIP,314245,Decontamination Replacement Plan,112000,Work-In-Progress,1000,Default Value,1000,Default Value,Accounted,Fully Paid,"321,336.30",22/03/2023
York Teaching Hospital Facilities Management LLP BU,013983,6094809,STANDARD,15/03/2023,"321,336.30",16/03/2023,RCBNCOOKM1,OTHSUPP,Mmm Medical Equipment U K Ltd,LEEDS,LS19 7XY,"32,400.00",2,ITEM,QUOTE REF: 23-11131 � ENABLING WORKS FOR SGH AUTOCLAVE REPLACEMENT PROJECT,,,,,,TOTAL TRUST,TOTAL TRUST,BALANCE SHEET,LLP FINANCE - BALANCE SHEET,LLP WIP,314245,Decontamination Replacement Plan,112000,Work-In-Progress,1000,Default Value,1000,Default Value,Accounted,Fully Paid,"321,336.30",22/03/2023
York Teaching Hospital Facilities Management LLP BU,013983,6094809,STANDARD,15/03/2023,"321,336.30",16/03/2023,RCBNCOOKM1,OTHSUPP,Mmm Medical Equipment U K Ltd,LEEDS,LS19 7XY,"6,480.00",3,TAX,RCBF400023825,BA STD REC,,,,,TOTAL TRUST,TOTAL TRUST,BALANCE SHEET,LLP FINANCE - BALANCE SHEET,LLP WIP,314245,Decontamination Replacement Plan,112000,Work-In-Progress,1000,Default Value,1000,Default Value,Accounted,Fully Paid,"321,336.30",22/03/2023
York Teaching Hospital Facilities Management LLP BU,013983,6094809,STANDARD,15/03/2023,"321,336.30",16/03/2023,RCBNCOOKM1,OTHSUPP,Mmm Medical Equipment U K Ltd,LEEDS,LS19 7XY,"47,076.05",3,TAX,RCBF400023825,BA STD REC,,,,,TOTAL TRUST,TOTAL TRUST,BALANCE SHEET,LLP FINANCE - BALANCE SHEET,LLP DEBTORS,219405,LLP Dr Vat Debtor,156000,Vat Debtor < One Year,1000,Default Value,1000,Default Value,Accounted,Fully Paid,"321,336.30",22/03/2023
York Teaching Hospital Facilities Management LLP BU,013983,6094809,STANDARD,15/03/2023,"321,336.30",16/03/2023,RCBNCOOKM1,OTHSUPP,Mmm Medical Equipment U K Ltd,LEEDS,LS19 7XY,"47,076.05",3,TAX,RCBF400023825,BA STD REC,,,,,TOTAL TRUST,TOTAL TRUST,BALANCE SHEET,LLP FINANCE - BALANCE SHEET,LLP WIP,314245,Decontamination Replacement Plan,112000,Work-In-Progress,1000,Default Value,1000,Default Value,Accounted,Fully Paid,"321,336.30",22/03/2023
York Teaching Hospital Facilities Management LLP BU,013983,6094809,STANDARD,15/03/2023,"321,336.30",16/03/2023,RCBNCOOKM1,OTHSUPP,Mmm Medical Equipment U K Ltd,LEEDS,LS19 7XY,"6,480.00",3,TAX,RCBF400023825,BA STD REC,,,,,TOTAL TRUST,TOTAL TRUST,BALANCE SHEET,LLP FINANCE - BALANCE SHEET,LLP DEBTORS,219405,LLP Dr Vat Debtor,156000,Vat Debtor < One Year,1000,Default Value,1000,Default Value,Accounted,Fully Paid,"321,336.30",22/03/2023
York Teaching Hospital Facilities Management LLP BU,013983,6094809,STANDARD,15/03/2023,"321,336.30",16/03/2023,RCBNCOOKM1,OTHSUPP,Mmm Medical Equipment U K Ltd,LEEDS,LS19 7XY,"-47,076.05",3,TAX,RCBF400023825,BA STD REC,,,,,TOTAL TRUST,TOTAL TRUST,BALANCE SHEET,LLP FINANCE - BALANCE SHEET,LLP WIP,314245,Decontamination Replacement Plan,112000,Work-In-Progress,1000,Default Value,1000,Default Value,Accounted,Fully Paid,"321,336.30",22/03/2023
York Teaching Hospital Facilities Management LLP BU,013983,6094809,STANDARD,15/03/2023,"321,336.30",16/03/2023,RCBNCOOKM1,OTHSUPP,Mmm Medical Equipment U K Ltd,LEEDS,LS19 7XY,"-6,480.00",3,TAX,RCBF400023825,BA STD REC,,,,,TOTAL TRUST,TOTAL TRUST,BALANCE SHEET,LLP FINANCE - BALANCE SHEET,LLP WIP,314245,Decontamination Replacement Plan,112000,Work-In-Progress,1000,Default Value,1000,Default Value,Accounted,Fully Paid,"321,336.30",22/03/2023
York Teaching Hospital Facilities Management LLP BU,018100,6094252,STANDARD,08/03/2023,"107,241.17",08/03/2023,RCBNCOOKM1,OTHSUPP,John Wright Electrical And Mechanical Services Ltd,YO19 5PD,YO19 5PD,"89,367.64",1,ITEM,QUOTE REF: KEL2190 - UPGRADE OF EXISTING UPS WITHIN MAIN DATA CENTRE - 314403 112000 � PAUL JOHNSON � GLEN WEIR,,,,,,TOTAL TRUST,TOTAL TRUST,BALANCE SHEET,LLP FINANCE - BALANCE SHEET,LLP WIP,314403,Data Centre -UPS & Power ,112000,Work-In-Progress,1000,Default Value,1000,Default Value,Accounted,Fully Paid,"107,241.17",22/03/2023
York Teaching Hospital Facilities Management LLP BU,018100,6094252,STANDARD,08/03/2023,"107,241.17",08/03/2023,RCBNCOOKM1,OTHSUPP,John Wright Electrical And Mechanical Services Ltd,YO19 5PD,YO19 5PD,"-17,873.53",2,TAX,RCBF400022030 CAPITAL,BA STD REC,,,,,TOTAL TRUST,TOTAL TRUST,BALANCE SHEET,LLP FINANCE - BALANCE SHEET,LLP WIP,314403,Data Centre -UPS & Power ,112000,Work-In-Progress,1000,Default Value,1000,Default Value,Accounted,Fully Paid,"107,241.17",22/03/2023
York Teaching Hospital Facilities Management LLP BU,018100,6094252,STANDARD,08/03/2023,"107,241.17",08/03/2023,RCBNCOOKM1,OTHSUPP,John Wright Electrical And Mechanical Services Ltd,YO19 5PD,YO19 5PD,"17,873.53",2,TAX,RCBF400022030 CAPITAL,BA STD REC,,,,,TOTAL TRUST,TOTAL TRUST,BALANCE SHEET,LLP FINANCE - BALANCE SHEET,LLP WIP,314403,Data Centre -UPS & Power ,112000,Work-In-Progress,1000,Default Value,1000,Default Value,Accounted,Fully Paid,"107,241.17",22/03/2023
York Teaching Hospital Facilities Management LLP BU,018100,6094252,STANDARD,08/03/2023,"107,241.17",08/03/2023,RCBNCOOKM1,OTHSUPP,John Wright Electrical And Mechanical Services Ltd,YO19 5PD,YO19 5PD,"17,873.53",2,TAX,RCBF400022030 CAPITAL,BA STD REC,,,,,TOTAL TRUST,TOTAL TRUST,BALANCE SHEET,LLP FINANCE - BALANCE SHEET,LLP DEBTORS,219405,LLP Dr Vat Debtor,156000,Vat Debtor < One Year,1000,Default Value,1000,Default Value,Accounted,Fully Paid,"107,241.17",22/03/2023
York and Scarborough Teaching Hospitals NHS Foundation Trust BU,1000076230,6734721,STANDARD,17/02/2023,"57,593.67",27/02/2023,RCBNSHAWJ2,OTHER WGA,NHS Business Services Authority,NEWCASTLE,NE99 1UQ,0.00,3,TAX,NEP VAT REGIME - VAT TAX,ZERO,,,,,TOTAL TRUST,TOTAL TRUST,BALANCE SHEET,FINANCE - BALANCE SHEET,DEBTORS,119405,Dr Vat Debtor,156000,Vat Debtor < One Year,1000,Default Value,1000,Default Value,Accounted,Fully Paid,"57,593.67",24/03/2023
York and Scarborough Teaching Hospitals NHS Foundation Trust BU,1000076230,6734721,STANDARD,17/02/2023,"57,593.67",27/02/2023,RCBNSHAWJ2,OTHER WGA,NHS Business Services Authority,NEWCASTLE,NE99 1UQ,0.00,3,TAX,NEP VAT REGIME - VAT TAX,ZERO,,,,,TOTAL TRUST,TOTAL TRUST,OPERATING EXPENDITURE,PHARMACY,PHARMACY - YORK,112525,Pharmacy-York,700300,FP10'S,1999,Other Nhs Organisations,1000,Default Value,Accounted,Fully Paid,"57,593.67",24/03/2023
York and Scarborough Teaching Hospitals NHS Foundation Trust BU,1000076230,6734721,STANDARD,17/02/2023,"57,593.67",27/02/2023,RCBNSHAWJ2,OTHER WGA,NHS Business Services Authority,NEWCASTLE,NE99 1UQ,0.00,3,TAX,NEP VAT REGIME - VAT TAX,ZERO,,,,,TOTAL TRUST,TOTAL TRUST,BALANCE SHEET,FINANCE - BALANCE SHEET,DEBTORS,119405,Dr Vat Debtor,156000,Vat Debtor < One Year,1000,Default Value,1000,Default Value,Accounted,Fully Paid,"57,593.67",24/03/2023
York and Scarborough Teaching Hospitals NHS Foundation Trust BU,1000076230,6734721,STANDARD,17/02/2023,"57,593.67",27/02/2023,RCBNSHAWJ2,OTHER WGA,NHS Business Services Authority,NEWCASTLE,NE99 1UQ,0.00,3,TAX,NEP VAT REGIME - VAT TAX,ZERO,,,,,TOTAL TRUST,TOTAL TRUST,OPERATING EXPENDITURE,COMMUNITY,COMMUNITY MANAGEMENT,113817,Non Medical Prescribers,700300,FP10'S,1999,Other Nhs Organisations,1000,Default Value,Accounted,Fully Paid,"57,593.67",24/03/2023
York and Scarborough Teaching Hospitals NHS Foundation Trust BU,1000076230,6734721,STANDARD,17/02/2023,"57,593.67",27/02/2023,RCBNSHAWJ2,OTHER WGA,NHS Business Services Authority,NEWCASTLE,NE99 1UQ,"52,569.20",4,ITEM,,,,,,,TOTAL TRUST,TOTAL TRUST,OPERATING EXPENDITURE,PHARMACY,PHARMACY - YORK,112525,Pharmacy-York,700300,FP10'S,1999,Other Nhs Organisations,1000,Default Value,Accounted,Fully Paid,"57,593.67",24/03/2023
York and Scarborough Teaching Hospitals NHS Foundation Trust BU,1000076230,6734721,STANDARD,17/02/2023,"57,593.67",27/02/2023,RCBNSHAWJ2,OTHER WGA,NHS Business Services Authority,NEWCASTLE,NE99 1UQ,"5,024.47",5,ITEM,,,,,,,TOTAL TRUST,TOTAL TRUST,OPERATING EXPENDITURE,COMMUNITY,COMMUNITY MANAGEMENT,113817,Non Medical Prescribers,700300,FP10'S,1999,Other Nhs Organisations,1000,Default Value,Accounted,Fully Paid,"57,593.67",24/03/2023
York Teaching Hospital Facilities Management LLP BU,1010087923,6092362,STANDARD,03/02/2023,"1,872,289.20",05/02/2023,RCBNFAIRBURNC1,FOUND,York and Scarborough Teaching Hospitals NHS Foundation Trust,YO30 4RY,YO30 4RY,"1,560,241.00",1,ITEM,2022/23 - Reverse SLA charges - Property Lease rental from the York & Scarborough Teaching Hospital Foundation Trust to the LLP (CN: MSA),,,,,,TOTAL TRUST,TOTAL TRUST,OPERATING EXPENDITURE,LLP ESTATES & FACILITIES_OLD,LLP ESTATES AND FACILITIES MANAGEMENT,212920,LLP Facilities Management Team,733200,Lease Rents,1000,Default Value,1000,Default Value,Accounted,Fully Paid,"1,872,289.20",24/03/2023
York Teaching Hospital Facilities Management LLP BU,1010087923,6092362,STANDARD,03/02/2023,"1,872,289.20",05/02/2023,RCBNFAIRBURNC1,FOUND,York and Scarborough Teaching Hospitals NHS Foundation Trust,YO30 4RY,YO30 4RY,0.00,2,TAX,NEP VAT REGIME - VAT TAX,BA STD REC,,,,,TOTAL TRUST,TOTAL TRUST,OPERATING EXPENDITURE,LLP ESTATES & FACILITIES_OLD,LLP ESTATES AND FACILITIES MANAGEMENT,212920,LLP Facilities Management Team,733200,Lease Rents,1000,Default Value,1000,Default Value,Accounted,Fully Paid,"1,872,289.20",24/03/2023
York Teaching Hospital Facilities Management LLP BU,1010087923,6092362,STANDARD,03/02/2023,"1,872,289.20",05/02/2023,RCBNFAIRBURNC1,FOUND,York and Scarborough Teaching Hospitals NHS Foundation Trust,YO30 4RY,YO30 4RY,"312,048.20",2,TAX,NEP VAT REGIME - VAT TAX,BA STD REC,,,,,TOTAL TRUST,TOTAL TRUST,BALANCE SHEET,LLP FINANCE - BALANCE SHEET,LLP DEBTORS,219405,LLP Dr Vat Debtor,156000,Vat Debtor < One Year,1000,Default Value,1000,Default Value,Accounted,Fully Paid,"1,872,289.20",24/03/2023
York Teaching Hospital Facilities Management LLP BU,1010087924,6092360,STANDARD,03/02/2023,"50,000.40",05/02/2023,RCBNFAIRBURNC1,FOUND,York and Scarborough Teaching Hospitals NHS Foundation Trust,YO30 4RY,YO30 4RY,"41,667.00",1,ITEM,2022/23 - Reverse SLA Charges - Support Services from York and Scarborough Teaching Hospital Foundation Trust for the LLP (CN: MSA),,,,,,TOTAL TRUST,TOTAL TRUST,OPERATING EXPENDITURE,LLP ESTATES & FACILITIES_OLD,LLP ESTATES AND FACILITIES MANAGEMENT,212920,LLP Facilities Management Team,734700,Contract : Other External,1000,Default Value,1000,Default Value,Accounted,Fully Paid,"50,000.40",24/03/2023
York Teaching Hospital Facilities Management LLP BU,1010087924,6092360,STANDARD,03/02/2023,"50,000.40",05/02/2023,RCBNFAIRBURNC1,FOUND,York and Scarborough Teaching Hospitals NHS Foundation Trust,YO30 4RY,YO30 4RY,0.00,2,TAX,NEP VAT REGIME - VAT TAX,BA STD REC,,,,,TOTAL TRUST,TOTAL TRUST,OPERATING EXPENDITURE,LLP ESTATES & FACILITIES_OLD,LLP ESTATES AND FACILITIES MANAGEMENT,212920,LLP Facilities Management Team,734700,Contract : Other External,1000,Default Value,1000,Default Value,Accounted,Fully Paid,"50,000.40",24/03/2023
York Teaching Hospital Facilities Management LLP BU,1010087924,6092360,STANDARD,03/02/2023,"50,000.40",05/02/2023,RCBNFAIRBURNC1,FOUND,York and Scarborough Teaching Hospitals NHS Foundation Trust,YO30 4RY,YO30 4RY,"8,333.40",2,TAX,NEP VAT REGIME - VAT TAX,BA STD REC,,,,,TOTAL TRUST,TOTAL TRUST,BALANCE SHEET,LLP FINANCE - BALANCE SHEET,LLP DEBTORS,219405,LLP Dr Vat Debtor,156000,Vat Debtor < One Year,1000,Default Value,1000,Default Value,Accounted,Fully Paid,"50,000.40",24/03/2023
York and Scarborough Teaching Hospitals NHS Foundation Trust BU,102192389,6728568,STANDARD,25/01/2023,"33,126.74",02/02/2023,RCBNFAIRBURNC1,OTHSUPP,Ricoh Uk Ltd,NORTHAMPTON,NN4 4FG,"27,605.62",1,ITEM,Hardware and Software Rental 01-DEC-22 to 30-NOV-23,,,,,,TOTAL TRUST,TOTAL TRUST,OPERATING EXPENDITURE,SYSTEMS & NETWORK SERVICES,SNS,154732,Photocopying,734000,Contract : Photocopying Rental And Charges,1000,Default Value,1000,Default Value,Accounted,Fully Paid,"33,126.74",08/03/2023
York and Scarborough Teaching Hospitals NHS Foundation Trust BU,102192389,6728568,STANDARD,25/01/2023,"33,126.74",02/02/2023,RCBNFAIRBURNC1,OTHSUPP,Ricoh Uk Ltd,NORTHAMPTON,NN4 4FG,"5,521.12",2,TAX,NEP VAT REGIME - VAT TAX,25 COS,,,,,TOTAL TRUST,TOTAL TRUST,BALANCE SHEET,FINANCE - BALANCE SHEET,DEBTORS,119405,Dr Vat Debtor,156000,Vat Debtor < One Year,1000,Default Value,1000,Default Value,Accounted,Fully Paid,"33,126.74",08/03/2023
York and Scarborough Teaching Hospitals NHS Foundation Trust BU,102192389,6728568,STANDARD,25/01/2023,"33,126.74",02/02/2023,RCBNFAIRBURNC1,OTHSUPP,Ricoh Uk Ltd,NORTHAMPTON,NN4 4FG,0.00,2,TAX,NEP VAT REGIME - VAT TAX,25 COS,,,,,TOTAL TRUST,TOTAL TRUST,OPERATING EXPENDITURE,SYSTEMS & NETWORK SERVICES,SNS,154732,Photocopying,734000,Contract : Photocopying Rental And Charges,1000,Default Value,1000,Default Value,Accounted,Fully Paid,"33,126.74",08/03/2023
York and Scarborough Teaching Hospitals NHS Foundation Trust BU,102192390,6733942,STANDARD,25/01/2023,"38,418.76",02/02/2023,RCBNFAIRBURNC1,OTHSUPP,Ricoh Uk Ltd,NORTHAMPTON,NN4 4FG,"14,729.56",1,ITEM,Mono Click Charges 01-DEC-21 to 30-NOV-22,,,,,,TOTAL TRUST,TOTAL TRUST,OPERATING EXPENDITURE,SYSTEMS & NETWORK SERVICES,SNS,154732,Photocopying,734000,Contract : Photocopying Rental And Charges,1000,Default Value,1000,Default Value,Accounted,Fully Paid,"38,418.76",10/03/2023
York and Scarborough Teaching Hospitals NHS Foundation Trust BU,102192390,6733942,STANDARD,25/01/2023,"38,418.76",02/02/2023,RCBNFAIRBURNC1,OTHSUPP,Ricoh Uk Ltd,NORTHAMPTON,NN4 4FG,"-14,729.56",1,ITEM,Mono Click Charges 01-DEC-21 to 30-NOV-22,,,,,,TOTAL TRUST,TOTAL TRUST,OPERATING EXPENDITURE,SYSTEMS & NETWORK SERVICES,SNS,154732,Photocopying,734000,Contract : Photocopying Rental And Charges,1000,Default Value,1000,Default Value,Accounted,Fully Paid,"38,418.76",10/03/2023
York and Scarborough Teaching Hospitals NHS Foundation Trust BU,102192390,6733942,STANDARD,25/01/2023,"38,418.76",02/02/2023,RCBNFAIRBURNC1,OTHSUPP,Ricoh Uk Ltd,NORTHAMPTON,NN4 4FG,"2,945.91",2,TAX,NEP VAT REGIME - VAT TAX,25 COS,,,,,TOTAL TRUST,TOTAL TRUST,BALANCE SHEET,FINANCE - BALANCE SHEET,DEBTORS,119405,Dr Vat Debtor,156000,Vat Debtor < One Year,1000,Default Value,1000,Default Value,Accounted,Fully Paid,"38,418.76",10/03/2023
York and Scarborough Teaching Hospitals NHS Foundation Trust BU,102192390,6733942,STANDARD,25/01/2023,"38,418.76",02/02/2023,RCBNFAIRBURNC1,OTHSUPP,Ricoh Uk Ltd,NORTHAMPTON,NN4 4FG,"2,945.91",2,TAX,NEP VAT REGIME - VAT TAX,25 COS,,,,,TOTAL TRUST,TOTAL TRUST,OPERATING EXPENDITURE,SYSTEMS & NETWORK SERVICES,SNS,154732,Photocopying,734000,Contract : Photocopying Rental And Charges,1000,Default Value,1000,Default Value,Accounted,Fully Paid,"38,418.76",10/03/2023
York and Scarborough Teaching Hospitals NHS Foundation Trust BU,102192390,6733942,STANDARD,25/01/2023,"38,418.76",02/02/2023,RCBNFAIRBURNC1,OTHSUPP,Ricoh Uk Ltd,NORTHAMPTON,NN4 4FG,"-2,945.91",2,TAX,NEP VAT REGIME - VAT TAX,25 COS,,,,,TOTAL TRUST,TOTAL TRUST,OPERATING EXPENDITURE,SYSTEMS & NETWORK SERVICES,SNS,154732,Photocopying,734000,Contract : Photocopying Rental And Charges,1000,Default Value,1000,Default Value,Accounted,Fully Paid,"38,418.76",10/03/2023
York and Scarborough Teaching Hospitals NHS Foundation Trust BU,102192390,6733942,STANDARD,25/01/2023,"38,418.76",02/02/2023,RCBNFAIRBURNC1,OTHSUPP,Ricoh Uk Ltd,NORTHAMPTON,NN4 4FG,"-3,457.22",2,TAX,NEP VAT REGIME - VAT TAX,25 COS,,,,,TOTAL TRUST,TOTAL TRUST,BALANCE SHEET,FINANCE - BALANCE SHEET,DEBTORS,119405,Dr Vat Debtor,156000,Vat Debtor < One Year,1000,Default Value,1000,Default Value,Accounted,Fully Paid,"38,418.76",10/03/2023
York and Scarborough Teaching Hospitals NHS Foundation Trust BU,102192390,6733942,STANDARD,25/01/2023,"38,418.76",02/02/2023,RCBNFAIRBURNC1,OTHSUPP,Ricoh Uk Ltd,NORTHAMPTON,NN4 4FG,0.00,2,TAX,NEP VAT REGIME - VAT TAX,25 COS,,,,,TOTAL TRUST,TOTAL TRUST,OPERATING EXPENDITURE,SYSTEMS & NETWORK SERVICES,SNS,154732,Photocopying,734000,Contract : Photocopying Rental And Charges,1000,Default Value,1000,Default Value,Accounted,Fully Paid,"38,418.76",10/03/2023
York and Scarborough Teaching Hospitals NHS Foundation Trust BU,102192390,6733942,STANDARD,25/01/2023,"38,418.76",02/02/2023,RCBNFAIRBURNC1,OTHSUPP,Ricoh Uk Ltd,NORTHAMPTON,NN4 4FG,"-2,945.91",2,TAX,NEP VAT REGIME - VAT TAX,25 COS,,,,,TOTAL TRUST,TOTAL TRUST,BALANCE SHEET,FINANCE - BALANCE SHEET,DEBTORS,119405,Dr Vat Debtor,156000,Vat Debtor < One Year,1000,Default Value,1000,Default Value,Accounted,Fully Paid,"38,418.76",10/03/2023
York and Scarborough Teaching Hospitals NHS Foundation Trust BU,102192390,6733942,STANDARD,25/01/2023,"38,418.76",02/02/2023,RCBNFAIRBURNC1,OTHSUPP,Ricoh Uk Ltd,NORTHAMPTON,NN4 4FG,"-2,945.91",2,TAX,NEP VAT REGIME - VAT TAX,25 COS,,,,,TOTAL TRUST,TOTAL TRUST,OPERATING EXPENDITURE,SYSTEMS & NETWORK SERVICES,SNS,154732,Photocopying,734000,Contract : Photocopying Rental And Charges,1000,Default Value,1000,Default Value,Accounted,Fully Paid,"38,418.76",10/03/2023
York and Scarborough Teaching Hospitals NHS Foundation Trust BU,102192390,6733942,STANDARD,25/01/2023,"38,418.76",02/02/2023,RCBNFAIRBURNC1,OTHSUPP,Ricoh Uk Ltd,NORTHAMPTON,NN4 4FG,"2,945.91",2,TAX,NEP VAT REGIME - VAT TAX,25 COS,,,,,TOTAL TRUST,TOTAL TRUST,OPERATING EXPENDITURE,SYSTEMS & NETWORK SERVICES,SNS,154732,Photocopying,734000,Contract : Photocopying Rental And Charges,1000,Default Value,1000,Default Value,Accounted,Fully Paid,"38,418.76",10/03/2023
York and Scarborough Teaching Hospitals NHS Foundation Trust BU,102192390,6733942,STANDARD,25/01/2023,"38,418.76",02/02/2023,RCBNFAIRBURNC1,OTHSUPP,Ricoh Uk Ltd,NORTHAMPTON,NN4 4FG,"-2,945.91",2,TAX,NEP VAT REGIME - VAT TAX,25 COS,,,,,TOTAL TRUST,TOTAL TRUST,BALANCE SHEET,FINANCE - BALANCE SHEET,DEBTORS,119405,Dr Vat Debtor,156000,Vat Debtor < One Year,1000,Default Value,1000,Default Value,Accounted,Fully Paid,"38,418.76",10/03/2023
York and Scarborough Teaching Hospitals NHS Foundation Trust BU,102192390,6733942,STANDARD,25/01/2023,"38,418.76",02/02/2023,RCBNFAIRBURNC1,OTHSUPP,Ricoh Uk Ltd,NORTHAMPTON,NN4 4FG,"2,945.92",2,TAX,NEP VAT REGIME - VAT TAX,25 COS,,,,,TOTAL TRUST,TOTAL TRUST,BALANCE SHEET,FINANCE - BALANCE SHEET,DEBTORS,119405,Dr Vat Debtor,156000,Vat Debtor < One Year,1000,Default Value,1000,Default Value,Accounted,Fully Paid,"38,418.76",10/03/2023
York and Scarborough Teaching Hospitals NHS Foundation Trust BU,102192390,6733942,STANDARD,25/01/2023,"38,418.76",02/02/2023,RCBNFAIRBURNC1,OTHSUPP,Ricoh Uk Ltd,NORTHAMPTON,NN4 4FG,"1,857.21",2,TAX,NEP VAT REGIME - VAT TAX,25 COS,,,,,TOTAL TRUST,TOTAL TRUST,BALANCE SHEET,FINANCE - BALANCE SHEET,DEBTORS,119405,Dr Vat Debtor,156000,Vat Debtor < One Year,1000,Default Value,1000,Default Value,Accounted,Fully Paid,"38,418.76",10/03/2023
York and Scarborough Teaching Hospitals NHS Foundation Trust BU,102192390,6733942,STANDARD,25/01/2023,"38,418.76",02/02/2023,RCBNFAIRBURNC1,OTHSUPP,Ricoh Uk Ltd,NORTHAMPTON,NN4 4FG,"1,857.21",2,TAX,NEP VAT REGIME - VAT TAX,25 COS,,,,,TOTAL TRUST,TOTAL TRUST,OPERATING EXPENDITURE,SYSTEMS & NETWORK SERVICES,SNS,154732,Photocopying,734000,Contract : Photocopying Rental And Charges,1000,Default Value,1000,Default Value,Accounted,Fully Paid,"38,418.76",10/03/2023
York and Scarborough Teaching Hospitals NHS Foundation Trust BU,102192390,6733942,STANDARD,25/01/2023,"38,418.76",02/02/2023,RCBNFAIRBURNC1,OTHSUPP,Ricoh Uk Ltd,NORTHAMPTON,NN4 4FG,"-1,857.21",2,TAX,NEP VAT REGIME - VAT TAX,25 COS,,,,,TOTAL TRUST,TOTAL TRUST,OPERATING EXPENDITURE,SYSTEMS & NETWORK SERVICES,SNS,154732,Photocopying,734000,Contract : Photocopying Rental And Charges,1000,Default Value,1000,Default Value,Accounted,Fully Paid,"38,418.76",10/03/2023
York and Scarborough Teaching Hospitals NHS Foundation Trust BU,102192390,6733942,STANDARD,25/01/2023,"38,418.76",02/02/2023,RCBNFAIRBURNC1,OTHSUPP,Ricoh Uk Ltd,NORTHAMPTON,NN4 4FG,"2,945.91",2,TAX,NEP VAT REGIME - VAT TAX,25 COS,,,,,TOTAL TRUST,TOTAL TRUST,BALANCE SHEET,FINANCE - BALANCE SHEET,DEBTORS,119405,Dr Vat Debtor,156000,Vat Debtor < One Year,1000,Default Value,1000,Default Value,Accounted,Fully Paid,"38,418.76",10/03/2023
York and Scarborough Teaching Hospitals NHS Foundation Trust BU,102192390,6733942,STANDARD,25/01/2023,"38,418.76",02/02/2023,RCBNFAIRBURNC1,OTHSUPP,Ricoh Uk Ltd,NORTHAMPTON,NN4 4FG,"2,945.91",2,TAX,NEP VAT REGIME - VAT TAX,25 COS,,,,,TOTAL TRUST,TOTAL TRUST,OPERATING EXPENDITURE,SYSTEMS & NETWORK SERVICES,SNS,154732,Photocopying,734000,Contract : Photocopying Rental And Charges,1000,Default Value,1000,Default Value,Accounted,Fully Paid,"38,418.76",10/03/2023
York and Scarborough Teaching Hospitals NHS Foundation Trust BU,102192390,6733942,STANDARD,25/01/2023,"38,418.76",02/02/2023,RCBNFAIRBURNC1,OTHSUPP,Ricoh Uk Ltd,NORTHAMPTON,NN4 4FG,"1,600.00",2,TAX,NEP VAT REGIME - VAT TAX,25 COS,,,,,TOTAL TRUST,TOTAL TRUST,BALANCE SHEET,FINANCE - BALANCE SHEET,DEBTORS,119405,Dr Vat Debtor,156000,Vat Debtor < One Year,1000,Default Value,1000,Default Value,Accounted,Fully Paid,"38,418.76",10/03/2023
York and Scarborough Teaching Hospitals NHS Foundation Trust BU,102192390,6733942,STANDARD,25/01/2023,"38,418.76",02/02/2023,RCBNFAIRBURNC1,OTHSUPP,Ricoh Uk Ltd,NORTHAMPTON,NN4 4FG,0.00,2,TAX,NEP VAT REGIME - VAT TAX,25 COS,,,,,TOTAL TRUST,TOTAL TRUST,OPERATING EXPENDITURE,SYSTEMS & NETWORK SERVICES,SNS,154732,Photocopying,734000,Contract : Photocopying Rental And Charges,1000,Default Value,1000,Default Value,Accounted,Fully Paid,"38,418.76",10/03/2023
York and Scarborough Teaching Hospitals NHS Foundation Trust BU,102192390,6733942,STANDARD,25/01/2023,"38,418.76",02/02/2023,RCBNFAIRBURNC1,OTHSUPP,Ricoh Uk Ltd,NORTHAMPTON,NN4 4FG,"-2,945.91",2,TAX,NEP VAT REGIME - VAT TAX,25 COS,,,,,TOTAL TRUST,TOTAL TRUST,OPERATING EXPENDITURE,SYSTEMS & NETWORK SERVICES,SNS,154732,Photocopying,734000,Contract : Photocopying Rental And Charges,1000,Default Value,1000,Default Value,Accounted,Fully Paid,"38,418.76",10/03/2023
York and Scarborough Teaching Hospitals NHS Foundation Trust BU,102192390,6733942,STANDARD,25/01/2023,"38,418.76",02/02/2023,RCBNFAIRBURNC1,OTHSUPP,Ricoh Uk Ltd,NORTHAMPTON,NN4 4FG,"-2,945.91",2,TAX,NEP VAT REGIME - VAT TAX,25 COS,,,,,TOTAL TRUST,TOTAL TRUST,BALANCE SHEET,FINANCE - BALANCE SHEET,DEBTORS,119405,Dr Vat Debtor,156000,Vat Debtor < One Year,1000,Default Value,1000,Default Value,Accounted,Fully Paid,"38,418.76",10/03/2023
York and Scarborough Teaching Hospitals NHS Foundation Trust BU,102192390,6733942,STANDARD,25/01/2023,"38,418.76",02/02/2023,RCBNFAIRBURNC1,OTHSUPP,Ricoh Uk Ltd,NORTHAMPTON,NN4 4FG,"-2,945.91",2,TAX,NEP VAT REGIME - VAT TAX,25 COS,,,,,TOTAL TRUST,TOTAL TRUST,OPERATING EXPENDITURE,SYSTEMS & NETWORK SERVICES,SNS,154732,Photocopying,734000,Contract : Photocopying Rental And Charges,1000,Default Value,1000,Default Value,Accounted,Fully Paid,"38,418.76",10/03/2023
York and Scarborough Teaching Hospitals NHS Foundation Trust BU,102192390,6733942,STANDARD,25/01/2023,"38,418.76",02/02/2023,RCBNFAIRBURNC1,OTHSUPP,Ricoh Uk Ltd,NORTHAMPTON,NN4 4FG,"2,945.91",2,TAX,NEP VAT REGIME - VAT TAX,25 COS,,,,,TOTAL TRUST,TOTAL TRUST,OPERATING EXPENDITURE,SYSTEMS & NETWORK SERVICES,SNS,154732,Photocopying,734000,Contract : Photocopying Rental And Charges,1000,Default Value,1000,Default Value,Accounted,Fully Paid,"38,418.76",10/03/2023
York and Scarborough Teaching Hospitals NHS Foundation Trust BU,102192390,6733942,STANDARD,25/01/2023,"38,418.76",02/02/2023,RCBNFAIRBURNC1,OTHSUPP,Ricoh Uk Ltd,NORTHAMPTON,NN4 4FG,"2,945.91",2,TAX,NEP VAT REGIME - VAT TAX,25 COS,,,,,TOTAL TRUST,TOTAL TRUST,BALANCE SHEET,FINANCE - BALANCE SHEET,DEBTORS,119405,Dr Vat Debtor,156000,Vat Debtor < One Year,1000,Default Value,1000,Default Value,Accounted,Fully Paid,"38,418.76",10/03/2023
York and Scarborough Teaching Hospitals NHS Foundation Trust BU,102192390,6733942,STANDARD,25/01/2023,"38,418.76",02/02/2023,RCBNFAIRBURNC1,OTHSUPP,Ricoh Uk Ltd,NORTHAMPTON,NN4 4FG,"2,945.91",2,TAX,NEP VAT REGIME - VAT TAX,25 COS,,,,,TOTAL TRUST,TOTAL TRUST,OPERATING EXPENDITURE,SYSTEMS & NETWORK SERVICES,SNS,154732,Photocopying,734000,Contract : Photocopying Rental And Charges,1000,Default Value,1000,Default Value,Accounted,Fully Paid,"38,418.76",10/03/2023
York and Scarborough Teaching Hospitals NHS Foundation Trust BU,102192390,6733942,STANDARD,25/01/2023,"38,418.76",02/02/2023,RCBNFAIRBURNC1,OTHSUPP,Ricoh Uk Ltd,NORTHAMPTON,NN4 4FG,"3,457.22",2,TAX,NEP VAT REGIME - VAT TAX,25 COS,,,,,TOTAL TRUST,TOTAL TRUST,BALANCE SHEET,FINANCE - BALANCE SHEET,DEBTORS,119405,Dr Vat Debtor,156000,Vat Debtor < One Year,1000,Default Value,1000,Default Value,Accounted,Fully Paid,"38,418.76",10/03/2023
York and Scarborough Teaching Hospitals NHS Foundation Trust BU,102192390,6733942,STANDARD,25/01/2023,"38,418.76",02/02/2023,RCBNFAIRBURNC1,OTHSUPP,Ricoh Uk Ltd,NORTHAMPTON,NN4 4FG,0.00,2,TAX,NEP VAT REGIME - VAT TAX,25 COS,,,,,TOTAL TRUST,TOTAL TRUST,OPERATING EXPENDITURE,SYSTEMS & NETWORK SERVICES,SNS,154732,Photocopying,734000,Contract : Photocopying Rental And Charges,1000,Default Value,1000,Default Value,Accounted,Fully Paid,"38,418.76",10/03/2023
York and Scarborough Teaching Hospitals NHS Foundation Trust BU,102192390,6733942,STANDARD,25/01/2023,"38,418.76",02/02/2023,RCBNFAIRBURNC1,OTHSUPP,Ricoh Uk Ltd,NORTHAMPTON,NN4 4FG,"-2,945.91",2,TAX,NEP VAT REGIME - VAT TAX,25 COS,,,,,TOTAL TRUST,TOTAL TRUST,OPERATING EXPENDITURE,SYSTEMS & NETWORK SERVICES,SNS,154732,Photocopying,734000,Contract : Photocopying Rental And Charges,1000,Default Value,1000,Default Value,Accounted,Fully Paid,"38,418.76",10/03/2023
York and Scarborough Teaching Hospitals NHS Foundation Trust BU,102192390,6733942,STANDARD,25/01/2023,"38,418.76",02/02/2023,RCBNFAIRBURNC1,OTHSUPP,Ricoh Uk Ltd,NORTHAMPTON,NN4 4FG,"-14,729.56",3,ITEM,Mono Click Charges 01-DEC-22 to 30-NOV-23,,,,,,TOTAL TRUST,TOTAL TRUST,OPERATING EXPENDITURE,SYSTEMS & NETWORK SERVICES,SNS,154732,Photocopying,734000,Contract : Photocopying Rental And Charges,1000,Default Value,1000,Default Value,Accounted,Fully Paid,"38,418.76",10/03/2023
York and Scarborough Teaching Hospitals NHS Foundation Trust BU,102192390,6733942,STANDARD,25/01/2023,"38,418.76",02/02/2023,RCBNFAIRBURNC1,OTHSUPP,Ricoh Uk Ltd,NORTHAMPTON,NN4 4FG,"14,729.56",3,ITEM,Mono Click Charges 01-DEC-22 to 30-NOV-23,,,,,,TOTAL TRUST,TOTAL TRUST,OPERATING EXPENDITURE,SYSTEMS & NETWORK SERVICES,SNS,154732,Photocopying,734000,Contract : Photocopying Rental And Charges,1000,Default Value,1000,Default Value,Accounted,Fully Paid,"38,418.76",10/03/2023
York and Scarborough Teaching Hospitals NHS Foundation Trust BU,102192390,6733942,STANDARD,25/01/2023,"38,418.76",02/02/2023,RCBNFAIRBURNC1,OTHSUPP,Ricoh Uk Ltd,NORTHAMPTON,NN4 4FG,"-17,286.07",4,ITEM,Colour Click Charges 01-DEC-22 to 30-NOV-23,,,,,,TOTAL TRUST,TOTAL TRUST,OPERATING EXPENDITURE,SYSTEMS & NETWORK SERVICES,SNS,154732,Photocopying,734000,Contract : Photocopying Rental And Charges,1000,Default Value,1000,Default Value,Accounted,Fully Paid,"38,418.76",10/03/2023
York and Scarborough Teaching Hospitals NHS Foundation Trust BU,102192390,6733942,STANDARD,25/01/2023,"38,418.76",02/02/2023,RCBNFAIRBURNC1,OTHSUPP,Ricoh Uk Ltd,NORTHAMPTON,NN4 4FG,"17,286.07",4,ITEM,Colour Click Charges 01-DEC-22 to 30-NOV-23,,,,,,TOTAL TRUST,TOTAL TRUST,OPERATING EXPENDITURE,SYSTEMS & NETWORK SERVICES,SNS,154732,Photocopying,734000,Contract : Photocopying Rental And Charges,1000,Default Value,1000,Default Value,Accounted,Fully Paid,"38,418.76",10/03/2023
York and Scarborough Teaching Hospitals NHS Foundation Trust BU,102192390,6733942,STANDARD,25/01/2023,"38,418.76",02/02/2023,RCBNFAIRBURNC1,OTHSUPP,Ricoh Uk Ltd,NORTHAMPTON,NN4 4FG,"14,729.56",5,ITEM,Mono Click Charges 01-DEC-21 to 30-NOV-22,,,,,,TOTAL TRUST,TOTAL TRUST,OPERATING EXPENDITURE,SYSTEMS & NETWORK SERVICES,SNS,154732,Photocopying,734000,Contract : Photocopying Rental And Charges,1000,Default Value,1000,Default Value,Accounted,Fully Paid,"38,418.76",10/03/2023
York and Scarborough Teaching Hospitals NHS Foundation Trust BU,102192390,6733942,STANDARD,25/01/2023,"38,418.76",02/02/2023,RCBNFAIRBURNC1,OTHSUPP,Ricoh Uk Ltd,NORTHAMPTON,NN4 4FG,"9,286.07",6,ITEM,Colour Click Charges 01-DEC-21 to 30-NOV-22,,,,,,TOTAL TRUST,TOTAL TRUST,OPERATING EXPENDITURE,SYSTEMS & NETWORK SERVICES,SNS,154732,Photocopying,734000,Contract : Photocopying Rental And Charges,1000,Default Value,1000,Default Value,Accounted,Fully Paid,"38,418.76",10/03/2023
York and Scarborough Teaching Hospitals NHS Foundation Trust BU,102192390,6733942,STANDARD,25/01/2023,"38,418.76",02/02/2023,RCBNFAIRBURNC1,OTHSUPP,Ricoh Uk Ltd,NORTHAMPTON,NN4 4FG,"8,000.00",7,ITEM,scassidy - Colour Click Charges 01-DEC-21 to 30-NOV-22,,,,,,TOTAL TRUST,TOTAL TRUST,OPERATING EXPENDITURE,SYSTEMS & NETWORK SERVICES,SNS,154732,Photocopying,734000,Contract : Photocopying Rental And Charges,1000,Default Value,1000,Default Value,Accounted,Fully Paid,"38,418.76",10/03/2023
York and Scarborough Teaching Hospitals NHS Foundation Trust BU,102192390,6733942,STANDARD,25/01/2023,"38,418.76",02/02/2023,RCBNFAIRBURNC1,OTHSUPP,Ricoh Uk Ltd,NORTHAMPTON,NN4 4FG,"1,857.21",8,TAX,NEP VAT REGIME - VAT TAX,STD,,,,,TOTAL TRUST,TOTAL TRUST,OPERATING EXPENDITURE,SYSTEMS & NETWORK SERVICES,SNS,154732,Photocopying,734000,Contract : Photocopying Rental And Charges,1000,Default Value,1000,Default Value,Accounted,Fully Paid,"38,418.76",10/03/2023
York and Scarborough Teaching Hospitals NHS Foundation Trust BU,102192390,6733942,STANDARD,25/01/2023,"38,418.76",02/02/2023,RCBNFAIRBURNC1,OTHSUPP,Ricoh Uk Ltd,NORTHAMPTON,NN4 4FG,0.00,8,TAX,NEP VAT REGIME - VAT TAX,STD,,,,,TOTAL TRUST,TOTAL TRUST,BALANCE SHEET,FINANCE - BALANCE SHEET,DEBTORS,119405,Dr Vat Debtor,156000,Vat Debtor < One Year,1000,Default Value,1000,Default Value,Accounted,Fully Paid,"38,418.76",10/03/2023
York and Scarborough Teaching Hospitals NHS Foundation Trust BU,102192390,6733942,STANDARD,25/01/2023,"38,418.76",02/02/2023,RCBNFAIRBURNC1,OTHSUPP,Ricoh Uk Ltd,NORTHAMPTON,NN4 4FG,"-1,857.21",8,TAX,NEP VAT REGIME - VAT TAX,STD,,,,,TOTAL TRUST,TOTAL TRUST,OPERATING EXPENDITURE,SYSTEMS & NETWORK SERVICES,SNS,154732,Photocopying,734000,Contract : Photocopying Rental And Charges,1000,Default Value,1000,Default Value,Accounted,Fully Paid,"38,418.76",10/03/2023
York and Scarborough Teaching Hospitals NHS Foundation Trust BU,102192390,6733942,STANDARD,25/01/2023,"38,418.76",02/02/2023,RCBNFAIRBURNC1,OTHSUPP,Ricoh Uk Ltd,NORTHAMPTON,NN4 4FG,0.00,8,TAX,NEP VAT REGIME - VAT TAX,STD,,,,,TOTAL TRUST,TOTAL TRUST,BALANCE SHEET,FINANCE - BALANCE SHEET,DEBTORS,119405,Dr Vat Debtor,156000,Vat Debtor < One Year,1000,Default Value,1000,Default Value,Accounted,Fully Paid,"38,418.76",10/03/2023
York Teaching Hospital Facilities Management LLP BU,10308318,6094601,STANDARD,13/03/2023,"1,538,693.84",14/03/2023,RCBNCOOKM1,OTHSUPP,Kier Construction - North and Scotland,G33 6HZ,G33 6HZ,"1,282,244.87",1,ITEM,YH ED EXPANSION - CAPITAL PROJECT � PLS ADD TO RCBF400012832 - GMP UPLIFT - KIER CONSTRUCTION NORTH & SCOTLAND - PSCP UNDER P21+ - 314389 112000,,,,,,TOTAL TRUST,TOTAL TRUST,BALANCE SHEET,LLP FINANCE - BALANCE SHEET,LLP WIP,314389,York ED Major Scheme,112000,Work-In-Progress,1000,Default Value,1000,Default Value,Accounted,Fully Paid,"1,538,693.84",17/03/2023
York Teaching Hospital Facilities Management LLP BU,10308318,6094601,STANDARD,13/03/2023,"1,538,693.84",14/03/2023,RCBNCOOKM1,OTHSUPP,Kier Construction - North and Scotland,G33 6HZ,G33 6HZ,"-256,448.97",2,TAX,RCBF400012832 CAPITAL,BA STD REC,,,,,TOTAL TRUST,TOTAL TRUST,BALANCE SHEET,LLP FINANCE - BALANCE SHEET,LLP WIP,314389,York ED Major Scheme,112000,Work-In-Progress,1000,Default Value,1000,Default Value,Accounted,Fully Paid,"1,538,693.84",17/03/2023
York Teaching Hospital Facilities Management LLP BU,10308318,6094601,STANDARD,13/03/2023,"1,538,693.84",14/03/2023,RCBNCOOKM1,OTHSUPP,Kier Construction - North and Scotland,G33 6HZ,G33 6HZ,"256,448.97",2,TAX,RCBF400012832 CAPITAL,BA STD REC,,,,,TOTAL TRUST,TOTAL TRUST,BALANCE SHEET,LLP FINANCE - BALANCE SHEET,LLP WIP,314389,York ED Major Scheme,112000,Work-In-Progress,1000,Default Value,1000,Default Value,Accounted,Fully Paid,"1,538,693.84",17/03/2023
York Teaching Hospital Facilities Management LLP BU,10308318,6094601,STANDARD,13/03/2023,"1,538,693.84",14/03/2023,RCBNCOOKM1,OTHSUPP,Kier Construction - North and Scotland,G33 6HZ,G33 6HZ,"256,448.97",2,TAX,RCBF400012832 CAPITAL,BA STD REC,,,,,TOTAL TRUST,TOTAL TRUST,BALANCE SHEET,LLP FINANCE - BALANCE SHEET,LLP DEBTORS,219405,LLP Dr Vat Debtor,156000,Vat Debtor < One Year,1000,Default Value,1000,Default Value,Accounted,Fully Paid,"1,538,693.84",17/03/2023
York Teaching Hospital Facilities Management LLP BU,10308325,6094722,STANDARD,13/03/2023,"100,034.39",15/03/2023,RCBNCOOKM1,OTHSUPP,Kier Construction - North and Scotland,G33 6HZ,G33 6HZ,"83,361.99",1,ITEM,LOA UPLIFT 16-12-22 AB - YH VIU PROJECT � VIU � PACU - OUTPATIENTS PROCEDURE SUITE - HYBRID THEATRE: (KIER PSCP AWARDED UNDER P21+ MAJOR WORKS PROJECT)  314373 112000,,,,,,TOTAL TRUST,TOTAL TRUST,BALANCE SHEET,LLP FINANCE - BALANCE SHEET,LLP WIP,314373,LLP York Viu Extension,112000,Work-In-Progress,1000,Default Value,1000,Default Value,Accounted,Fully Paid,"100,034.39",22/03/2023
York Teaching Hospital Facilities Management LLP BU,10308325,6094722,STANDARD,13/03/2023,"100,034.39",15/03/2023,RCBNCOOKM1,OTHSUPP,Kier Construction - North and Scotland,G33 6HZ,G33 6HZ,"16,672.40",2,TAX,RCBF400022285 CAPITAL,BA STD REC,,,,,TOTAL TRUST,TOTAL TRUST,BALANCE SHEET,LLP FINANCE - BALANCE SHEET,LLP DEBTORS,219405,LLP Dr Vat Debtor,156000,Vat Debtor < One Year,1000,Default Value,1000,Default Value,Accounted,Fully Paid,"100,034.39",22/03/2023
York Teaching Hospital Facilities Management LLP BU,10308325,6094722,STANDARD,13/03/2023,"100,034.39",15/03/2023,RCBNCOOKM1,OTHSUPP,Kier Construction - North and Scotland,G33 6HZ,G33 6HZ,"16,672.40",2,TAX,RCBF400022285 CAPITAL,BA STD REC,,,,,TOTAL TRUST,TOTAL TRUST,BALANCE SHEET,LLP FINANCE - BALANCE SHEET,LLP WIP,314373,LLP York Viu Extension,112000,Work-In-Progress,1000,Default Value,1000,Default Value,Accounted,Fully Paid,"100,034.39",22/03/2023
York Teaching Hospital Facilities Management LLP BU,10308325,6094722,STANDARD,13/03/2023,"100,034.39",15/03/2023,RCBNCOOKM1,OTHSUPP,Kier Construction - North and Scotland,G33 6HZ,G33 6HZ,"-16,672.40",2,TAX,RCBF400022285 CAPITAL,BA STD REC,,,,,TOTAL TRUST,TOTAL TRUST,BALANCE SHEET,LLP FINANCE - BALANCE SHEET,LLP WIP,314373,LLP York Viu Extension,112000,Work-In-Progress,1000,Default Value,1000,Default Value,Accounted,Fully Paid,"100,034.39",22/03/2023
York Teaching Hospital Facilities Management LLP BU,10649,6094459,STANDARD,10/03/2023,"78,733.38",13/03/2023,RCBNCOOKM1,OTHSUPP,F. Parkinson Ltd,FY3 7UN,FY3 7UN,"65,611.15",1,ITEM,TADCASTER HEALTH CENTRE - FLOOD DAMAGE 2022 - INSURANCE WORKS FOR REMEDIAL REPAIRS - JOE BROCKWAY - 214588 738400,,,,,,TOTAL TRUST,TOTAL TRUST,OPERATING EXPENDITURE,LLP ESTATES & FACILITIES_OLD,LLP SPECIAL PROGRAMME,214588,Insurance Claims,738400,Minor Works,1000,Default Value,1000,Default Value,Accounted,Fully Paid,"78,733.38",31/03/2023
York Teaching Hospital Facilities Management LLP BU,10649,6094459,STANDARD,10/03/2023,"78,733.38",13/03/2023,RCBNCOOKM1,OTHSUPP,F. Parkinson Ltd,FY3 7UN,FY3 7UN,"13,122.23",2,TAX,RCBF400021910 CAPITAL,BA STD REC,,,,,TOTAL TRUST,TOTAL TRUST,BALANCE SHEET,LLP FINANCE - BALANCE SHEET,LLP DEBTORS,219405,LLP Dr Vat Debtor,156000,Vat Debtor < One Year,1000,Default Value,1000,Default Value,Accounted,Fully Paid,"78,733.38",31/03/2023
York Teaching Hospital Facilities Management LLP BU,10649,6094459,STANDARD,10/03/2023,"78,733.38",13/03/2023,RCBNCOOKM1,OTHSUPP,F. Parkinson Ltd,FY3 7UN,FY3 7UN,"-13,122.23",2,TAX,RCBF400021910 CAPITAL,BA STD REC,,,,,TOTAL TRUST,TOTAL TRUST,OPERATING EXPENDITURE,LLP ESTATES & FACILITIES_OLD,LLP SPECIAL PROGRAMME,214588,Insurance Claims,738400,Minor Works,1000,Default Value,1000,Default Value,Accounted,Fully Paid,"78,733.38",31/03/2023
York Teaching Hospital Facilities Management LLP BU,10649,6094459,STANDARD,10/03/2023,"78,733.38",13/03/2023,RCBNCOOKM1,OTHSUPP,F. Parkinson Ltd,FY3 7UN,FY3 7UN,"13,122.23",2,TAX,RCBF400021910 CAPITAL,BA STD REC,,,,,TOTAL TRUST,TOTAL TRUST,OPERATING EXPENDITURE,LLP ESTATES & FACILITIES_OLD,LLP SPECIAL PROGRAMME,214588,Insurance Claims,738400,Minor Works,1000,Default Value,1000,Default Value,Accounted,Fully Paid,"78,733.38",31/03/2023
York and Scarborough Teaching Hospitals NHS Foundation Trust BU,1123238321,6736721,STANDARD,20/01/2023,"173,750.09",03/03/2023,RCBNSHAWJ2,NHS OTHER,NHS Supply Chain Co-ordination Limited,DE55 4QJ,DE55 4QJ,792.32,1,ITEM,,,,,,,TOTAL TRUST,TOTAL TRUST,BALANCE SHEET,FINANCE - BALANCE SHEET,MISC SUSPENSE,119562,Rsc Stores Issue Control,252000,Other Creditors < One Year,1999,Other Nhs Organisations,1000,Default Value,Accounted,Fully Paid,"173,750.09",08/03/2023
York and Scarborough Teaching Hospitals NHS Foundation Trust BU,1123238321,6736721,STANDARD,20/01/2023,"173,750.09",03/03/2023,RCBNSHAWJ2,NHS OTHER,NHS Supply Chain Co-ordination Limited,DE55 4QJ,DE55 4QJ,"144,027.58",2,ITEM,,,,,,,TOTAL TRUST,TOTAL TRUST,BALANCE SHEET,FINANCE - BALANCE SHEET,MISC SUSPENSE,119562,Rsc Stores Issue Control,252000,Other Creditors < One Year,1999,Other Nhs Organisations,1000,Default Value,Accounted,Fully Paid,"173,750.09",08/03/2023
York and Scarborough Teaching Hospitals NHS Foundation Trust BU,1123238321,6736721,STANDARD,20/01/2023,"173,750.09",03/03/2023,RCBNSHAWJ2,NHS OTHER,NHS Supply Chain Co-ordination Limited,DE55 4QJ,DE55 4QJ,117.80,3,ITEM,,,,,,,TOTAL TRUST,TOTAL TRUST,BALANCE SHEET,FINANCE - BALANCE SHEET,MISC SUSPENSE,119562,Rsc Stores Issue Control,252000,Other Creditors < One Year,1999,Other Nhs Organisations,1000,Default Value,Accounted,Fully Paid,"173,750.09",08/03/2023
York and Scarborough Teaching Hospitals NHS Foundation Trust BU,1123238321,6736721,STANDARD,20/01/2023,"173,750.09",03/03/2023,RCBNSHAWJ2,NHS OTHER,NHS Supply Chain Co-ordination Limited,DE55 4QJ,DE55 4QJ,0.00,4,TAX,NEP VAT REGIME - VAT TAX,STD,,,,,TOTAL TRUST,TOTAL TRUST,BALANCE SHEET,FINANCE - BALANCE SHEET,DEBTORS,119405,Dr Vat Debtor,156000,Vat Debtor < One Year,1000,Default Value,1000,Default Value,Accounted,Fully Paid,"173,750.09",08/03/2023
York and Scarborough Teaching Hospitals NHS Foundation Trust BU,1123238321,6736721,STANDARD,20/01/2023,"173,750.09",03/03/2023,RCBNSHAWJ2,NHS OTHER,NHS Supply Chain Co-ordination Limited,DE55 4QJ,DE55 4QJ,"28,805.52",4,TAX,NEP VAT REGIME - VAT TAX,STD,,,,,TOTAL TRUST,TOTAL TRUST,BALANCE SHEET,FINANCE - BALANCE SHEET,MISC SUSPENSE,119562,Rsc Stores Issue Control,252000,Other Creditors < One Year,1999,Other Nhs Organisations,1000,Default Value,Accounted,Fully Paid,"173,750.09",08/03/2023
York and Scarborough Teaching Hospitals NHS Foundation Trust BU,1123238321,6736721,STANDARD,20/01/2023,"173,750.09",03/03/2023,RCBNSHAWJ2,NHS OTHER,NHS Supply Chain Co-ordination Limited,DE55 4QJ,DE55 4QJ,0.00,4,TAX,NEP VAT REGIME - VAT TAX,STD,,,,,TOTAL TRUST,TOTAL TRUST,BALANCE SHEET,FINANCE - BALANCE SHEET,DEBTORS,119405,Dr Vat Debtor,156000,Vat Debtor < One Year,1000,Default Value,1000,Default Value,Accounted,Fully Paid,"173,750.09",08/03/2023
York and Scarborough Teaching Hospitals NHS Foundation Trust BU,1123238321,6736721,STANDARD,20/01/2023,"173,750.09",03/03/2023,RCBNSHAWJ2,NHS OTHER,NHS Supply Chain Co-ordination Limited,DE55 4QJ,DE55 4QJ,0.00,4,TAX,NEP VAT REGIME - VAT TAX,STD,,,,,TOTAL TRUST,TOTAL TRUST,BALANCE SHEET,FINANCE - BALANCE SHEET,DEBTORS,119405,Dr Vat Debtor,156000,Vat Debtor < One Year,1000,Default Value,1000,Default Value,Accounted,Fully Paid,"173,750.09",08/03/2023
York and Scarborough Teaching Hospitals NHS Foundation Trust BU,1123238321,6736721,STANDARD,20/01/2023,"173,750.09",03/03/2023,RCBNSHAWJ2,NHS OTHER,NHS Supply Chain Co-ordination Limited,DE55 4QJ,DE55 4QJ,"-28,805.52",4,TAX,NEP VAT REGIME - VAT TAX,STD,,,,,TOTAL TRUST,TOTAL TRUST,BALANCE SHEET,FINANCE - BALANCE SHEET,MISC SUSPENSE,119562,Rsc Stores Issue Control,252000,Other Creditors < One Year,1999,Other Nhs Organisations,1000,Default Value,Accounted,Fully Paid,"173,750.09",08/03/2023
York and Scarborough Teaching Hospitals NHS Foundation Trust BU,1123238321,6736721,STANDARD,20/01/2023,"173,750.09",03/03/2023,RCBNSHAWJ2,NHS OTHER,NHS Supply Chain Co-ordination Limited,DE55 4QJ,DE55 4QJ,"28,806.49",4,TAX,NEP VAT REGIME - VAT TAX,STD,,,,,TOTAL TRUST,TOTAL TRUST,BALANCE SHEET,FINANCE - BALANCE SHEET,MISC SUSPENSE,119562,Rsc Stores Issue Control,252000,Other Creditors < One Year,1999,Other Nhs Organisations,1000,Default Value,Accounted,Fully Paid,"173,750.09",08/03/2023
York and Scarborough Teaching Hospitals NHS Foundation Trust BU,1123238321,6736721,STANDARD,20/01/2023,"173,750.09",03/03/2023,RCBNSHAWJ2,NHS OTHER,NHS Supply Chain Co-ordination Limited,DE55 4QJ,DE55 4QJ,0.00,5,TAX,NEP VAT REGIME - VAT TAX,ZERO,,,,,TOTAL TRUST,TOTAL TRUST,BALANCE SHEET,FINANCE - BALANCE SHEET,DEBTORS,119405,Dr Vat Debtor,156000,Vat Debtor < One Year,1000,Default Value,1000,Default Value,Accounted,Fully Paid,"173,750.09",08/03/2023
York and Scarborough Teaching Hospitals NHS Foundation Trust BU,1123238321,6736721,STANDARD,20/01/2023,"173,750.09",03/03/2023,RCBNSHAWJ2,NHS OTHER,NHS Supply Chain Co-ordination Limited,DE55 4QJ,DE55 4QJ,0.00,5,TAX,NEP VAT REGIME - VAT TAX,ZERO,,,,,TOTAL TRUST,TOTAL TRUST,BALANCE SHEET,FINANCE - BALANCE SHEET,MISC SUSPENSE,119562,Rsc Stores Issue Control,252000,Other Creditors < One Year,1999,Other Nhs Organisations,1000,Default Value,Accounted,Fully Paid,"173,750.09",08/03/2023
York and Scarborough Teaching Hospitals NHS Foundation Trust BU,1123238321,6736721,STANDARD,20/01/2023,"173,750.09",03/03/2023,RCBNSHAWJ2,NHS OTHER,NHS Supply Chain Co-ordination Limited,DE55 4QJ,DE55 4QJ,0.00,6,TAX,NEP VAT REGIME - VAT TAX,5,,,,,TOTAL TRUST,TOTAL TRUST,BALANCE SHEET,FINANCE - BALANCE SHEET,DEBTORS,119405,Dr Vat Debtor,156000,Vat Debtor < One Year,1000,Default Value,1000,Default Value,Accounted,Fully Paid,"173,750.09",08/03/2023
York and Scarborough Teaching Hospitals NHS Foundation Trust BU,1123238321,6736721,STANDARD,20/01/2023,"173,750.09",03/03/2023,RCBNSHAWJ2,NHS OTHER,NHS Supply Chain Co-ordination Limited,DE55 4QJ,DE55 4QJ,5.89,6,TAX,NEP VAT REGIME - VAT TAX,5,,,,,TOTAL TRUST,TOTAL TRUST,BALANCE SHEET,FINANCE - BALANCE SHEET,MISC SUSPENSE,119562,Rsc Stores Issue Control,252000,Other Creditors < One Year,1999,Other Nhs Organisations,1000,Default Value,Accounted,Fully Paid,"173,750.09",08/03/2023
York and Scarborough Teaching Hospitals NHS Foundation Trust BU,1123238321,6736721,STANDARD,20/01/2023,"173,750.09",03/03/2023,RCBNSHAWJ2,NHS OTHER,NHS Supply Chain Co-ordination Limited,DE55 4QJ,DE55 4QJ,0.00,6,TAX,NEP VAT REGIME - VAT TAX,5,,,,,TOTAL TRUST,TOTAL TRUST,BALANCE SHEET,FINANCE - BALANCE SHEET,DEBTORS,119405,Dr Vat Debtor,156000,Vat Debtor < One Year,1000,Default Value,1000,Default Value,Accounted,Fully Paid,"173,750.09",08/03/2023
York and Scarborough Teaching Hospitals NHS Foundation Trust BU,1123238321,6736721,STANDARD,20/01/2023,"173,750.09",03/03/2023,RCBNSHAWJ2,NHS OTHER,NHS Supply Chain Co-ordination Limited,DE55 4QJ,DE55 4QJ,0.00,6,TAX,NEP VAT REGIME - VAT TAX,5,,,,,TOTAL TRUST,TOTAL TRUST,BALANCE SHEET,FINANCE - BALANCE SHEET,DEBTORS,119405,Dr Vat Debtor,156000,Vat Debtor < One Year,1000,Default Value,1000,Default Value,Accounted,Fully Paid,"173,750.09",08/03/2023
York and Scarborough Teaching Hospitals NHS Foundation Trust BU,1123238321,6736721,STANDARD,20/01/2023,"173,750.09",03/03/2023,RCBNSHAWJ2,NHS OTHER,NHS Supply Chain Co-ordination Limited,DE55 4QJ,DE55 4QJ,-5.89,6,TAX,NEP VAT REGIME - VAT TAX,5,,,,,TOTAL TRUST,TOTAL TRUST,BALANCE SHEET,FINANCE - BALANCE SHEET,MISC SUSPENSE,119562,Rsc Stores Issue Control,252000,Other Creditors < One Year,1999,Other Nhs Organisations,1000,Default Value,Accounted,Fully Paid,"173,750.09",08/03/2023
York and Scarborough Teaching Hospitals NHS Foundation Trust BU,1123238321,6736721,STANDARD,20/01/2023,"173,750.09",03/03/2023,RCBNSHAWJ2,NHS OTHER,NHS Supply Chain Co-ordination Limited,DE55 4QJ,DE55 4QJ,5.90,6,TAX,NEP VAT REGIME - VAT TAX,5,,,,,TOTAL TRUST,TOTAL TRUST,BALANCE SHEET,FINANCE - BALANCE SHEET,MISC SUSPENSE,119562,Rsc Stores Issue Control,252000,Other Creditors < One Year,1999,Other Nhs Organisations,1000,Default Value,Accounted,Fully Paid,"173,750.09",08/03/2023
York and Scarborough Teaching Hospitals NHS Foundation Trust BU,1123242078,6736722,STANDARD,20/01/2023,"260,884.06",03/03/2023,RCBNSHAWJ2,NHS OTHER,NHS Supply Chain Co-ordination Limited,DE55 4QJ,DE55 4QJ,"217,403.35",1,ITEM,,,,,,,TOTAL TRUST,TOTAL TRUST,BALANCE SHEET,FINANCE - BALANCE SHEET,MISC SUSPENSE,119562,Rsc Stores Issue Control,252000,Other Creditors < One Year,1999,Other Nhs Organisations,1000,Default Value,Accounted,Fully Paid,"260,884.06",08/03/2023
York and Scarborough Teaching Hospitals NHS Foundation Trust BU,1123242078,6736722,STANDARD,20/01/2023,"260,884.06",03/03/2023,RCBNSHAWJ2,NHS OTHER,NHS Supply Chain Co-ordination Limited,DE55 4QJ,DE55 4QJ,"43,480.71",2,TAX,NEP VAT REGIME - VAT TAX,STD,,,,,TOTAL TRUST,TOTAL TRUST,BALANCE SHEET,FINANCE - BALANCE SHEET,MISC SUSPENSE,119562,Rsc Stores Issue Control,252000,Other Creditors < One Year,1999,Other Nhs Organisations,1000,Default Value,Accounted,Fully Paid,"260,884.06",08/03/2023
York and Scarborough Teaching Hospitals NHS Foundation Trust BU,1123242078,6736722,STANDARD,20/01/2023,"260,884.06",03/03/2023,RCBNSHAWJ2,NHS OTHER,NHS Supply Chain Co-ordination Limited,DE55 4QJ,DE55 4QJ,"-43,480.67",2,TAX,NEP VAT REGIME - VAT TAX,STD,,,,,TOTAL TRUST,TOTAL TRUST,BALANCE SHEET,FINANCE - BALANCE SHEET,MISC SUSPENSE,119562,Rsc Stores Issue Control,252000,Other Creditors < One Year,1999,Other Nhs Organisations,1000,Default Value,Accounted,Fully Paid,"260,884.06",08/03/2023
York and Scarborough Teaching Hospitals NHS Foundation Trust BU,1123242078,6736722,STANDARD,20/01/2023,"260,884.06",03/03/2023,RCBNSHAWJ2,NHS OTHER,NHS Supply Chain Co-ordination Limited,DE55 4QJ,DE55 4QJ,0.00,2,TAX,NEP VAT REGIME - VAT TAX,STD,,,,,TOTAL TRUST,TOTAL TRUST,BALANCE SHEET,FINANCE - BALANCE SHEET,DEBTORS,119405,Dr Vat Debtor,156000,Vat Debtor < One Year,1000,Default Value,1000,Default Value,Accounted,Fully Paid,"260,884.06",08/03/2023
York and Scarborough Teaching Hospitals NHS Foundation Trust BU,1123242078,6736722,STANDARD,20/01/2023,"260,884.06",03/03/2023,RCBNSHAWJ2,NHS OTHER,NHS Supply Chain Co-ordination Limited,DE55 4QJ,DE55 4QJ,0.00,2,TAX,NEP VAT REGIME - VAT TAX,STD,,,,,TOTAL TRUST,TOTAL TRUST,BALANCE SHEET,FINANCE - BALANCE SHEET,DEBTORS,119405,Dr Vat Debtor,156000,Vat Debtor < One Year,1000,Default Value,1000,Default Value,Accounted,Fully Paid,"260,884.06",08/03/2023
York and Scarborough Teaching Hospitals NHS Foundation Trust BU,1123242078,6736722,STANDARD,20/01/2023,"260,884.06",03/03/2023,RCBNSHAWJ2,NHS OTHER,NHS Supply Chain Co-ordination Limited,DE55 4QJ,DE55 4QJ,"43,480.67",2,TAX,NEP VAT REGIME - VAT TAX,STD,,,,,TOTAL TRUST,TOTAL TRUST,BALANCE SHEET,FINANCE - BALANCE SHEET,MISC SUSPENSE,119562,Rsc Stores Issue Control,252000,Other Creditors < One Year,1999,Other Nhs Organisations,1000,Default Value,Accounted,Fully Paid,"260,884.06",08/03/2023
York and Scarborough Teaching Hospitals NHS Foundation Trust BU,1123242078,6736722,STANDARD,20/01/2023,"260,884.06",03/03/2023,RCBNSHAWJ2,NHS OTHER,NHS Supply Chain Co-ordination Limited,DE55 4QJ,DE55 4QJ,0.00,2,TAX,NEP VAT REGIME - VAT TAX,STD,,,,,TOTAL TRUST,TOTAL TRUST,BALANCE SHEET,FINANCE - BALANCE SHEET,DEBTORS,119405,Dr Vat Debtor,156000,Vat Debtor < One Year,1000,Default Value,1000,Default Value,Accounted,Fully Paid,"260,884.06",08/03/2023
York and Scarborough Teaching Hospitals NHS Foundation Trust BU,1123244323,6727972,STANDARD,27/01/2023,"157,066.79",02/02/2023,RCBNFAIRBURNC1,NHS OTHER,NHS Supply Chain Co-ordination Limited,DE55 4QJ,DE55 4QJ,"25,975.77",4,TAX,NEP VAT REGIME - VAT TAX,STD,,,,,TOTAL TRUST,TOTAL TRUST,BALANCE SHEET,FINANCE - BALANCE SHEET,MISC SUSPENSE,119562,Rsc Stores Issue Control,252000,Other Creditors < One Year,1999,Other Nhs Organisations,1000,Default Value,Accounted,Fully Paid,"157,066.79",08/03/2023
York and Scarborough Teaching Hospitals NHS Foundation Trust BU,1123244323,6727972,STANDARD,27/01/2023,"157,066.79",02/02/2023,RCBNFAIRBURNC1,NHS OTHER,NHS Supply Chain Co-ordination Limited,DE55 4QJ,DE55 4QJ,0.00,4,TAX,NEP VAT REGIME - VAT TAX,STD,,,,,TOTAL TRUST,TOTAL TRUST,BALANCE SHEET,FINANCE - BALANCE SHEET,DEBTORS,119405,Dr Vat Debtor,156000,Vat Debtor < One Year,1000,Default Value,1000,Default Value,Accounted,Fully Paid,"157,066.79",08/03/2023
York and Scarborough Teaching Hospitals NHS Foundation Trust BU,1123244323,6727972,STANDARD,27/01/2023,"157,066.79",02/02/2023,RCBNFAIRBURNC1,NHS OTHER,NHS Supply Chain Co-ordination Limited,DE55 4QJ,DE55 4QJ,0.00,4,TAX,NEP VAT REGIME - VAT TAX,STD,,,,,TOTAL TRUST,TOTAL TRUST,BALANCE SHEET,FINANCE - BALANCE SHEET,DEBTORS,119405,Dr Vat Debtor,156000,Vat Debtor < One Year,1000,Default Value,1000,Default Value,Accounted,Fully Paid,"157,066.79",08/03/2023
York and Scarborough Teaching Hospitals NHS Foundation Trust BU,1123244323,6727972,STANDARD,27/01/2023,"157,066.79",02/02/2023,RCBNFAIRBURNC1,NHS OTHER,NHS Supply Chain Co-ordination Limited,DE55 4QJ,DE55 4QJ,"25,976.72",4,TAX,NEP VAT REGIME - VAT TAX,STD,,,,,TOTAL TRUST,TOTAL TRUST,BALANCE SHEET,FINANCE - BALANCE SHEET,MISC SUSPENSE,119562,Rsc Stores Issue Control,252000,Other Creditors < One Year,1999,Other Nhs Organisations,1000,Default Value,Accounted,Fully Paid,"157,066.79",08/03/2023
York and Scarborough Teaching Hospitals NHS Foundation Trust BU,1123244323,6727972,STANDARD,27/01/2023,"157,066.79",02/02/2023,RCBNFAIRBURNC1,NHS OTHER,NHS Supply Chain Co-ordination Limited,DE55 4QJ,DE55 4QJ,"-25,975.77",4,TAX,NEP VAT REGIME - VAT TAX,STD,,,,,TOTAL TRUST,TOTAL TRUST,BALANCE SHEET,FINANCE - BALANCE SHEET,MISC SUSPENSE,119562,Rsc Stores Issue Control,252000,Other Creditors < One Year,1999,Other Nhs Organisations,1000,Default Value,Accounted,Fully Paid,"157,066.79",08/03/2023
York and Scarborough Teaching Hospitals NHS Foundation Trust BU,1123244323,6727972,STANDARD,27/01/2023,"157,066.79",02/02/2023,RCBNFAIRBURNC1,NHS OTHER,NHS Supply Chain Co-ordination Limited,DE55 4QJ,DE55 4QJ,0.00,4,TAX,NEP VAT REGIME - VAT TAX,STD,,,,,TOTAL TRUST,TOTAL TRUST,BALANCE SHEET,FINANCE - BALANCE SHEET,DEBTORS,119405,Dr Vat Debtor,156000,Vat Debtor < One Year,1000,Default Value,1000,Default Value,Accounted,Fully Paid,"157,066.79",08/03/2023
York and Scarborough Teaching Hospitals NHS Foundation Trust BU,1123244323,6727972,STANDARD,27/01/2023,"157,066.79",02/02/2023,RCBNFAIRBURNC1,NHS OTHER,NHS Supply Chain Co-ordination Limited,DE55 4QJ,DE55 4QJ,"1,167.13",5,ITEM,,,,,,,TOTAL TRUST,TOTAL TRUST,BALANCE SHEET,FINANCE - BALANCE SHEET,MISC SUSPENSE,119562,Rsc Stores Issue Control,252000,Other Creditors < One Year,1999,Other Nhs Organisations,1000,Default Value,Accounted,Fully Paid,"157,066.79",08/03/2023
York and Scarborough Teaching Hospitals NHS Foundation Trust BU,1123244323,6727972,STANDARD,27/01/2023,"157,066.79",02/02/2023,RCBNFAIRBURNC1,NHS OTHER,NHS Supply Chain Co-ordination Limited,DE55 4QJ,DE55 4QJ,"129,878.84",6,ITEM,,,,,,,TOTAL TRUST,TOTAL TRUST,BALANCE SHEET,FINANCE - BALANCE SHEET,MISC SUSPENSE,119562,Rsc Stores Issue Control,252000,Other Creditors < One Year,1999,Other Nhs Organisations,1000,Default Value,Accounted,Fully Paid,"157,066.79",08/03/2023
York and Scarborough Teaching Hospitals NHS Foundation Trust BU,1123244323,6727972,STANDARD,27/01/2023,"157,066.79",02/02/2023,RCBNFAIRBURNC1,NHS OTHER,NHS Supply Chain Co-ordination Limited,DE55 4QJ,DE55 4QJ,42.00,7,ITEM,,,,,,,TOTAL TRUST,TOTAL TRUST,BALANCE SHEET,FINANCE - BALANCE SHEET,MISC SUSPENSE,119562,Rsc Stores Issue Control,252000,Other Creditors < One Year,1999,Other Nhs Organisations,1000,Default Value,Accounted,Fully Paid,"157,066.79",08/03/2023
York and Scarborough Teaching Hospitals NHS Foundation Trust BU,1123244323,6727972,STANDARD,27/01/2023,"157,066.79",02/02/2023,RCBNFAIRBURNC1,NHS OTHER,NHS Supply Chain Co-ordination Limited,DE55 4QJ,DE55 4QJ,0.00,8,TAX,NEP VAT REGIME - VAT TAX,ZERO,,,,,TOTAL TRUST,TOTAL TRUST,BALANCE SHEET,FINANCE - BALANCE SHEET,DEBTORS,119405,Dr Vat Debtor,156000,Vat Debtor < One Year,1000,Default Value,1000,Default Value,Accounted,Fully Paid,"157,066.79",08/03/2023
York and Scarborough Teaching Hospitals NHS Foundation Trust BU,1123244323,6727972,STANDARD,27/01/2023,"157,066.79",02/02/2023,RCBNFAIRBURNC1,NHS OTHER,NHS Supply Chain Co-ordination Limited,DE55 4QJ,DE55 4QJ,0.00,8,TAX,NEP VAT REGIME - VAT TAX,ZERO,,,,,TOTAL TRUST,TOTAL TRUST,BALANCE SHEET,FINANCE - BALANCE SHEET,MISC SUSPENSE,119562,Rsc Stores Issue Control,252000,Other Creditors < One Year,1999,Other Nhs Organisations,1000,Default Value,Accounted,Fully Paid,"157,066.79",08/03/2023
York and Scarborough Teaching Hospitals NHS Foundation Trust BU,1123244323,6727972,STANDARD,27/01/2023,"157,066.79",02/02/2023,RCBNFAIRBURNC1,NHS OTHER,NHS Supply Chain Co-ordination Limited,DE55 4QJ,DE55 4QJ,0.00,9,TAX,NEP VAT REGIME - VAT TAX,5,,,,,TOTAL TRUST,TOTAL TRUST,BALANCE SHEET,FINANCE - BALANCE SHEET,DEBTORS,119405,Dr Vat Debtor,156000,Vat Debtor < One Year,1000,Default Value,1000,Default Value,Accounted,Fully Paid,"157,066.79",08/03/2023
York and Scarborough Teaching Hospitals NHS Foundation Trust BU,1123244323,6727972,STANDARD,27/01/2023,"157,066.79",02/02/2023,RCBNFAIRBURNC1,NHS OTHER,NHS Supply Chain Co-ordination Limited,DE55 4QJ,DE55 4QJ,2.10,9,TAX,NEP VAT REGIME - VAT TAX,5,,,,,TOTAL TRUST,TOTAL TRUST,BALANCE SHEET,FINANCE - BALANCE SHEET,MISC SUSPENSE,119562,Rsc Stores Issue Control,252000,Other Creditors < One Year,1999,Other Nhs Organisations,1000,Default Value,Accounted,Fully Paid,"157,066.79",08/03/2023
York and Scarborough Teaching Hospitals NHS Foundation Trust BU,1123248203,6727960,STANDARD,27/01/2023,"204,590.51",02/02/2023,RCBNFAIRBURNC1,NHS OTHER,NHS Supply Chain Co-ordination Limited,DE55 4QJ,DE55 4QJ,54.00,1,ITEM,All NHS Product Sales,,,,,,TOTAL TRUST,TOTAL TRUST,BALANCE SHEET,FINANCE - BALANCE SHEET,MISC SUSPENSE,119562,Rsc Stores Issue Control,252000,Other Creditors < One Year,1999,Other Nhs Organisations,1000,Default Value,Accounted,Fully Paid,"204,590.51",03/03/2023
York and Scarborough Teaching Hospitals NHS Foundation Trust BU,1123248203,6727960,STANDARD,27/01/2023,"204,590.51",02/02/2023,RCBNFAIRBURNC1,NHS OTHER,NHS Supply Chain Co-ordination Limited,DE55 4QJ,DE55 4QJ,"170,447.05",2,ITEM,All NHS Product Sales no. 290 8858 54 DS1,,,,,,TOTAL TRUST,TOTAL TRUST,BALANCE SHEET,FINANCE - BALANCE SHEET,MISC SUSPENSE,119562,Rsc Stores Issue Control,252000,Other Creditors < One Year,1999,Other Nhs Organisations,1000,Default Value,Accounted,Fully Paid,"204,590.51",03/03/2023
York and Scarborough Teaching Hospitals NHS Foundation Trust BU,1123248203,6727960,STANDARD,27/01/2023,"204,590.51",02/02/2023,RCBNFAIRBURNC1,NHS OTHER,NHS Supply Chain Co-ordination Limited,DE55 4QJ,DE55 4QJ,"34,089.41",3,TAX,NEP VAT REGIME - VAT TAX,STD,,,,,TOTAL TRUST,TOTAL TRUST,BALANCE SHEET,FINANCE - BALANCE SHEET,MISC SUSPENSE,119562,Rsc Stores Issue Control,252000,Other Creditors < One Year,1999,Other Nhs Organisations,1000,Default Value,Accounted,Fully Paid,"204,590.51",03/03/2023
York and Scarborough Teaching Hospitals NHS Foundation Trust BU,1123248203,6727960,STANDARD,27/01/2023,"204,590.51",02/02/2023,RCBNFAIRBURNC1,NHS OTHER,NHS Supply Chain Co-ordination Limited,DE55 4QJ,DE55 4QJ,"-34,089.41",3,TAX,NEP VAT REGIME - VAT TAX,STD,,,,,TOTAL TRUST,TOTAL TRUST,BALANCE SHEET,FINANCE - BALANCE SHEET,MISC SUSPENSE,119562,Rsc Stores Issue Control,252000,Other Creditors < One Year,1999,Other Nhs Organisations,1000,Default Value,Accounted,Fully Paid,"204,590.51",03/03/2023
York and Scarborough Teaching Hospitals NHS Foundation Trust BU,1123248203,6727960,STANDARD,27/01/2023,"204,590.51",02/02/2023,RCBNFAIRBURNC1,NHS OTHER,NHS Supply Chain Co-ordination Limited,DE55 4QJ,DE55 4QJ,0.00,3,TAX,NEP VAT REGIME - VAT TAX,STD,,,,,TOTAL TRUST,TOTAL TRUST,BALANCE SHEET,FINANCE - BALANCE SHEET,DEBTORS,119405,Dr Vat Debtor,156000,Vat Debtor < One Year,1000,Default Value,1000,Default Value,Accounted,Fully Paid,"204,590.51",03/03/2023
York and Scarborough Teaching Hospitals NHS Foundation Trust BU,1123248203,6727960,STANDARD,27/01/2023,"204,590.51",02/02/2023,RCBNFAIRBURNC1,NHS OTHER,NHS Supply Chain Co-ordination Limited,DE55 4QJ,DE55 4QJ,0.00,3,TAX,NEP VAT REGIME - VAT TAX,STD,,,,,TOTAL TRUST,TOTAL TRUST,BALANCE SHEET,FINANCE - BALANCE SHEET,DEBTORS,119405,Dr Vat Debtor,156000,Vat Debtor < One Year,1000,Default Value,1000,Default Value,Accounted,Fully Paid,"204,590.51",03/03/2023
York and Scarborough Teaching Hospitals NHS Foundation Trust BU,1123248203,6727960,STANDARD,27/01/2023,"204,590.51",02/02/2023,RCBNFAIRBURNC1,NHS OTHER,NHS Supply Chain Co-ordination Limited,DE55 4QJ,DE55 4QJ,0.00,3,TAX,NEP VAT REGIME - VAT TAX,STD,,,,,TOTAL TRUST,TOTAL TRUST,BALANCE SHEET,FINANCE - BALANCE SHEET,DEBTORS,119405,Dr Vat Debtor,156000,Vat Debtor < One Year,1000,Default Value,1000,Default Value,Accounted,Fully Paid,"204,590.51",03/03/2023
York and Scarborough Teaching Hospitals NHS Foundation Trust BU,1123248203,6727960,STANDARD,27/01/2023,"204,590.51",02/02/2023,RCBNFAIRBURNC1,NHS OTHER,NHS Supply Chain Co-ordination Limited,DE55 4QJ,DE55 4QJ,"34,089.46",3,TAX,NEP VAT REGIME - VAT TAX,STD,,,,,TOTAL TRUST,TOTAL TRUST,BALANCE SHEET,FINANCE - BALANCE SHEET,MISC SUSPENSE,119562,Rsc Stores Issue Control,252000,Other Creditors < One Year,1999,Other Nhs Organisations,1000,Default Value,Accounted,Fully Paid,"204,590.51",03/03/2023
York and Scarborough Teaching Hospitals NHS Foundation Trust BU,1123248203,6727960,STANDARD,27/01/2023,"204,590.51",02/02/2023,RCBNFAIRBURNC1,NHS OTHER,NHS Supply Chain Co-ordination Limited,DE55 4QJ,DE55 4QJ,0.00,4,TAX,NEP VAT REGIME - VAT TAX,ZERO,,,,,TOTAL TRUST,TOTAL TRUST,BALANCE SHEET,FINANCE - BALANCE SHEET,MISC SUSPENSE,119562,Rsc Stores Issue Control,252000,Other Creditors < One Year,1999,Other Nhs Organisations,1000,Default Value,Accounted,Fully Paid,"204,590.51",03/03/2023
York and Scarborough Teaching Hospitals NHS Foundation Trust BU,1123248203,6727960,STANDARD,27/01/2023,"204,590.51",02/02/2023,RCBNFAIRBURNC1,NHS OTHER,NHS Supply Chain Co-ordination Limited,DE55 4QJ,DE55 4QJ,0.00,4,TAX,NEP VAT REGIME - VAT TAX,ZERO,,,,,TOTAL TRUST,TOTAL TRUST,BALANCE SHEET,FINANCE - BALANCE SHEET,DEBTORS,119405,Dr Vat Debtor,156000,Vat Debtor < One Year,1000,Default Value,1000,Default Value,Accounted,Fully Paid,"204,590.51",03/03/2023
York and Scarborough Teaching Hospitals NHS Foundation Trust BU,1123250852,6734425,STANDARD,03/02/2023,"159,246.15",27/02/2023,RCBNSHAWJ2,NHS OTHER,NHS Supply Chain Co-ordination Limited,DE55 4QJ,DE55 4QJ,"1,021.03",1,ITEM,,,,,,,TOTAL TRUST,TOTAL TRUST,BALANCE SHEET,FINANCE - BALANCE SHEET,MISC SUSPENSE,119562,Rsc Stores Issue Control,252000,Other Creditors < One Year,1999,Other Nhs Organisations,1000,Default Value,Accounted,Fully Paid,"159,246.15",03/03/2023
York and Scarborough Teaching Hospitals NHS Foundation Trust BU,1123250852,6734425,STANDARD,03/02/2023,"159,246.15",27/02/2023,RCBNSHAWJ2,NHS OTHER,NHS Supply Chain Co-ordination Limited,DE55 4QJ,DE55 4QJ,"131,791.47",2,ITEM,,,,,,,TOTAL TRUST,TOTAL TRUST,BALANCE SHEET,FINANCE - BALANCE SHEET,MISC SUSPENSE,119562,Rsc Stores Issue Control,252000,Other Creditors < One Year,1999,Other Nhs Organisations,1000,Default Value,Accounted,Fully Paid,"159,246.15",03/03/2023
York and Scarborough Teaching Hospitals NHS Foundation Trust BU,1123250852,6734425,STANDARD,03/02/2023,"159,246.15",27/02/2023,RCBNSHAWJ2,NHS OTHER,NHS Supply Chain Co-ordination Limited,DE55 4QJ,DE55 4QJ,70.92,3,ITEM,,,,,,,TOTAL TRUST,TOTAL TRUST,BALANCE SHEET,FINANCE - BALANCE SHEET,MISC SUSPENSE,119562,Rsc Stores Issue Control,252000,Other Creditors < One Year,1999,Other Nhs Organisations,1000,Default Value,Accounted,Fully Paid,"159,246.15",03/03/2023
York and Scarborough Teaching Hospitals NHS Foundation Trust BU,1123250852,6734425,STANDARD,03/02/2023,"159,246.15",27/02/2023,RCBNSHAWJ2,NHS OTHER,NHS Supply Chain Co-ordination Limited,DE55 4QJ,DE55 4QJ,0.00,4,TAX,NEP VAT REGIME - VAT TAX,STD,,,,,TOTAL TRUST,TOTAL TRUST,BALANCE SHEET,FINANCE - BALANCE SHEET,DEBTORS,119405,Dr Vat Debtor,156000,Vat Debtor < One Year,1000,Default Value,1000,Default Value,Accounted,Fully Paid,"159,246.15",03/03/2023
York and Scarborough Teaching Hospitals NHS Foundation Trust BU,1123250852,6734425,STANDARD,03/02/2023,"159,246.15",27/02/2023,RCBNSHAWJ2,NHS OTHER,NHS Supply Chain Co-ordination Limited,DE55 4QJ,DE55 4QJ,"26,358.29",4,TAX,NEP VAT REGIME - VAT TAX,STD,,,,,TOTAL TRUST,TOTAL TRUST,BALANCE SHEET,FINANCE - BALANCE SHEET,MISC SUSPENSE,119562,Rsc Stores Issue Control,252000,Other Creditors < One Year,1999,Other Nhs Organisations,1000,Default Value,Accounted,Fully Paid,"159,246.15",03/03/2023
York and Scarborough Teaching Hospitals NHS Foundation Trust BU,1123250852,6734425,STANDARD,03/02/2023,"159,246.15",27/02/2023,RCBNSHAWJ2,NHS OTHER,NHS Supply Chain Co-ordination Limited,DE55 4QJ,DE55 4QJ,"26,359.18",4,TAX,NEP VAT REGIME - VAT TAX,STD,,,,,TOTAL TRUST,TOTAL TRUST,BALANCE SHEET,FINANCE - BALANCE SHEET,MISC SUSPENSE,119562,Rsc Stores Issue Control,252000,Other Creditors < One Year,1999,Other Nhs Organisations,1000,Default Value,Accounted,Fully Paid,"159,246.15",03/03/2023
York and Scarborough Teaching Hospitals NHS Foundation Trust BU,1123250852,6734425,STANDARD,03/02/2023,"159,246.15",27/02/2023,RCBNSHAWJ2,NHS OTHER,NHS Supply Chain Co-ordination Limited,DE55 4QJ,DE55 4QJ,"-26,358.29",4,TAX,NEP VAT REGIME - VAT TAX,STD,,,,,TOTAL TRUST,TOTAL TRUST,BALANCE SHEET,FINANCE - BALANCE SHEET,MISC SUSPENSE,119562,Rsc Stores Issue Control,252000,Other Creditors < One Year,1999,Other Nhs Organisations,1000,Default Value,Accounted,Fully Paid,"159,246.15",03/03/2023
York and Scarborough Teaching Hospitals NHS Foundation Trust BU,1123250852,6734425,STANDARD,03/02/2023,"159,246.15",27/02/2023,RCBNSHAWJ2,NHS OTHER,NHS Supply Chain Co-ordination Limited,DE55 4QJ,DE55 4QJ,0.00,4,TAX,NEP VAT REGIME - VAT TAX,STD,,,,,TOTAL TRUST,TOTAL TRUST,BALANCE SHEET,FINANCE - BALANCE SHEET,DEBTORS,119405,Dr Vat Debtor,156000,Vat Debtor < One Year,1000,Default Value,1000,Default Value,Accounted,Fully Paid,"159,246.15",03/03/2023
York and Scarborough Teaching Hospitals NHS Foundation Trust BU,1123250852,6734425,STANDARD,03/02/2023,"159,246.15",27/02/2023,RCBNSHAWJ2,NHS OTHER,NHS Supply Chain Co-ordination Limited,DE55 4QJ,DE55 4QJ,0.00,4,TAX,NEP VAT REGIME - VAT TAX,STD,,,,,TOTAL TRUST,TOTAL TRUST,BALANCE SHEET,FINANCE - BALANCE SHEET,DEBTORS,119405,Dr Vat Debtor,156000,Vat Debtor < One Year,1000,Default Value,1000,Default Value,Accounted,Fully Paid,"159,246.15",03/03/2023
York and Scarborough Teaching Hospitals NHS Foundation Trust BU,1123250852,6734425,STANDARD,03/02/2023,"159,246.15",27/02/2023,RCBNSHAWJ2,NHS OTHER,NHS Supply Chain Co-ordination Limited,DE55 4QJ,DE55 4QJ,0.00,5,TAX,NEP VAT REGIME - VAT TAX,ZERO,,,,,TOTAL TRUST,TOTAL TRUST,BALANCE SHEET,FINANCE - BALANCE SHEET,DEBTORS,119405,Dr Vat Debtor,156000,Vat Debtor < One Year,1000,Default Value,1000,Default Value,Accounted,Fully Paid,"159,246.15",03/03/2023
York and Scarborough Teaching Hospitals NHS Foundation Trust BU,1123250852,6734425,STANDARD,03/02/2023,"159,246.15",27/02/2023,RCBNSHAWJ2,NHS OTHER,NHS Supply Chain Co-ordination Limited,DE55 4QJ,DE55 4QJ,0.00,5,TAX,NEP VAT REGIME - VAT TAX,ZERO,,,,,TOTAL TRUST,TOTAL TRUST,BALANCE SHEET,FINANCE - BALANCE SHEET,MISC SUSPENSE,119562,Rsc Stores Issue Control,252000,Other Creditors < One Year,1999,Other Nhs Organisations,1000,Default Value,Accounted,Fully Paid,"159,246.15",03/03/2023
York and Scarborough Teaching Hospitals NHS Foundation Trust BU,1123250852,6734425,STANDARD,03/02/2023,"159,246.15",27/02/2023,RCBNSHAWJ2,NHS OTHER,NHS Supply Chain Co-ordination Limited,DE55 4QJ,DE55 4QJ,3.55,6,TAX,NEP VAT REGIME - VAT TAX,5,,,,,TOTAL TRUST,TOTAL TRUST,BALANCE SHEET,FINANCE - BALANCE SHEET,MISC SUSPENSE,119562,Rsc Stores Issue Control,252000,Other Creditors < One Year,1999,Other Nhs Organisations,1000,Default Value,Accounted,Fully Paid,"159,246.15",03/03/2023
York and Scarborough Teaching Hospitals NHS Foundation Trust BU,1123250852,6734425,STANDARD,03/02/2023,"159,246.15",27/02/2023,RCBNSHAWJ2,NHS OTHER,NHS Supply Chain Co-ordination Limited,DE55 4QJ,DE55 4QJ,0.00,6,TAX,NEP VAT REGIME - VAT TAX,5,,,,,TOTAL TRUST,TOTAL TRUST,BALANCE SHEET,FINANCE - BALANCE SHEET,DEBTORS,119405,Dr Vat Debtor,156000,Vat Debtor < One Year,1000,Default Value,1000,Default Value,Accounted,Fully Paid,"159,246.15",03/03/2023
York and Scarborough Teaching Hospitals NHS Foundation Trust BU,1123255474,6734424,STANDARD,03/02/2023,"305,221.92",27/02/2023,RCBNSHAWJ2,NHS OTHER,NHS Supply Chain Co-ordination Limited,DE55 4QJ,DE55 4QJ,543.84,1,ITEM,,,,,,,TOTAL TRUST,TOTAL TRUST,BALANCE SHEET,FINANCE - BALANCE SHEET,MISC SUSPENSE,119562,Rsc Stores Issue Control,252000,Other Creditors < One Year,1999,Other Nhs Organisations,1000,Default Value,Accounted,Fully Paid,"305,221.92",03/03/2023
York and Scarborough Teaching Hospitals NHS Foundation Trust BU,1123255474,6734424,STANDARD,03/02/2023,"305,221.92",27/02/2023,RCBNSHAWJ2,NHS OTHER,NHS Supply Chain Co-ordination Limited,DE55 4QJ,DE55 4QJ,"253,898.38",2,ITEM,,,,,,,TOTAL TRUST,TOTAL TRUST,BALANCE SHEET,FINANCE - BALANCE SHEET,MISC SUSPENSE,119562,Rsc Stores Issue Control,252000,Other Creditors < One Year,1999,Other Nhs Organisations,1000,Default Value,Accounted,Fully Paid,"305,221.92",03/03/2023
York and Scarborough Teaching Hospitals NHS Foundation Trust BU,1123255474,6734424,STANDARD,03/02/2023,"305,221.92",27/02/2023,RCBNSHAWJ2,NHS OTHER,NHS Supply Chain Co-ordination Limited,DE55 4QJ,DE55 4QJ,"-50,779.68",3,TAX,NEP VAT REGIME - VAT TAX,STD,,,,,TOTAL TRUST,TOTAL TRUST,BALANCE SHEET,FINANCE - BALANCE SHEET,MISC SUSPENSE,119562,Rsc Stores Issue Control,252000,Other Creditors < One Year,1999,Other Nhs Organisations,1000,Default Value,Accounted,Fully Paid,"305,221.92",03/03/2023
York and Scarborough Teaching Hospitals NHS Foundation Trust BU,1123255474,6734424,STANDARD,03/02/2023,"305,221.92",27/02/2023,RCBNSHAWJ2,NHS OTHER,NHS Supply Chain Co-ordination Limited,DE55 4QJ,DE55 4QJ,0.00,3,TAX,NEP VAT REGIME - VAT TAX,STD,,,,,TOTAL TRUST,TOTAL TRUST,BALANCE SHEET,FINANCE - BALANCE SHEET,DEBTORS,119405,Dr Vat Debtor,156000,Vat Debtor < One Year,1000,Default Value,1000,Default Value,Accounted,Fully Paid,"305,221.92",03/03/2023
York and Scarborough Teaching Hospitals NHS Foundation Trust BU,1123255474,6734424,STANDARD,03/02/2023,"305,221.92",27/02/2023,RCBNSHAWJ2,NHS OTHER,NHS Supply Chain Co-ordination Limited,DE55 4QJ,DE55 4QJ,0.00,3,TAX,NEP VAT REGIME - VAT TAX,STD,,,,,TOTAL TRUST,TOTAL TRUST,BALANCE SHEET,FINANCE - BALANCE SHEET,DEBTORS,119405,Dr Vat Debtor,156000,Vat Debtor < One Year,1000,Default Value,1000,Default Value,Accounted,Fully Paid,"305,221.92",03/03/2023
York and Scarborough Teaching Hospitals NHS Foundation Trust BU,1123255474,6734424,STANDARD,03/02/2023,"305,221.92",27/02/2023,RCBNSHAWJ2,NHS OTHER,NHS Supply Chain Co-ordination Limited,DE55 4QJ,DE55 4QJ,"50,779.68",3,TAX,NEP VAT REGIME - VAT TAX,STD,,,,,TOTAL TRUST,TOTAL TRUST,BALANCE SHEET,FINANCE - BALANCE SHEET,MISC SUSPENSE,119562,Rsc Stores Issue Control,252000,Other Creditors < One Year,1999,Other Nhs Organisations,1000,Default Value,Accounted,Fully Paid,"305,221.92",03/03/2023
York and Scarborough Teaching Hospitals NHS Foundation Trust BU,1123255474,6734424,STANDARD,03/02/2023,"305,221.92",27/02/2023,RCBNSHAWJ2,NHS OTHER,NHS Supply Chain Co-ordination Limited,DE55 4QJ,DE55 4QJ,"50,779.70",3,TAX,NEP VAT REGIME - VAT TAX,STD,,,,,TOTAL TRUST,TOTAL TRUST,BALANCE SHEET,FINANCE - BALANCE SHEET,MISC SUSPENSE,119562,Rsc Stores Issue Control,252000,Other Creditors < One Year,1999,Other Nhs Organisations,1000,Default Value,Accounted,Fully Paid,"305,221.92",03/03/2023
York and Scarborough Teaching Hospitals NHS Foundation Trust BU,1123255474,6734424,STANDARD,03/02/2023,"305,221.92",27/02/2023,RCBNSHAWJ2,NHS OTHER,NHS Supply Chain Co-ordination Limited,DE55 4QJ,DE55 4QJ,0.00,3,TAX,NEP VAT REGIME - VAT TAX,STD,,,,,TOTAL TRUST,TOTAL TRUST,BALANCE SHEET,FINANCE - BALANCE SHEET,DEBTORS,119405,Dr Vat Debtor,156000,Vat Debtor < One Year,1000,Default Value,1000,Default Value,Accounted,Fully Paid,"305,221.92",03/03/2023
York and Scarborough Teaching Hospitals NHS Foundation Trust BU,1123255474,6734424,STANDARD,03/02/2023,"305,221.92",27/02/2023,RCBNSHAWJ2,NHS OTHER,NHS Supply Chain Co-ordination Limited,DE55 4QJ,DE55 4QJ,0.00,4,TAX,NEP VAT REGIME - VAT TAX,ZERO,,,,,TOTAL TRUST,TOTAL TRUST,BALANCE SHEET,FINANCE - BALANCE SHEET,MISC SUSPENSE,119562,Rsc Stores Issue Control,252000,Other Creditors < One Year,1999,Other Nhs Organisations,1000,Default Value,Accounted,Fully Paid,"305,221.92",03/03/2023
York and Scarborough Teaching Hospitals NHS Foundation Trust BU,1123255474,6734424,STANDARD,03/02/2023,"305,221.92",27/02/2023,RCBNSHAWJ2,NHS OTHER,NHS Supply Chain Co-ordination Limited,DE55 4QJ,DE55 4QJ,0.00,4,TAX,NEP VAT REGIME - VAT TAX,ZERO,,,,,TOTAL TRUST,TOTAL TRUST,BALANCE SHEET,FINANCE - BALANCE SHEET,DEBTORS,119405,Dr Vat Debtor,156000,Vat Debtor < One Year,1000,Default Value,1000,Default Value,Accounted,Fully Paid,"305,221.92",03/03/2023
York and Scarborough Teaching Hospitals NHS Foundation Trust BU,1123256081,6734423,STANDARD,10/02/2023,"160,615.76",14/02/2023,RCBNFAIRBURNC1,NHS OTHER,NHS Supply Chain Co-ordination Limited,DE55 4QJ,DE55 4QJ,906.44,1,ITEM,NHS Product Sales Summary,,,,,,TOTAL TRUST,TOTAL TRUST,BALANCE SHEET,FINANCE - BALANCE SHEET,MISC SUSPENSE,119562,Rsc Stores Issue Control,252000,Other Creditors < One Year,1999,Other Nhs Organisations,1000,Default Value,Accounted,Fully Paid,"160,615.76",10/03/2023
York and Scarborough Teaching Hospitals NHS Foundation Trust BU,1123256081,6734423,STANDARD,10/02/2023,"160,615.76",14/02/2023,RCBNFAIRBURNC1,NHS OTHER,NHS Supply Chain Co-ordination Limited,DE55 4QJ,DE55 4QJ,"133,028.23",2,ITEM,NHS Product Sales Summary,,,,,,TOTAL TRUST,TOTAL TRUST,BALANCE SHEET,FINANCE - BALANCE SHEET,MISC SUSPENSE,119562,Rsc Stores Issue Control,252000,Other Creditors < One Year,1999,Other Nhs Organisations,1000,Default Value,Accounted,Fully Paid,"160,615.76",10/03/2023
York and Scarborough Teaching Hospitals NHS Foundation Trust BU,1123256081,6734423,STANDARD,10/02/2023,"160,615.76",14/02/2023,RCBNFAIRBURNC1,NHS OTHER,NHS Supply Chain Co-ordination Limited,DE55 4QJ,DE55 4QJ,70.92,3,ITEM,NHS Product Sales Summary,,,,,,TOTAL TRUST,TOTAL TRUST,BALANCE SHEET,FINANCE - BALANCE SHEET,MISC SUSPENSE,119562,Rsc Stores Issue Control,252000,Other Creditors < One Year,1999,Other Nhs Organisations,1000,Default Value,Accounted,Fully Paid,"160,615.76",10/03/2023
York and Scarborough Teaching Hospitals NHS Foundation Trust BU,1123256081,6734423,STANDARD,10/02/2023,"160,615.76",14/02/2023,RCBNFAIRBURNC1,NHS OTHER,NHS Supply Chain Co-ordination Limited,DE55 4QJ,DE55 4QJ,0.00,4,TAX,NEP VAT REGIME - VAT TAX,STD,,,,,TOTAL TRUST,TOTAL TRUST,BALANCE SHEET,FINANCE - BALANCE SHEET,DEBTORS,119405,Dr Vat Debtor,156000,Vat Debtor < One Year,1000,Default Value,1000,Default Value,Accounted,Fully Paid,"160,615.76",10/03/2023
York and Scarborough Teaching Hospitals NHS Foundation Trust BU,1123256081,6734423,STANDARD,10/02/2023,"160,615.76",14/02/2023,RCBNFAIRBURNC1,NHS OTHER,NHS Supply Chain Co-ordination Limited,DE55 4QJ,DE55 4QJ,0.00,4,TAX,NEP VAT REGIME - VAT TAX,STD,,,,,TOTAL TRUST,TOTAL TRUST,BALANCE SHEET,FINANCE - BALANCE SHEET,DEBTORS,119405,Dr Vat Debtor,156000,Vat Debtor < One Year,1000,Default Value,1000,Default Value,Accounted,Fully Paid,"160,615.76",10/03/2023
York and Scarborough Teaching Hospitals NHS Foundation Trust BU,1123256081,6734423,STANDARD,10/02/2023,"160,615.76",14/02/2023,RCBNFAIRBURNC1,NHS OTHER,NHS Supply Chain Co-ordination Limited,DE55 4QJ,DE55 4QJ,"-26,605.62",4,TAX,NEP VAT REGIME - VAT TAX,STD,,,,,TOTAL TRUST,TOTAL TRUST,BALANCE SHEET,FINANCE - BALANCE SHEET,MISC SUSPENSE,119562,Rsc Stores Issue Control,252000,Other Creditors < One Year,1999,Other Nhs Organisations,1000,Default Value,Accounted,Fully Paid,"160,615.76",10/03/2023
York and Scarborough Teaching Hospitals NHS Foundation Trust BU,1123256081,6734423,STANDARD,10/02/2023,"160,615.76",14/02/2023,RCBNFAIRBURNC1,NHS OTHER,NHS Supply Chain Co-ordination Limited,DE55 4QJ,DE55 4QJ,"26,606.62",4,TAX,NEP VAT REGIME - VAT TAX,STD,,,,,TOTAL TRUST,TOTAL TRUST,BALANCE SHEET,FINANCE - BALANCE SHEET,MISC SUSPENSE,119562,Rsc Stores Issue Control,252000,Other Creditors < One Year,1999,Other Nhs Organisations,1000,Default Value,Accounted,Fully Paid,"160,615.76",10/03/2023
York and Scarborough Teaching Hospitals NHS Foundation Trust BU,1123256081,6734423,STANDARD,10/02/2023,"160,615.76",14/02/2023,RCBNFAIRBURNC1,NHS OTHER,NHS Supply Chain Co-ordination Limited,DE55 4QJ,DE55 4QJ,0.00,4,TAX,NEP VAT REGIME - VAT TAX,STD,,,,,TOTAL TRUST,TOTAL TRUST,BALANCE SHEET,FINANCE - BALANCE SHEET,DEBTORS,119405,Dr Vat Debtor,156000,Vat Debtor < One Year,1000,Default Value,1000,Default Value,Accounted,Fully Paid,"160,615.76",10/03/2023
York and Scarborough Teaching Hospitals NHS Foundation Trust BU,1123256081,6734423,STANDARD,10/02/2023,"160,615.76",14/02/2023,RCBNFAIRBURNC1,NHS OTHER,NHS Supply Chain Co-ordination Limited,DE55 4QJ,DE55 4QJ,"26,605.65",4,TAX,NEP VAT REGIME - VAT TAX,STD,,,,,TOTAL TRUST,TOTAL TRUST,BALANCE SHEET,FINANCE - BALANCE SHEET,MISC SUSPENSE,119562,Rsc Stores Issue Control,252000,Other Creditors < One Year,1999,Other Nhs Organisations,1000,Default Value,Accounted,Fully Paid,"160,615.76",10/03/2023
York and Scarborough Teaching Hospitals NHS Foundation Trust BU,1123256081,6734423,STANDARD,10/02/2023,"160,615.76",14/02/2023,RCBNFAIRBURNC1,NHS OTHER,NHS Supply Chain Co-ordination Limited,DE55 4QJ,DE55 4QJ,"26,605.62",4,TAX,NEP VAT REGIME - VAT TAX,STD,,,,,TOTAL TRUST,TOTAL TRUST,BALANCE SHEET,FINANCE - BALANCE SHEET,MISC SUSPENSE,119562,Rsc Stores Issue Control,252000,Other Creditors < One Year,1999,Other Nhs Organisations,1000,Default Value,Accounted,Fully Paid,"160,615.76",10/03/2023
York and Scarborough Teaching Hospitals NHS Foundation Trust BU,1123256081,6734423,STANDARD,10/02/2023,"160,615.76",14/02/2023,RCBNFAIRBURNC1,NHS OTHER,NHS Supply Chain Co-ordination Limited,DE55 4QJ,DE55 4QJ,"-26,605.65",4,TAX,NEP VAT REGIME - VAT TAX,STD,,,,,TOTAL TRUST,TOTAL TRUST,BALANCE SHEET,FINANCE - BALANCE SHEET,MISC SUSPENSE,119562,Rsc Stores Issue Control,252000,Other Creditors < One Year,1999,Other Nhs Organisations,1000,Default Value,Accounted,Fully Paid,"160,615.76",10/03/2023
York and Scarborough Teaching Hospitals NHS Foundation Trust BU,1123256081,6734423,STANDARD,10/02/2023,"160,615.76",14/02/2023,RCBNFAIRBURNC1,NHS OTHER,NHS Supply Chain Co-ordination Limited,DE55 4QJ,DE55 4QJ,0.00,4,TAX,NEP VAT REGIME - VAT TAX,STD,,,,,TOTAL TRUST,TOTAL TRUST,BALANCE SHEET,FINANCE - BALANCE SHEET,DEBTORS,119405,Dr Vat Debtor,156000,Vat Debtor < One Year,1000,Default Value,1000,Default Value,Accounted,Fully Paid,"160,615.76",10/03/2023
York and Scarborough Teaching Hospitals NHS Foundation Trust BU,1123256081,6734423,STANDARD,10/02/2023,"160,615.76",14/02/2023,RCBNFAIRBURNC1,NHS OTHER,NHS Supply Chain Co-ordination Limited,DE55 4QJ,DE55 4QJ,0.00,4,TAX,NEP VAT REGIME - VAT TAX,STD,,,,,TOTAL TRUST,TOTAL TRUST,BALANCE SHEET,FINANCE - BALANCE SHEET,DEBTORS,119405,Dr Vat Debtor,156000,Vat Debtor < One Year,1000,Default Value,1000,Default Value,Accounted,Fully Paid,"160,615.76",10/03/2023
York and Scarborough Teaching Hospitals NHS Foundation Trust BU,1123256081,6734423,STANDARD,10/02/2023,"160,615.76",14/02/2023,RCBNFAIRBURNC1,NHS OTHER,NHS Supply Chain Co-ordination Limited,DE55 4QJ,DE55 4QJ,0.00,5,TAX,NEP VAT REGIME - VAT TAX,ZERO,,,,,TOTAL TRUST,TOTAL TRUST,BALANCE SHEET,FINANCE - BALANCE SHEET,MISC SUSPENSE,119562,Rsc Stores Issue Control,252000,Other Creditors < One Year,1999,Other Nhs Organisations,1000,Default Value,Accounted,Fully Paid,"160,615.76",10/03/2023
York and Scarborough Teaching Hospitals NHS Foundation Trust BU,1123256081,6734423,STANDARD,10/02/2023,"160,615.76",14/02/2023,RCBNFAIRBURNC1,NHS OTHER,NHS Supply Chain Co-ordination Limited,DE55 4QJ,DE55 4QJ,0.00,5,TAX,NEP VAT REGIME - VAT TAX,ZERO,,,,,TOTAL TRUST,TOTAL TRUST,BALANCE SHEET,FINANCE - BALANCE SHEET,DEBTORS,119405,Dr Vat Debtor,156000,Vat Debtor < One Year,1000,Default Value,1000,Default Value,Accounted,Fully Paid,"160,615.76",10/03/2023
York and Scarborough Teaching Hospitals NHS Foundation Trust BU,1123256081,6734423,STANDARD,10/02/2023,"160,615.76",14/02/2023,RCBNFAIRBURNC1,NHS OTHER,NHS Supply Chain Co-ordination Limited,DE55 4QJ,DE55 4QJ,3.55,6,TAX,NEP VAT REGIME - VAT TAX,5,,,,,TOTAL TRUST,TOTAL TRUST,BALANCE SHEET,FINANCE - BALANCE SHEET,MISC SUSPENSE,119562,Rsc Stores Issue Control,252000,Other Creditors < One Year,1999,Other Nhs Organisations,1000,Default Value,Accounted,Fully Paid,"160,615.76",10/03/2023
York and Scarborough Teaching Hospitals NHS Foundation Trust BU,1123256081,6734423,STANDARD,10/02/2023,"160,615.76",14/02/2023,RCBNFAIRBURNC1,NHS OTHER,NHS Supply Chain Co-ordination Limited,DE55 4QJ,DE55 4QJ,0.00,6,TAX,NEP VAT REGIME - VAT TAX,5,,,,,TOTAL TRUST,TOTAL TRUST,BALANCE SHEET,FINANCE - BALANCE SHEET,DEBTORS,119405,Dr Vat Debtor,156000,Vat Debtor < One Year,1000,Default Value,1000,Default Value,Accounted,Fully Paid,"160,615.76",10/03/2023
York and Scarborough Teaching Hospitals NHS Foundation Trust BU,1123262006,6734419,STANDARD,10/02/2023,"340,975.43",14/02/2023,RCBNFAIRBURNC1,NHS OTHER,NHS Supply Chain Co-ordination Limited,DE55 4QJ,DE55 4QJ,87.00,1,ITEM,All NHS Product Sales,,,,,,TOTAL TRUST,TOTAL TRUST,BALANCE SHEET,FINANCE - BALANCE SHEET,MISC SUSPENSE,119562,Rsc Stores Issue Control,252000,Other Creditors < One Year,1999,Other Nhs Organisations,1000,Default Value,Accounted,Fully Paid,"340,975.43",10/03/2023
York and Scarborough Teaching Hospitals NHS Foundation Trust BU,1123262006,6734419,STANDARD,10/02/2023,"340,975.43",14/02/2023,RCBNFAIRBURNC1,NHS OTHER,NHS Supply Chain Co-ordination Limited,DE55 4QJ,DE55 4QJ,"284,073.73",2,ITEM,All NHS Product Sales,,,,,,TOTAL TRUST,TOTAL TRUST,BALANCE SHEET,FINANCE - BALANCE SHEET,MISC SUSPENSE,119562,Rsc Stores Issue Control,252000,Other Creditors < One Year,1999,Other Nhs Organisations,1000,Default Value,Accounted,Fully Paid,"340,975.43",10/03/2023
York and Scarborough Teaching Hospitals NHS Foundation Trust BU,1123262006,6734419,STANDARD,10/02/2023,"340,975.43",14/02/2023,RCBNFAIRBURNC1,NHS OTHER,NHS Supply Chain Co-ordination Limited,DE55 4QJ,DE55 4QJ,0.00,3,TAX,NEP VAT REGIME - VAT TAX,STD,,,,,TOTAL TRUST,TOTAL TRUST,BALANCE SHEET,FINANCE - BALANCE SHEET,DEBTORS,119405,Dr Vat Debtor,156000,Vat Debtor < One Year,1000,Default Value,1000,Default Value,Accounted,Fully Paid,"340,975.43",10/03/2023
York and Scarborough Teaching Hospitals NHS Foundation Trust BU,1123262006,6734419,STANDARD,10/02/2023,"340,975.43",14/02/2023,RCBNFAIRBURNC1,NHS OTHER,NHS Supply Chain Co-ordination Limited,DE55 4QJ,DE55 4QJ,"56,814.75",3,TAX,NEP VAT REGIME - VAT TAX,STD,,,,,TOTAL TRUST,TOTAL TRUST,BALANCE SHEET,FINANCE - BALANCE SHEET,MISC SUSPENSE,119562,Rsc Stores Issue Control,252000,Other Creditors < One Year,1999,Other Nhs Organisations,1000,Default Value,Accounted,Fully Paid,"340,975.43",10/03/2023
York and Scarborough Teaching Hospitals NHS Foundation Trust BU,1123262006,6734419,STANDARD,10/02/2023,"340,975.43",14/02/2023,RCBNFAIRBURNC1,NHS OTHER,NHS Supply Chain Co-ordination Limited,DE55 4QJ,DE55 4QJ,0.00,3,TAX,NEP VAT REGIME - VAT TAX,STD,,,,,TOTAL TRUST,TOTAL TRUST,BALANCE SHEET,FINANCE - BALANCE SHEET,DEBTORS,119405,Dr Vat Debtor,156000,Vat Debtor < One Year,1000,Default Value,1000,Default Value,Accounted,Fully Paid,"340,975.43",10/03/2023
York and Scarborough Teaching Hospitals NHS Foundation Trust BU,1123262006,6734419,STANDARD,10/02/2023,"340,975.43",14/02/2023,RCBNFAIRBURNC1,NHS OTHER,NHS Supply Chain Co-ordination Limited,DE55 4QJ,DE55 4QJ,"-56,814.75",3,TAX,NEP VAT REGIME - VAT TAX,STD,,,,,TOTAL TRUST,TOTAL TRUST,BALANCE SHEET,FINANCE - BALANCE SHEET,MISC SUSPENSE,119562,Rsc Stores Issue Control,252000,Other Creditors < One Year,1999,Other Nhs Organisations,1000,Default Value,Accounted,Fully Paid,"340,975.43",10/03/2023
York and Scarborough Teaching Hospitals NHS Foundation Trust BU,1123262006,6734419,STANDARD,10/02/2023,"340,975.43",14/02/2023,RCBNFAIRBURNC1,NHS OTHER,NHS Supply Chain Co-ordination Limited,DE55 4QJ,DE55 4QJ,"56,814.70",3,TAX,NEP VAT REGIME - VAT TAX,STD,,,,,TOTAL TRUST,TOTAL TRUST,BALANCE SHEET,FINANCE - BALANCE SHEET,MISC SUSPENSE,119562,Rsc Stores Issue Control,252000,Other Creditors < One Year,1999,Other Nhs Organisations,1000,Default Value,Accounted,Fully Paid,"340,975.43",10/03/2023
York and Scarborough Teaching Hospitals NHS Foundation Trust BU,1123262006,6734419,STANDARD,10/02/2023,"340,975.43",14/02/2023,RCBNFAIRBURNC1,NHS OTHER,NHS Supply Chain Co-ordination Limited,DE55 4QJ,DE55 4QJ,0.00,3,TAX,NEP VAT REGIME - VAT TAX,STD,,,,,TOTAL TRUST,TOTAL TRUST,BALANCE SHEET,FINANCE - BALANCE SHEET,DEBTORS,119405,Dr Vat Debtor,156000,Vat Debtor < One Year,1000,Default Value,1000,Default Value,Accounted,Fully Paid,"340,975.43",10/03/2023
York and Scarborough Teaching Hospitals NHS Foundation Trust BU,1123262006,6734419,STANDARD,10/02/2023,"340,975.43",14/02/2023,RCBNFAIRBURNC1,NHS OTHER,NHS Supply Chain Co-ordination Limited,DE55 4QJ,DE55 4QJ,0.00,4,TAX,NEP VAT REGIME - VAT TAX,ZERO,,,,,TOTAL TRUST,TOTAL TRUST,BALANCE SHEET,FINANCE - BALANCE SHEET,MISC SUSPENSE,119562,Rsc Stores Issue Control,252000,Other Creditors < One Year,1999,Other Nhs Organisations,1000,Default Value,Accounted,Fully Paid,"340,975.43",10/03/2023
York and Scarborough Teaching Hospitals NHS Foundation Trust BU,1123262006,6734419,STANDARD,10/02/2023,"340,975.43",14/02/2023,RCBNFAIRBURNC1,NHS OTHER,NHS Supply Chain Co-ordination Limited,DE55 4QJ,DE55 4QJ,0.00,4,TAX,NEP VAT REGIME - VAT TAX,ZERO,,,,,TOTAL TRUST,TOTAL TRUST,BALANCE SHEET,FINANCE - BALANCE SHEET,DEBTORS,119405,Dr Vat Debtor,156000,Vat Debtor < One Year,1000,Default Value,1000,Default Value,Accounted,Fully Paid,"340,975.43",10/03/2023
York and Scarborough Teaching Hospitals NHS Foundation Trust BU,1123271934,6743599,STANDARD,24/02/2023,"178,147.76",21/03/2023,RCBNSHAWJ2,NHS OTHER,NHS Supply Chain Co-ordination Limited,DE55 4QJ,DE55 4QJ,961.63,1,ITEM,,,,,,,TOTAL TRUST,TOTAL TRUST,BALANCE SHEET,FINANCE - BALANCE SHEET,MISC SUSPENSE,119562,Rsc Stores Issue Control,252000,Other Creditors < One Year,1999,Other Nhs Organisations,1000,Default Value,Accounted,Fully Paid,"178,147.76",24/03/2023
York and Scarborough Teaching Hospitals NHS Foundation Trust BU,1123271934,6743599,STANDARD,24/02/2023,"178,147.76",21/03/2023,RCBNSHAWJ2,NHS OTHER,NHS Supply Chain Co-ordination Limited,DE55 4QJ,DE55 4QJ,"147,628.75",2,ITEM,,,,,,,TOTAL TRUST,TOTAL TRUST,BALANCE SHEET,FINANCE - BALANCE SHEET,MISC SUSPENSE,119562,Rsc Stores Issue Control,252000,Other Creditors < One Year,1999,Other Nhs Organisations,1000,Default Value,Accounted,Fully Paid,"178,147.76",24/03/2023
York and Scarborough Teaching Hospitals NHS Foundation Trust BU,1123271934,6743599,STANDARD,24/02/2023,"178,147.76",21/03/2023,RCBNSHAWJ2,NHS OTHER,NHS Supply Chain Co-ordination Limited,DE55 4QJ,DE55 4QJ,28.92,3,ITEM,,,,,,,TOTAL TRUST,TOTAL TRUST,BALANCE SHEET,FINANCE - BALANCE SHEET,MISC SUSPENSE,119562,Rsc Stores Issue Control,252000,Other Creditors < One Year,1999,Other Nhs Organisations,1000,Default Value,Accounted,Fully Paid,"178,147.76",24/03/2023
York and Scarborough Teaching Hospitals NHS Foundation Trust BU,1123271934,6743599,STANDARD,24/02/2023,"178,147.76",21/03/2023,RCBNSHAWJ2,NHS OTHER,NHS Supply Chain Co-ordination Limited,DE55 4QJ,DE55 4QJ,"-295,257.01",4,TAX,NEP VAT REGIME - VAT TAX,STD,,,,,TOTAL TRUST,TOTAL TRUST,BALANCE SHEET,FINANCE - BALANCE SHEET,MISC SUSPENSE,119562,Rsc Stores Issue Control,252000,Other Creditors < One Year,1999,Other Nhs Organisations,1000,Default Value,Accounted,Fully Paid,"178,147.76",24/03/2023
York and Scarborough Teaching Hospitals NHS Foundation Trust BU,1123271934,6743599,STANDARD,24/02/2023,"178,147.76",21/03/2023,RCBNSHAWJ2,NHS OTHER,NHS Supply Chain Co-ordination Limited,DE55 4QJ,DE55 4QJ,"29,257.01",4,TAX,NEP VAT REGIME - VAT TAX,STD,,,,,TOTAL TRUST,TOTAL TRUST,BALANCE SHEET,FINANCE - BALANCE SHEET,MISC SUSPENSE,119562,Rsc Stores Issue Control,252000,Other Creditors < One Year,1999,Other Nhs Organisations,1000,Default Value,Accounted,Fully Paid,"178,147.76",24/03/2023
York and Scarborough Teaching Hospitals NHS Foundation Trust BU,1123271934,6743599,STANDARD,24/02/2023,"178,147.76",21/03/2023,RCBNSHAWJ2,NHS OTHER,NHS Supply Chain Co-ordination Limited,DE55 4QJ,DE55 4QJ,0.00,4,TAX,NEP VAT REGIME - VAT TAX,STD,,,,,TOTAL TRUST,TOTAL TRUST,BALANCE SHEET,FINANCE - BALANCE SHEET,DEBTORS,119405,Dr Vat Debtor,156000,Vat Debtor < One Year,1000,Default Value,1000,Default Value,Accounted,Fully Paid,"178,147.76",24/03/2023
York and Scarborough Teaching Hospitals NHS Foundation Trust BU,1123271934,6743599,STANDARD,24/02/2023,"178,147.76",21/03/2023,RCBNSHAWJ2,NHS OTHER,NHS Supply Chain Co-ordination Limited,DE55 4QJ,DE55 4QJ,0.00,4,TAX,NEP VAT REGIME - VAT TAX,STD,,,,,TOTAL TRUST,TOTAL TRUST,BALANCE SHEET,FINANCE - BALANCE SHEET,DEBTORS,119405,Dr Vat Debtor,156000,Vat Debtor < One Year,1000,Default Value,1000,Default Value,Accounted,Fully Paid,"178,147.76",24/03/2023
York and Scarborough Teaching Hospitals NHS Foundation Trust BU,1123271934,6743599,STANDARD,24/02/2023,"178,147.76",21/03/2023,RCBNSHAWJ2,NHS OTHER,NHS Supply Chain Co-ordination Limited,DE55 4QJ,DE55 4QJ,"-29,525.75",4,TAX,NEP VAT REGIME - VAT TAX,STD,,,,,TOTAL TRUST,TOTAL TRUST,BALANCE SHEET,FINANCE - BALANCE SHEET,MISC SUSPENSE,119562,Rsc Stores Issue Control,252000,Other Creditors < One Year,1999,Other Nhs Organisations,1000,Default Value,Accounted,Fully Paid,"178,147.76",24/03/2023
York and Scarborough Teaching Hospitals NHS Foundation Trust BU,1123271934,6743599,STANDARD,24/02/2023,"178,147.76",21/03/2023,RCBNSHAWJ2,NHS OTHER,NHS Supply Chain Co-ordination Limited,DE55 4QJ,DE55 4QJ,"295,257.01",4,TAX,NEP VAT REGIME - VAT TAX,STD,,,,,TOTAL TRUST,TOTAL TRUST,BALANCE SHEET,FINANCE - BALANCE SHEET,MISC SUSPENSE,119562,Rsc Stores Issue Control,252000,Other Creditors < One Year,1999,Other Nhs Organisations,1000,Default Value,Accounted,Fully Paid,"178,147.76",24/03/2023
York and Scarborough Teaching Hospitals NHS Foundation Trust BU,1123271934,6743599,STANDARD,24/02/2023,"178,147.76",21/03/2023,RCBNSHAWJ2,NHS OTHER,NHS Supply Chain Co-ordination Limited,DE55 4QJ,DE55 4QJ,0.00,4,TAX,NEP VAT REGIME - VAT TAX,STD,,,,,TOTAL TRUST,TOTAL TRUST,BALANCE SHEET,FINANCE - BALANCE SHEET,DEBTORS,119405,Dr Vat Debtor,156000,Vat Debtor < One Year,1000,Default Value,1000,Default Value,Accounted,Fully Paid,"178,147.76",24/03/2023
York and Scarborough Teaching Hospitals NHS Foundation Trust BU,1123271934,6743599,STANDARD,24/02/2023,"178,147.76",21/03/2023,RCBNSHAWJ2,NHS OTHER,NHS Supply Chain Co-ordination Limited,DE55 4QJ,DE55 4QJ,0.00,4,TAX,NEP VAT REGIME - VAT TAX,STD,,,,,TOTAL TRUST,TOTAL TRUST,BALANCE SHEET,FINANCE - BALANCE SHEET,DEBTORS,119405,Dr Vat Debtor,156000,Vat Debtor < One Year,1000,Default Value,1000,Default Value,Accounted,Fully Paid,"178,147.76",24/03/2023
York and Scarborough Teaching Hospitals NHS Foundation Trust BU,1123271934,6743599,STANDARD,24/02/2023,"178,147.76",21/03/2023,RCBNSHAWJ2,NHS OTHER,NHS Supply Chain Co-ordination Limited,DE55 4QJ,DE55 4QJ,"-29,257.01",4,TAX,NEP VAT REGIME - VAT TAX,STD,,,,,TOTAL TRUST,TOTAL TRUST,BALANCE SHEET,FINANCE - BALANCE SHEET,MISC SUSPENSE,119562,Rsc Stores Issue Control,252000,Other Creditors < One Year,1999,Other Nhs Organisations,1000,Default Value,Accounted,Fully Paid,"178,147.76",24/03/2023
York and Scarborough Teaching Hospitals NHS Foundation Trust BU,1123271934,6743599,STANDARD,24/02/2023,"178,147.76",21/03/2023,RCBNSHAWJ2,NHS OTHER,NHS Supply Chain Co-ordination Limited,DE55 4QJ,DE55 4QJ,"29,527.01",4,TAX,NEP VAT REGIME - VAT TAX,STD,,,,,TOTAL TRUST,TOTAL TRUST,BALANCE SHEET,FINANCE - BALANCE SHEET,MISC SUSPENSE,119562,Rsc Stores Issue Control,252000,Other Creditors < One Year,1999,Other Nhs Organisations,1000,Default Value,Accounted,Fully Paid,"178,147.76",24/03/2023
York and Scarborough Teaching Hospitals NHS Foundation Trust BU,1123271934,6743599,STANDARD,24/02/2023,"178,147.76",21/03/2023,RCBNSHAWJ2,NHS OTHER,NHS Supply Chain Co-ordination Limited,DE55 4QJ,DE55 4QJ,0.00,4,TAX,NEP VAT REGIME - VAT TAX,STD,,,,,TOTAL TRUST,TOTAL TRUST,BALANCE SHEET,FINANCE - BALANCE SHEET,DEBTORS,119405,Dr Vat Debtor,156000,Vat Debtor < One Year,1000,Default Value,1000,Default Value,Accounted,Fully Paid,"178,147.76",24/03/2023
York and Scarborough Teaching Hospitals NHS Foundation Trust BU,1123271934,6743599,STANDARD,24/02/2023,"178,147.76",21/03/2023,RCBNSHAWJ2,NHS OTHER,NHS Supply Chain Co-ordination Limited,DE55 4QJ,DE55 4QJ,0.00,4,TAX,NEP VAT REGIME - VAT TAX,STD,,,,,TOTAL TRUST,TOTAL TRUST,BALANCE SHEET,FINANCE - BALANCE SHEET,DEBTORS,119405,Dr Vat Debtor,156000,Vat Debtor < One Year,1000,Default Value,1000,Default Value,Accounted,Fully Paid,"178,147.76",24/03/2023
York and Scarborough Teaching Hospitals NHS Foundation Trust BU,1123271934,6743599,STANDARD,24/02/2023,"178,147.76",21/03/2023,RCBNSHAWJ2,NHS OTHER,NHS Supply Chain Co-ordination Limited,DE55 4QJ,DE55 4QJ,0.00,4,TAX,NEP VAT REGIME - VAT TAX,STD,,,,,TOTAL TRUST,TOTAL TRUST,BALANCE SHEET,FINANCE - BALANCE SHEET,DEBTORS,119405,Dr Vat Debtor,156000,Vat Debtor < One Year,1000,Default Value,1000,Default Value,Accounted,Fully Paid,"178,147.76",24/03/2023
York and Scarborough Teaching Hospitals NHS Foundation Trust BU,1123271934,6743599,STANDARD,24/02/2023,"178,147.76",21/03/2023,RCBNSHAWJ2,NHS OTHER,NHS Supply Chain Co-ordination Limited,DE55 4QJ,DE55 4QJ,"29,525.75",4,TAX,NEP VAT REGIME - VAT TAX,STD,,,,,TOTAL TRUST,TOTAL TRUST,BALANCE SHEET,FINANCE - BALANCE SHEET,MISC SUSPENSE,119562,Rsc Stores Issue Control,252000,Other Creditors < One Year,1999,Other Nhs Organisations,1000,Default Value,Accounted,Fully Paid,"178,147.76",24/03/2023
York and Scarborough Teaching Hospitals NHS Foundation Trust BU,1123271934,6743599,STANDARD,24/02/2023,"178,147.76",21/03/2023,RCBNSHAWJ2,NHS OTHER,NHS Supply Chain Co-ordination Limited,DE55 4QJ,DE55 4QJ,0.00,5,TAX,NEP VAT REGIME - VAT TAX,ZERO,,,,,TOTAL TRUST,TOTAL TRUST,BALANCE SHEET,FINANCE - BALANCE SHEET,MISC SUSPENSE,119562,Rsc Stores Issue Control,252000,Other Creditors < One Year,1999,Other Nhs Organisations,1000,Default Value,Accounted,Fully Paid,"178,147.76",24/03/2023
York and Scarborough Teaching Hospitals NHS Foundation Trust BU,1123271934,6743599,STANDARD,24/02/2023,"178,147.76",21/03/2023,RCBNSHAWJ2,NHS OTHER,NHS Supply Chain Co-ordination Limited,DE55 4QJ,DE55 4QJ,0.00,5,TAX,NEP VAT REGIME - VAT TAX,ZERO,,,,,TOTAL TRUST,TOTAL TRUST,BALANCE SHEET,FINANCE - BALANCE SHEET,DEBTORS,119405,Dr Vat Debtor,156000,Vat Debtor < One Year,1000,Default Value,1000,Default Value,Accounted,Fully Paid,"178,147.76",24/03/2023
York and Scarborough Teaching Hospitals NHS Foundation Trust BU,1123271934,6743599,STANDARD,24/02/2023,"178,147.76",21/03/2023,RCBNSHAWJ2,NHS OTHER,NHS Supply Chain Co-ordination Limited,DE55 4QJ,DE55 4QJ,0.00,6,TAX,NEP VAT REGIME - VAT TAX,5,,,,,TOTAL TRUST,TOTAL TRUST,BALANCE SHEET,FINANCE - BALANCE SHEET,DEBTORS,119405,Dr Vat Debtor,156000,Vat Debtor < One Year,1000,Default Value,1000,Default Value,Accounted,Fully Paid,"178,147.76",24/03/2023
York and Scarborough Teaching Hospitals NHS Foundation Trust BU,1123271934,6743599,STANDARD,24/02/2023,"178,147.76",21/03/2023,RCBNSHAWJ2,NHS OTHER,NHS Supply Chain Co-ordination Limited,DE55 4QJ,DE55 4QJ,1.45,6,TAX,NEP VAT REGIME - VAT TAX,5,,,,,TOTAL TRUST,TOTAL TRUST,BALANCE SHEET,FINANCE - BALANCE SHEET,MISC SUSPENSE,119562,Rsc Stores Issue Control,252000,Other Creditors < One Year,1999,Other Nhs Organisations,1000,Default Value,Accounted,Fully Paid,"178,147.76",24/03/2023
York Teaching Hospital Facilities Management LLP BU,1123272077,6095295,STANDARD,24/02/2023,"25,580.03",23/03/2023,RCBNLAYCOCKM1,NHS OTHER,NHS Supply Chain Co-ordination Limited,DE55 4QJ,DE55 4QJ,"18,698.13",1,ITEM,,,,,,,TOTAL TRUST,TOTAL TRUST,BALANCE SHEET,LLP FINANCE - BALANCE SHEET,LLP MISC SUSPENSE,219562,LLP Rsc Stores Issue Control,252000,Other Creditors < One Year,1999,Other Nhs Organisations,1000,Default Value,Accounted,Fully Paid,"25,580.03",31/03/2023
York Teaching Hospital Facilities Management LLP BU,1123272077,6095295,STANDARD,24/02/2023,"25,580.03",23/03/2023,RCBNLAYCOCKM1,NHS OTHER,NHS Supply Chain Co-ordination Limited,DE55 4QJ,DE55 4QJ,"3,142.19",2,ITEM,,,,,,,TOTAL TRUST,TOTAL TRUST,BALANCE SHEET,LLP FINANCE - BALANCE SHEET,LLP MISC SUSPENSE,219562,LLP Rsc Stores Issue Control,252000,Other Creditors < One Year,1999,Other Nhs Organisations,1000,Default Value,Accounted,Fully Paid,"25,580.03",31/03/2023
York Teaching Hospital Facilities Management LLP BU,1123272077,6095295,STANDARD,24/02/2023,"25,580.03",23/03/2023,RCBNLAYCOCKM1,NHS OTHER,NHS Supply Chain Co-ordination Limited,DE55 4QJ,DE55 4QJ,0.00,3,TAX,NEP VAT REGIME - VAT TAX,BA ZERO,,,,,TOTAL TRUST,TOTAL TRUST,BALANCE SHEET,LLP FINANCE - BALANCE SHEET,LLP DEBTORS,219405,LLP Dr Vat Debtor,156000,Vat Debtor < One Year,1000,Default Value,1000,Default Value,Accounted,Fully Paid,"25,580.03",31/03/2023
York Teaching Hospital Facilities Management LLP BU,1123272077,6095295,STANDARD,24/02/2023,"25,580.03",23/03/2023,RCBNLAYCOCKM1,NHS OTHER,NHS Supply Chain Co-ordination Limited,DE55 4QJ,DE55 4QJ,0.00,3,TAX,NEP VAT REGIME - VAT TAX,BA ZERO,,,,,TOTAL TRUST,TOTAL TRUST,BALANCE SHEET,LLP FINANCE - BALANCE SHEET,LLP MISC SUSPENSE,219562,LLP Rsc Stores Issue Control,252000,Other Creditors < One Year,1999,Other Nhs Organisations,1000,Default Value,Accounted,Fully Paid,"25,580.03",31/03/2023
York Teaching Hospital Facilities Management LLP BU,1123272077,6095295,STANDARD,24/02/2023,"25,580.03",23/03/2023,RCBNLAYCOCKM1,NHS OTHER,NHS Supply Chain Co-ordination Limited,DE55 4QJ,DE55 4QJ,"3,739.63",4,TAX,NEP VAT REGIME - VAT TAX,BA STD REC,,,,,TOTAL TRUST,TOTAL TRUST,BALANCE SHEET,LLP FINANCE - BALANCE SHEET,LLP DEBTORS,219405,LLP Dr Vat Debtor,156000,Vat Debtor < One Year,1000,Default Value,1000,Default Value,Accounted,Fully Paid,"25,580.03",31/03/2023
York Teaching Hospital Facilities Management LLP BU,1123272077,6095295,STANDARD,24/02/2023,"25,580.03",23/03/2023,RCBNLAYCOCKM1,NHS OTHER,NHS Supply Chain Co-ordination Limited,DE55 4QJ,DE55 4QJ,0.00,4,TAX,NEP VAT REGIME - VAT TAX,BA STD REC,,,,,TOTAL TRUST,TOTAL TRUST,BALANCE SHEET,LLP FINANCE - BALANCE SHEET,LLP MISC SUSPENSE,219562,LLP Rsc Stores Issue Control,252000,Other Creditors < One Year,1999,Other Nhs Organisations,1000,Default Value,Accounted,Fully Paid,"25,580.03",31/03/2023
York Teaching Hospital Facilities Management LLP BU,1123272077,6095295,STANDARD,24/02/2023,"25,580.03",23/03/2023,RCBNLAYCOCKM1,NHS OTHER,NHS Supply Chain Co-ordination Limited,DE55 4QJ,DE55 4QJ,"-3,739.63",4,TAX,NEP VAT REGIME - VAT TAX,BA STD REC,,,,,TOTAL TRUST,TOTAL TRUST,BALANCE SHEET,LLP FINANCE - BALANCE SHEET,LLP DEBTORS,219405,LLP Dr Vat Debtor,156000,Vat Debtor < One Year,1000,Default Value,1000,Default Value,Accounted,Fully Paid,"25,580.03",31/03/2023
York Teaching Hospital Facilities Management LLP BU,1123272077,6095295,STANDARD,24/02/2023,"25,580.03",23/03/2023,RCBNLAYCOCKM1,NHS OTHER,NHS Supply Chain Co-ordination Limited,DE55 4QJ,DE55 4QJ,"3,739.71",4,TAX,NEP VAT REGIME - VAT TAX,BA STD REC,,,,,TOTAL TRUST,TOTAL TRUST,BALANCE SHEET,LLP FINANCE - BALANCE SHEET,LLP DEBTORS,219405,LLP Dr Vat Debtor,156000,Vat Debtor < One Year,1000,Default Value,1000,Default Value,Accounted,Fully Paid,"25,580.03",31/03/2023
York Teaching Hospital Facilities Management LLP BU,1123272077,6095295,STANDARD,24/02/2023,"25,580.03",23/03/2023,RCBNLAYCOCKM1,NHS OTHER,NHS Supply Chain Co-ordination Limited,DE55 4QJ,DE55 4QJ,0.00,4,TAX,NEP VAT REGIME - VAT TAX,BA STD REC,,,,,TOTAL TRUST,TOTAL TRUST,BALANCE SHEET,LLP FINANCE - BALANCE SHEET,LLP MISC SUSPENSE,219562,LLP Rsc Stores Issue Control,252000,Other Creditors < One Year,1999,Other Nhs Organisations,1000,Default Value,Accounted,Fully Paid,"25,580.03",31/03/2023
York Teaching Hospital Facilities Management LLP BU,1123272077,6095295,STANDARD,24/02/2023,"25,580.03",23/03/2023,RCBNLAYCOCKM1,NHS OTHER,NHS Supply Chain Co-ordination Limited,DE55 4QJ,DE55 4QJ,0.00,4,TAX,NEP VAT REGIME - VAT TAX,BA STD REC,,,,,TOTAL TRUST,TOTAL TRUST,BALANCE SHEET,LLP FINANCE - BALANCE SHEET,LLP MISC SUSPENSE,219562,LLP Rsc Stores Issue Control,252000,Other Creditors < One Year,1999,Other Nhs Organisations,1000,Default Value,Accounted,Fully Paid,"25,580.03",31/03/2023
York and Scarborough Teaching Hospitals NHS Foundation Trust BU,1123275962,6743600,STANDARD,24/02/2023,"222,262.60",21/03/2023,RCBNSHAWJ2,NHS OTHER,NHS Supply Chain Co-ordination Limited,DE55 4QJ,DE55 4QJ,"185,218.83",1,ITEM,,,,,,,TOTAL TRUST,TOTAL TRUST,BALANCE SHEET,FINANCE - BALANCE SHEET,MISC SUSPENSE,119562,Rsc Stores Issue Control,252000,Other Creditors < One Year,1999,Other Nhs Organisations,1000,Default Value,Accounted,Fully Paid,"222,262.60",24/03/2023
York and Scarborough Teaching Hospitals NHS Foundation Trust BU,1123275962,6743600,STANDARD,24/02/2023,"222,262.60",21/03/2023,RCBNSHAWJ2,NHS OTHER,NHS Supply Chain Co-ordination Limited,DE55 4QJ,DE55 4QJ,0.00,2,TAX,NEP VAT REGIME - VAT TAX,STD,,,,,TOTAL TRUST,TOTAL TRUST,BALANCE SHEET,FINANCE - BALANCE SHEET,DEBTORS,119405,Dr Vat Debtor,156000,Vat Debtor < One Year,1000,Default Value,1000,Default Value,Accounted,Fully Paid,"222,262.60",24/03/2023
York and Scarborough Teaching Hospitals NHS Foundation Trust BU,1123275962,6743600,STANDARD,24/02/2023,"222,262.60",21/03/2023,RCBNSHAWJ2,NHS OTHER,NHS Supply Chain Co-ordination Limited,DE55 4QJ,DE55 4QJ,"37,043.77",2,TAX,NEP VAT REGIME - VAT TAX,STD,,,,,TOTAL TRUST,TOTAL TRUST,BALANCE SHEET,FINANCE - BALANCE SHEET,MISC SUSPENSE,119562,Rsc Stores Issue Control,252000,Other Creditors < One Year,1999,Other Nhs Organisations,1000,Default Value,Accounted,Fully Paid,"222,262.60",24/03/2023
York Teaching Hospital Facilities Management LLP BU,1123278217,6094907,STANDARD,03/03/2023,"38,598.17",17/03/2023,RCBNCOOKM1,NHS OTHER,NHS Supply Chain Co-ordination Limited,DE55 4QJ,DE55 4QJ,"29,466.51",1,ITEM,CONSUMABLES AUTH M LAYCOCK,,,,,,TOTAL TRUST,TOTAL TRUST,BALANCE SHEET,LLP FINANCE - BALANCE SHEET,LLP MISC SUSPENSE,219562,LLP Rsc Stores Issue Control,252000,Other Creditors < One Year,1999,Other Nhs Organisations,1000,Default Value,Accounted,Fully Paid,"38,598.17",31/03/2023
York Teaching Hospital Facilities Management LLP BU,1123278217,6094907,STANDARD,03/03/2023,"38,598.17",17/03/2023,RCBNCOOKM1,NHS OTHER,NHS Supply Chain Co-ordination Limited,DE55 4QJ,DE55 4QJ,"3,238.25",2,ITEM,CONSUMABLES AUTH M LAYCOCK,,,,,,TOTAL TRUST,TOTAL TRUST,BALANCE SHEET,LLP FINANCE - BALANCE SHEET,LLP MISC SUSPENSE,219562,LLP Rsc Stores Issue Control,252000,Other Creditors < One Year,1999,Other Nhs Organisations,1000,Default Value,Accounted,Fully Paid,"38,598.17",31/03/2023
York Teaching Hospital Facilities Management LLP BU,1123278217,6094907,STANDARD,03/03/2023,"38,598.17",17/03/2023,RCBNCOOKM1,NHS OTHER,NHS Supply Chain Co-ordination Limited,DE55 4QJ,DE55 4QJ,0.00,3,TAX,CONSUMABLES AUTH M LAYCOCK,BA STD REC,,,,,TOTAL TRUST,TOTAL TRUST,BALANCE SHEET,LLP FINANCE - BALANCE SHEET,LLP MISC SUSPENSE,219562,LLP Rsc Stores Issue Control,252000,Other Creditors < One Year,1999,Other Nhs Organisations,1000,Default Value,Accounted,Fully Paid,"38,598.17",31/03/2023
York Teaching Hospital Facilities Management LLP BU,1123278217,6094907,STANDARD,03/03/2023,"38,598.17",17/03/2023,RCBNCOOKM1,NHS OTHER,NHS Supply Chain Co-ordination Limited,DE55 4QJ,DE55 4QJ,"5,893.41",3,TAX,CONSUMABLES AUTH M LAYCOCK,BA STD REC,,,,,TOTAL TRUST,TOTAL TRUST,BALANCE SHEET,LLP FINANCE - BALANCE SHEET,LLP DEBTORS,219405,LLP Dr Vat Debtor,156000,Vat Debtor < One Year,1000,Default Value,1000,Default Value,Accounted,Fully Paid,"38,598.17",31/03/2023
York Teaching Hospital Facilities Management LLP BU,1123278217,6094907,STANDARD,03/03/2023,"38,598.17",17/03/2023,RCBNCOOKM1,NHS OTHER,NHS Supply Chain Co-ordination Limited,DE55 4QJ,DE55 4QJ,0.00,4,TAX,CONSUMABLES AUTH M LAYCOCK,BA ZERO,,,,,TOTAL TRUST,TOTAL TRUST,BALANCE SHEET,LLP FINANCE - BALANCE SHEET,LLP DEBTORS,219405,LLP Dr Vat Debtor,156000,Vat Debtor < One Year,1000,Default Value,1000,Default Value,Accounted,Fully Paid,"38,598.17",31/03/2023
York Teaching Hospital Facilities Management LLP BU,1123278217,6094907,STANDARD,03/03/2023,"38,598.17",17/03/2023,RCBNCOOKM1,NHS OTHER,NHS Supply Chain Co-ordination Limited,DE55 4QJ,DE55 4QJ,0.00,4,TAX,CONSUMABLES AUTH M LAYCOCK,BA ZERO,,,,,TOTAL TRUST,TOTAL TRUST,BALANCE SHEET,LLP FINANCE - BALANCE SHEET,LLP MISC SUSPENSE,219562,LLP Rsc Stores Issue Control,252000,Other Creditors < One Year,1999,Other Nhs Organisations,1000,Default Value,Accounted,Fully Paid,"38,598.17",31/03/2023
York Teaching Hospital Facilities Management LLP BU,1123283148,6094908,STANDARD,03/03/2023,"465,149.59",17/03/2023,RCBNCOOKM1,NHS OTHER,NHS Supply Chain Co-ordination Limited,DE55 4QJ,DE55 4QJ,"387,624.66",1,ITEM,CONSUMABLES AUTH M LAYCOCK,,,,,,TOTAL TRUST,TOTAL TRUST,BALANCE SHEET,LLP FINANCE - BALANCE SHEET,LLP MISC SUSPENSE,219562,LLP Rsc Stores Issue Control,252000,Other Creditors < One Year,1999,Other Nhs Organisations,1000,Default Value,Accounted,Fully Paid,"465,149.59",24/03/2023
York Teaching Hospital Facilities Management LLP BU,1123283148,6094908,STANDARD,03/03/2023,"465,149.59",17/03/2023,RCBNCOOKM1,NHS OTHER,NHS Supply Chain Co-ordination Limited,DE55 4QJ,DE55 4QJ,0.00,2,TAX,CONSUMABLES AUTH M LAYCOCK,BA STD REC,,,,,TOTAL TRUST,TOTAL TRUST,BALANCE SHEET,LLP FINANCE - BALANCE SHEET,LLP MISC SUSPENSE,219562,LLP Rsc Stores Issue Control,252000,Other Creditors < One Year,1999,Other Nhs Organisations,1000,Default Value,Accounted,Fully Paid,"465,149.59",24/03/2023
York Teaching Hospital Facilities Management LLP BU,1123283148,6094908,STANDARD,03/03/2023,"465,149.59",17/03/2023,RCBNCOOKM1,NHS OTHER,NHS Supply Chain Co-ordination Limited,DE55 4QJ,DE55 4QJ,"77,524.93",2,TAX,CONSUMABLES AUTH M LAYCOCK,BA STD REC,,,,,TOTAL TRUST,TOTAL TRUST,BALANCE SHEET,LLP FINANCE - BALANCE SHEET,LLP DEBTORS,219405,LLP Dr Vat Debtor,156000,Vat Debtor < One Year,1000,Default Value,1000,Default Value,Accounted,Fully Paid,"465,149.59",24/03/2023
York Teaching Hospital Facilities Management LLP BU,1169327,6093648,STANDARD,01/03/2023,"39,000.00",28/02/2023,RCBNCOOKM1,OTHSUPP,Cbre Ltd,G2 6UA,G2 6UA,"32,500.00",1,ITEM,"Rent of (407949/20/EWE) Building 2, Kettlestring Lane, Clifton Moor, York, YO30 4XF (Amy Johnson Way) from the 25th March 2021 to the 24th June 25 (A Term of 4 Years and 3 Months). ",,,,,,TOTAL TRUST,TOTAL TRUST,OPERATING EXPENDITURE,LLP ESTATES & FACILITIES_OLD,LLP PROPERTY MANAGEMENT,212950,LLP Transport & Medical Records Property Charges,733200,Lease Rents,1000,Default Value,1000,Default Value,Accounted,Fully Paid,"39,000.00",10/03/2023
York Teaching Hospital Facilities Management LLP BU,1169327,6093648,STANDARD,01/03/2023,"39,000.00",28/02/2023,RCBNCOOKM1,OTHSUPP,Cbre Ltd,G2 6UA,G2 6UA,"-6,500.00",2,TAX,RCBF400012834,BA STD REC,,,,,TOTAL TRUST,TOTAL TRUST,OPERATING EXPENDITURE,LLP ESTATES & FACILITIES_OLD,LLP PROPERTY MANAGEMENT,212950,LLP Transport & Medical Records Property Charges,733200,Lease Rents,1000,Default Value,1000,Default Value,Accounted,Fully Paid,"39,000.00",10/03/2023
York Teaching Hospital Facilities Management LLP BU,1169327,6093648,STANDARD,01/03/2023,"39,000.00",28/02/2023,RCBNCOOKM1,OTHSUPP,Cbre Ltd,G2 6UA,G2 6UA,"6,500.00",2,TAX,RCBF400012834,BA STD REC,,,,,TOTAL TRUST,TOTAL TRUST,BALANCE SHEET,LLP FINANCE - BALANCE SHEET,LLP DEBTORS,219405,LLP Dr Vat Debtor,156000,Vat Debtor < One Year,1000,Default Value,1000,Default Value,Accounted,Fully Paid,"39,000.00",10/03/2023
York Teaching Hospital Facilities Management LLP BU,1169327,6093648,STANDARD,01/03/2023,"39,000.00",28/02/2023,RCBNCOOKM1,OTHSUPP,Cbre Ltd,G2 6UA,G2 6UA,"6,500.00",2,TAX,RCBF400012834,BA STD REC,,,,,TOTAL TRUST,TOTAL TRUST,OPERATING EXPENDITURE,LLP ESTATES & FACILITIES_OLD,LLP PROPERTY MANAGEMENT,212950,LLP Transport & Medical Records Property Charges,733200,Lease Rents,1000,Default Value,1000,Default Value,Accounted,Fully Paid,"39,000.00",10/03/2023
York and Scarborough Teaching Hospitals NHS Foundation Trust BU,128903,6710878,STANDARD,06/12/2022,"32,807.30",06/12/2022,RCBNFAIRBURNC1,OTHSUPP,University Of York,YO10 5DD,YO10 5DD,"-33,069.76",6,ITEM,Dr Simon Davies; a jointly funded permanent contact post.,,,,,,TOTAL TRUST,TOTAL TRUST,OPERATING EXPENDITURE,THEATRES ANAESTHETICS & CRITICAL CARE,MEDICAL,112202,Anaesthetics Snr Med,802000,Consultant,1000,Default Value,1000,Default Value,Accounted,Fully Paid,"32,807.30",29/03/2023
York and Scarborough Teaching Hospitals NHS Foundation Trust BU,128903,6710878,STANDARD,06/12/2022,"32,807.30",06/12/2022,RCBNFAIRBURNC1,OTHSUPP,University Of York,YO10 5DD,YO10 5DD,"33,069.76",6,ITEM,Dr Simon Davies; a jointly funded permanent contact post.,,,,,,TOTAL TRUST,TOTAL TRUST,OPERATING EXPENDITURE,THEATRES ANAESTHETICS & CRITICAL CARE,MEDICAL,112202,Anaesthetics Snr Med,802000,Consultant,1000,Default Value,1000,Default Value,Accounted,Fully Paid,"32,807.30",29/03/2023
York and Scarborough Teaching Hospitals NHS Foundation Trust BU,128903,6710878,STANDARD,06/12/2022,"32,807.30",06/12/2022,RCBNFAIRBURNC1,OTHSUPP,University Of York,YO10 5DD,YO10 5DD,0.00,7,TAX,chasing PO from UoY - AG,XMT,,,,,TOTAL TRUST,TOTAL TRUST,BALANCE SHEET,FINANCE - BALANCE SHEET,DEBTORS,119405,Dr Vat Debtor,156000,Vat Debtor < One Year,1000,Default Value,1000,Default Value,Accounted,Fully Paid,"32,807.30",29/03/2023
York and Scarborough Teaching Hospitals NHS Foundation Trust BU,128903,6710878,STANDARD,06/12/2022,"32,807.30",06/12/2022,RCBNFAIRBURNC1,OTHSUPP,University Of York,YO10 5DD,YO10 5DD,0.00,7,TAX,chasing PO from UoY - AG,XMT,,,,,TOTAL TRUST,TOTAL TRUST,OPERATING EXPENDITURE,THEATRES ANAESTHETICS & CRITICAL CARE,MEDICAL,112202,Anaesthetics Snr Med,802000,Consultant,1000,Default Value,1000,Default Value,Accounted,Fully Paid,"32,807.30",29/03/2023
York and Scarborough Teaching Hospitals NHS Foundation Trust BU,128903,6710878,STANDARD,06/12/2022,"32,807.30",06/12/2022,RCBNFAIRBURNC1,OTHSUPP,University Of York,YO10 5DD,YO10 5DD,0.00,7,TAX,chasing PO from UoY - AG,XMT,,,,,TOTAL TRUST,TOTAL TRUST,OPERATING EXPENDITURE,THEATRES ANAESTHETICS & CRITICAL CARE,MEDICAL,112202,Anaesthetics Snr Med,802000,Consultant,1000,Default Value,1000,Default Value,Accounted,Fully Paid,"32,807.30",29/03/2023
York and Scarborough Teaching Hospitals NHS Foundation Trust BU,128903,6710878,STANDARD,06/12/2022,"32,807.30",06/12/2022,RCBNFAIRBURNC1,OTHSUPP,University Of York,YO10 5DD,YO10 5DD,0.00,7,TAX,chasing PO from UoY - AG,XMT,,,,,TOTAL TRUST,TOTAL TRUST,BALANCE SHEET,FINANCE - BALANCE SHEET,DEBTORS,119405,Dr Vat Debtor,156000,Vat Debtor < One Year,1000,Default Value,1000,Default Value,Accounted,Fully Paid,"32,807.30",29/03/2023
York and Scarborough Teaching Hospitals NHS Foundation Trust BU,128903,6710878,STANDARD,06/12/2022,"32,807.30",06/12/2022,RCBNFAIRBURNC1,OTHSUPP,University Of York,YO10 5DD,YO10 5DD,0.00,8,TAX,chasing PO from UoY - AG,ZERO,,,,,TOTAL TRUST,TOTAL TRUST,BALANCE SHEET,FINANCE - BALANCE SHEET,DEBTORS,119405,Dr Vat Debtor,156000,Vat Debtor < One Year,1000,Default Value,1000,Default Value,Accounted,Fully Paid,"32,807.30",29/03/2023
York and Scarborough Teaching Hospitals NHS Foundation Trust BU,128903,6710878,STANDARD,06/12/2022,"32,807.30",06/12/2022,RCBNFAIRBURNC1,OTHSUPP,University Of York,YO10 5DD,YO10 5DD,0.00,8,TAX,chasing PO from UoY - AG,ZERO,,,,,TOTAL TRUST,TOTAL TRUST,OPERATING EXPENDITURE,THEATRES ANAESTHETICS & CRITICAL CARE,MEDICAL,112202,Anaesthetics Snr Med,802000,Consultant,1000,Default Value,1000,Default Value,Accounted,Fully Paid,"32,807.30",29/03/2023
York and Scarborough Teaching Hospitals NHS Foundation Trust BU,128903,6710878,STANDARD,06/12/2022,"32,807.30",06/12/2022,RCBNFAIRBURNC1,OTHSUPP,University Of York,YO10 5DD,YO10 5DD,0.00,8,TAX,chasing PO from UoY - AG,ZERO,,,,,TOTAL TRUST,TOTAL TRUST,BALANCE SHEET,FINANCE - BALANCE SHEET,DEBTORS,119405,Dr Vat Debtor,156000,Vat Debtor < One Year,1000,Default Value,1000,Default Value,Accounted,Fully Paid,"32,807.30",29/03/2023
York and Scarborough Teaching Hospitals NHS Foundation Trust BU,128903,6710878,STANDARD,06/12/2022,"32,807.30",06/12/2022,RCBNFAIRBURNC1,OTHSUPP,University Of York,YO10 5DD,YO10 5DD,0.00,8,TAX,chasing PO from UoY - AG,ZERO,,,,,TOTAL TRUST,TOTAL TRUST,OPERATING EXPENDITURE,THEATRES ANAESTHETICS & CRITICAL CARE,MEDICAL,112202,Anaesthetics Snr Med,802000,Consultant,1000,Default Value,1000,Default Value,Accounted,Fully Paid,"32,807.30",29/03/2023
York and Scarborough Teaching Hospitals NHS Foundation Trust BU,128903,6710878,STANDARD,06/12/2022,"32,807.30",06/12/2022,RCBNFAIRBURNC1,OTHSUPP,University Of York,YO10 5DD,YO10 5DD,0.00,8,TAX,chasing PO from UoY - AG,ZERO,,,,,TOTAL TRUST,TOTAL TRUST,BALANCE SHEET,FINANCE - BALANCE SHEET,DEBTORS,119405,Dr Vat Debtor,156000,Vat Debtor < One Year,1000,Default Value,1000,Default Value,Accounted,Fully Paid,"32,807.30",29/03/2023
York and Scarborough Teaching Hospitals NHS Foundation Trust BU,128903,6710878,STANDARD,06/12/2022,"32,807.30",06/12/2022,RCBNFAIRBURNC1,OTHSUPP,University Of York,YO10 5DD,YO10 5DD,0.00,8,TAX,chasing PO from UoY - AG,ZERO,,,,,TOTAL TRUST,TOTAL TRUST,OPERATING EXPENDITURE,THEATRES ANAESTHETICS & CRITICAL CARE,MEDICAL,112202,Anaesthetics Snr Med,802000,Consultant,1000,Default Value,1000,Default Value,Accounted,Fully Paid,"32,807.30",29/03/2023
York and Scarborough Teaching Hospitals NHS Foundation Trust BU,128903,6710878,STANDARD,06/12/2022,"32,807.30",06/12/2022,RCBNFAIRBURNC1,OTHSUPP,University Of York,YO10 5DD,YO10 5DD,"32,807.30",9,ITEM,Dr Simon Davies; a jointly funded permanent contact post.,,,,,,TOTAL TRUST,TOTAL TRUST,OPERATING EXPENDITURE,THEATRES ANAESTHETICS & CRITICAL CARE,MEDICAL,112202,Anaesthetics Snr Med,802000,Consultant,1000,Default Value,1000,Default Value,Accounted,Fully Paid,"32,807.30",29/03/2023
York and Scarborough Teaching Hospitals NHS Foundation Trust BU,1322270478,6729224,STANDARD,31/01/2023,"27,300.00",07/02/2023,NEPNINTERFACE1,OTHSUPP,Roche Products Ltd,WELWYN,AL7 1TW,"22,750.00",1,ITEM,SST0120960,,,,,,TOTAL TRUST,TOTAL TRUST,BALANCE SHEET,FINANCE - BALANCE SHEET,STORES,119201,Drugs,110000,Raw Materials And Consumables,1000,Default Value,1000,Default Value,Accounted,Fully Paid,"27,300.00",03/03/2023
York and Scarborough Teaching Hospitals NHS Foundation Trust BU,1322270478,6729224,STANDARD,31/01/2023,"27,300.00",07/02/2023,NEPNINTERFACE1,OTHSUPP,Roche Products Ltd,WELWYN,AL7 1TW,0.00,1,ITEM,SST0120960,,,,,,TOTAL TRUST,TOTAL TRUST,BALANCE SHEET,FINANCE - BALANCE SHEET,DEBTORS,119405,Dr Vat Debtor,156000,Vat Debtor < One Year,1000,Default Value,1000,Default Value,Accounted,Fully Paid,"27,300.00",03/03/2023
York and Scarborough Teaching Hospitals NHS Foundation Trust BU,1322270478,6729224,STANDARD,31/01/2023,"27,300.00",07/02/2023,NEPNINTERFACE1,OTHSUPP,Roche Products Ltd,WELWYN,AL7 1TW,"4,550.00",1,ITEM,SST0120960,,,,,,TOTAL TRUST,TOTAL TRUST,BALANCE SHEET,FINANCE - BALANCE SHEET,STORES,119201,Drugs,110000,Raw Materials And Consumables,1000,Default Value,1000,Default Value,Accounted,Fully Paid,"27,300.00",03/03/2023
York and Scarborough Teaching Hospitals NHS Foundation Trust BU,1322270516,6730118,STANDARD,01/02/2023,"27,291.60",10/02/2023,NEPNINTERFACE1,OTHSUPP,Roche Products Ltd,WELWYN,AL7 1TW,"21,385.00",1,ITEM,YAS0131637,,,,,,TOTAL TRUST,TOTAL TRUST,BALANCE SHEET,FINANCE - BALANCE SHEET,STORES,119201,Drugs,110000,Raw Materials And Consumables,1000,Default Value,1000,Default Value,Accounted,Fully Paid,"27,291.60",03/03/2023
York and Scarborough Teaching Hospitals NHS Foundation Trust BU,1322270516,6730118,STANDARD,01/02/2023,"27,291.60",10/02/2023,NEPNINTERFACE1,OTHSUPP,Roche Products Ltd,WELWYN,AL7 1TW,0.00,1,ITEM,YAS0131637,,,,,,TOTAL TRUST,TOTAL TRUST,BALANCE SHEET,FINANCE - BALANCE SHEET,DEBTORS,119405,Dr Vat Debtor,156000,Vat Debtor < One Year,1000,Default Value,1000,Default Value,Accounted,Fully Paid,"27,291.60",03/03/2023
York and Scarborough Teaching Hospitals NHS Foundation Trust BU,1322270516,6730118,STANDARD,01/02/2023,"27,291.60",10/02/2023,NEPNINTERFACE1,OTHSUPP,Roche Products Ltd,WELWYN,AL7 1TW,"4,277.00",1,ITEM,YAS0131637,,,,,,TOTAL TRUST,TOTAL TRUST,BALANCE SHEET,FINANCE - BALANCE SHEET,STORES,119201,Drugs,110000,Raw Materials And Consumables,1000,Default Value,1000,Default Value,Accounted,Fully Paid,"27,291.60",03/03/2023
York and Scarborough Teaching Hospitals NHS Foundation Trust BU,1322270516,6730118,STANDARD,01/02/2023,"27,291.60",10/02/2023,NEPNINTERFACE1,OTHSUPP,Roche Products Ltd,WELWYN,AL7 1TW,0.00,2,ITEM,YAS0131637,,,,,,TOTAL TRUST,TOTAL TRUST,BALANCE SHEET,FINANCE - BALANCE SHEET,DEBTORS,119405,Dr Vat Debtor,156000,Vat Debtor < One Year,1000,Default Value,1000,Default Value,Accounted,Fully Paid,"27,291.60",03/03/2023
York and Scarborough Teaching Hospitals NHS Foundation Trust BU,1322270516,6730118,STANDARD,01/02/2023,"27,291.60",10/02/2023,NEPNINTERFACE1,OTHSUPP,Roche Products Ltd,WELWYN,AL7 1TW,271.60,2,ITEM,YAS0131637,,,,,,TOTAL TRUST,TOTAL TRUST,BALANCE SHEET,FINANCE - BALANCE SHEET,STORES,119201,Drugs,110000,Raw Materials And Consumables,1000,Default Value,1000,Default Value,Accounted,Fully Paid,"27,291.60",03/03/2023
York and Scarborough Teaching Hospitals NHS Foundation Trust BU,1322270516,6730118,STANDARD,01/02/2023,"27,291.60",10/02/2023,NEPNINTERFACE1,OTHSUPP,Roche Products Ltd,WELWYN,AL7 1TW,"1,358.00",2,ITEM,YAS0131637,,,,,,TOTAL TRUST,TOTAL TRUST,BALANCE SHEET,FINANCE - BALANCE SHEET,STORES,119201,Drugs,110000,Raw Materials And Consumables,1000,Default Value,1000,Default Value,Accounted,Fully Paid,"27,291.60",03/03/2023
York and Scarborough Teaching Hospitals NHS Foundation Trust BU,1322270684,6731384,STANDARD,02/02/2023,"26,918.53",15/02/2023,NEPNINTERFACE1,OTHSUPP,Roche Products Ltd,WELWYN,AL7 1TW,0.00,1,ITEM,YAS0201647,,,,,,TOTAL TRUST,TOTAL TRUST,BALANCE SHEET,FINANCE - BALANCE SHEET,DEBTORS,119405,Dr Vat Debtor,156000,Vat Debtor < One Year,1000,Default Value,1000,Default Value,Accounted,Fully Paid,"26,918.53",03/03/2023
York and Scarborough Teaching Hospitals NHS Foundation Trust BU,1322270684,6731384,STANDARD,02/02/2023,"26,918.53",15/02/2023,NEPNINTERFACE1,OTHSUPP,Roche Products Ltd,WELWYN,AL7 1TW,"1,047.11",1,ITEM,YAS0201647,,,,,,TOTAL TRUST,TOTAL TRUST,BALANCE SHEET,FINANCE - BALANCE SHEET,STORES,119201,Drugs,110000,Raw Materials And Consumables,1000,Default Value,1000,Default Value,Accounted,Fully Paid,"26,918.53",03/03/2023
York and Scarborough Teaching Hospitals NHS Foundation Trust BU,1322270684,6731384,STANDARD,02/02/2023,"26,918.53",15/02/2023,NEPNINTERFACE1,OTHSUPP,Roche Products Ltd,WELWYN,AL7 1TW,209.42,1,ITEM,YAS0201647,,,,,,TOTAL TRUST,TOTAL TRUST,BALANCE SHEET,FINANCE - BALANCE SHEET,STORES,119201,Drugs,110000,Raw Materials And Consumables,1000,Default Value,1000,Default Value,Accounted,Fully Paid,"26,918.53",03/03/2023
York and Scarborough Teaching Hospitals NHS Foundation Trust BU,1322270684,6731384,STANDARD,02/02/2023,"26,918.53",15/02/2023,NEPNINTERFACE1,OTHSUPP,Roche Products Ltd,WELWYN,AL7 1TW,0.00,2,ITEM,YAS0201647,,,,,,TOTAL TRUST,TOTAL TRUST,BALANCE SHEET,FINANCE - BALANCE SHEET,DEBTORS,119405,Dr Vat Debtor,156000,Vat Debtor < One Year,1000,Default Value,1000,Default Value,Accounted,Fully Paid,"26,918.53",03/03/2023
York and Scarborough Teaching Hospitals NHS Foundation Trust BU,1322270684,6731384,STANDARD,02/02/2023,"26,918.53",15/02/2023,NEPNINTERFACE1,OTHSUPP,Roche Products Ltd,WELWYN,AL7 1TW,"21,385.00",2,ITEM,YAS0201647,,,,,,TOTAL TRUST,TOTAL TRUST,BALANCE SHEET,FINANCE - BALANCE SHEET,STORES,119201,Drugs,110000,Raw Materials And Consumables,1000,Default Value,1000,Default Value,Accounted,Fully Paid,"26,918.53",03/03/2023
York and Scarborough Teaching Hospitals NHS Foundation Trust BU,1322270684,6731384,STANDARD,02/02/2023,"26,918.53",15/02/2023,NEPNINTERFACE1,OTHSUPP,Roche Products Ltd,WELWYN,AL7 1TW,"4,277.00",2,ITEM,YAS0201647,,,,,,TOTAL TRUST,TOTAL TRUST,BALANCE SHEET,FINANCE - BALANCE SHEET,STORES,119201,Drugs,110000,Raw Materials And Consumables,1000,Default Value,1000,Default Value,Accounted,Fully Paid,"26,918.53",03/03/2023
York and Scarborough Teaching Hospitals NHS Foundation Trust BU,1322270904,6730535,STANDARD,03/02/2023,"27,300.00",13/02/2023,NEPNINTERFACE1,OTHSUPP,Roche Products Ltd,WELWYN,AL7 1TW,0.00,1,ITEM,YMS0202184,,,,,,TOTAL TRUST,TOTAL TRUST,BALANCE SHEET,FINANCE - BALANCE SHEET,DEBTORS,119405,Dr Vat Debtor,156000,Vat Debtor < One Year,1000,Default Value,1000,Default Value,Accounted,Fully Paid,"27,300.00",03/03/2023
York and Scarborough Teaching Hospitals NHS Foundation Trust BU,1322270904,6730535,STANDARD,03/02/2023,"27,300.00",13/02/2023,NEPNINTERFACE1,OTHSUPP,Roche Products Ltd,WELWYN,AL7 1TW,"22,750.00",1,ITEM,YMS0202184,,,,,,TOTAL TRUST,TOTAL TRUST,BALANCE SHEET,FINANCE - BALANCE SHEET,STORES,119201,Drugs,110000,Raw Materials And Consumables,1000,Default Value,1000,Default Value,Accounted,Fully Paid,"27,300.00",03/03/2023
York and Scarborough Teaching Hospitals NHS Foundation Trust BU,1322270904,6730535,STANDARD,03/02/2023,"27,300.00",13/02/2023,NEPNINTERFACE1,OTHSUPP,Roche Products Ltd,WELWYN,AL7 1TW,"4,550.00",1,ITEM,YMS0202184,,,,,,TOTAL TRUST,TOTAL TRUST,BALANCE SHEET,FINANCE - BALANCE SHEET,STORES,119201,Drugs,110000,Raw Materials And Consumables,1000,Default Value,1000,Default Value,Accounted,Fully Paid,"27,300.00",03/03/2023
York and Scarborough Teaching Hospitals NHS Foundation Trust BU,1322271071,6731386,STANDARD,06/02/2023,"39,393.55",15/02/2023,NEPNINTERFACE1,OTHSUPP,Roche Products Ltd,WELWYN,AL7 1TW,0.00,1,ITEM,YAS0202663,,,,,,TOTAL TRUST,TOTAL TRUST,BALANCE SHEET,FINANCE - BALANCE SHEET,DEBTORS,119405,Dr Vat Debtor,156000,Vat Debtor < One Year,1000,Default Value,1000,Default Value,Accounted,Fully Paid,"39,393.55",03/03/2023
York and Scarborough Teaching Hospitals NHS Foundation Trust BU,1322271071,6731386,STANDARD,06/02/2023,"39,393.55",15/02/2023,NEPNINTERFACE1,OTHSUPP,Roche Products Ltd,WELWYN,AL7 1TW,"4,530.40",1,ITEM,YAS0202663,,,,,,TOTAL TRUST,TOTAL TRUST,BALANCE SHEET,FINANCE - BALANCE SHEET,STORES,119201,Drugs,110000,Raw Materials And Consumables,1000,Default Value,1000,Default Value,Accounted,Fully Paid,"39,393.55",03/03/2023
York and Scarborough Teaching Hospitals NHS Foundation Trust BU,1322271071,6731386,STANDARD,06/02/2023,"39,393.55",15/02/2023,NEPNINTERFACE1,OTHSUPP,Roche Products Ltd,WELWYN,AL7 1TW,"22,652.00",1,ITEM,YAS0202663,,,,,,TOTAL TRUST,TOTAL TRUST,BALANCE SHEET,FINANCE - BALANCE SHEET,STORES,119201,Drugs,110000,Raw Materials And Consumables,1000,Default Value,1000,Default Value,Accounted,Fully Paid,"39,393.55",03/03/2023
York and Scarborough Teaching Hospitals NHS Foundation Trust BU,1322271071,6731386,STANDARD,06/02/2023,"39,393.55",15/02/2023,NEPNINTERFACE1,OTHSUPP,Roche Products Ltd,WELWYN,AL7 1TW,0.00,2,ITEM,YAS0202663,,,,,,TOTAL TRUST,TOTAL TRUST,BALANCE SHEET,FINANCE - BALANCE SHEET,DEBTORS,119405,Dr Vat Debtor,156000,Vat Debtor < One Year,1000,Default Value,1000,Default Value,Accounted,Fully Paid,"39,393.55",03/03/2023
York and Scarborough Teaching Hospitals NHS Foundation Trust BU,1322271071,6731386,STANDARD,06/02/2023,"39,393.55",15/02/2023,NEPNINTERFACE1,OTHSUPP,Roche Products Ltd,WELWYN,AL7 1TW,806.40,2,ITEM,YAS0202663,,,,,,TOTAL TRUST,TOTAL TRUST,BALANCE SHEET,FINANCE - BALANCE SHEET,STORES,119201,Drugs,110000,Raw Materials And Consumables,1000,Default Value,1000,Default Value,Accounted,Fully Paid,"39,393.55",03/03/2023
York and Scarborough Teaching Hospitals NHS Foundation Trust BU,1322271071,6731386,STANDARD,06/02/2023,"39,393.55",15/02/2023,NEPNINTERFACE1,OTHSUPP,Roche Products Ltd,WELWYN,AL7 1TW,"4,032.00",2,ITEM,YAS0202663,,,,,,TOTAL TRUST,TOTAL TRUST,BALANCE SHEET,FINANCE - BALANCE SHEET,STORES,119201,Drugs,110000,Raw Materials And Consumables,1000,Default Value,1000,Default Value,Accounted,Fully Paid,"39,393.55",03/03/2023
York and Scarborough Teaching Hospitals NHS Foundation Trust BU,1322271071,6731386,STANDARD,06/02/2023,"39,393.55",15/02/2023,NEPNINTERFACE1,OTHSUPP,Roche Products Ltd,WELWYN,AL7 1TW,0.00,3,ITEM,YAS0202663,,,,,,TOTAL TRUST,TOTAL TRUST,BALANCE SHEET,FINANCE - BALANCE SHEET,DEBTORS,119405,Dr Vat Debtor,156000,Vat Debtor < One Year,1000,Default Value,1000,Default Value,Accounted,Fully Paid,"39,393.55",03/03/2023
York and Scarborough Teaching Hospitals NHS Foundation Trust BU,1322271071,6731386,STANDARD,06/02/2023,"39,393.55",15/02/2023,NEPNINTERFACE1,OTHSUPP,Roche Products Ltd,WELWYN,AL7 1TW,"1,228.79",3,ITEM,YAS0202663,,,,,,TOTAL TRUST,TOTAL TRUST,BALANCE SHEET,FINANCE - BALANCE SHEET,STORES,119201,Drugs,110000,Raw Materials And Consumables,1000,Default Value,1000,Default Value,Accounted,Fully Paid,"39,393.55",03/03/2023
York and Scarborough Teaching Hospitals NHS Foundation Trust BU,1322271071,6731386,STANDARD,06/02/2023,"39,393.55",15/02/2023,NEPNINTERFACE1,OTHSUPP,Roche Products Ltd,WELWYN,AL7 1TW,"6,143.96",3,ITEM,YAS0202663,,,,,,TOTAL TRUST,TOTAL TRUST,BALANCE SHEET,FINANCE - BALANCE SHEET,STORES,119201,Drugs,110000,Raw Materials And Consumables,1000,Default Value,1000,Default Value,Accounted,Fully Paid,"39,393.55",03/03/2023
York and Scarborough Teaching Hospitals NHS Foundation Trust BU,1322271820,6732628,STANDARD,10/02/2023,"32,760.00",20/02/2023,NEPNINTERFACE1,OTHSUPP,Roche Products Ltd,WELWYN,AL7 1TW,0.00,1,ITEM,YMS0209364,,,,,,TOTAL TRUST,TOTAL TRUST,BALANCE SHEET,FINANCE - BALANCE SHEET,DEBTORS,119405,Dr Vat Debtor,156000,Vat Debtor < One Year,1000,Default Value,1000,Default Value,Accounted,Fully Paid,"32,760.00",10/03/2023
York and Scarborough Teaching Hospitals NHS Foundation Trust BU,1322271820,6732628,STANDARD,10/02/2023,"32,760.00",20/02/2023,NEPNINTERFACE1,OTHSUPP,Roche Products Ltd,WELWYN,AL7 1TW,"27,300.00",1,ITEM,YMS0209364,,,,,,TOTAL TRUST,TOTAL TRUST,BALANCE SHEET,FINANCE - BALANCE SHEET,STORES,119201,Drugs,110000,Raw Materials And Consumables,1000,Default Value,1000,Default Value,Accounted,Fully Paid,"32,760.00",10/03/2023
York and Scarborough Teaching Hospitals NHS Foundation Trust BU,1322271820,6732628,STANDARD,10/02/2023,"32,760.00",20/02/2023,NEPNINTERFACE1,OTHSUPP,Roche Products Ltd,WELWYN,AL7 1TW,"5,460.00",1,ITEM,YMS0209364,,,,,,TOTAL TRUST,TOTAL TRUST,BALANCE SHEET,FINANCE - BALANCE SHEET,STORES,119201,Drugs,110000,Raw Materials And Consumables,1000,Default Value,1000,Default Value,Accounted,Fully Paid,"32,760.00",10/03/2023
York and Scarborough Teaching Hospitals NHS Foundation Trust BU,1322272091,6732629,STANDARD,14/02/2023,"38,220.00",20/02/2023,NEPNINTERFACE1,OTHSUPP,Roche Products Ltd,WELWYN,AL7 1TW,0.00,1,ITEM,SST0213237,,,,,,TOTAL TRUST,TOTAL TRUST,BALANCE SHEET,FINANCE - BALANCE SHEET,DEBTORS,119405,Dr Vat Debtor,156000,Vat Debtor < One Year,1000,Default Value,1000,Default Value,Accounted,Fully Paid,"38,220.00",15/03/2023
York and Scarborough Teaching Hospitals NHS Foundation Trust BU,1322272091,6732629,STANDARD,14/02/2023,"38,220.00",20/02/2023,NEPNINTERFACE1,OTHSUPP,Roche Products Ltd,WELWYN,AL7 1TW,"6,370.00",1,ITEM,SST0213237,,,,,,TOTAL TRUST,TOTAL TRUST,BALANCE SHEET,FINANCE - BALANCE SHEET,STORES,119201,Drugs,110000,Raw Materials And Consumables,1000,Default Value,1000,Default Value,Accounted,Fully Paid,"38,220.00",15/03/2023
York and Scarborough Teaching Hospitals NHS Foundation Trust BU,1322272091,6732629,STANDARD,14/02/2023,"38,220.00",20/02/2023,NEPNINTERFACE1,OTHSUPP,Roche Products Ltd,WELWYN,AL7 1TW,"31,850.00",1,ITEM,SST0213237,,,,,,TOTAL TRUST,TOTAL TRUST,BALANCE SHEET,FINANCE - BALANCE SHEET,STORES,119201,Drugs,110000,Raw Materials And Consumables,1000,Default Value,1000,Default Value,Accounted,Fully Paid,"38,220.00",15/03/2023
York and Scarborough Teaching Hospitals NHS Foundation Trust BU,1322272553,6732973,STANDARD,16/02/2023,"54,786.00",21/02/2023,NEPNINTERFACE1,OTHSUPP,Roche Products Ltd,WELWYN,AL7 1TW,0.00,1,ITEM,YAS0214768,,,,,,TOTAL TRUST,TOTAL TRUST,BALANCE SHEET,FINANCE - BALANCE SHEET,DEBTORS,119405,Dr Vat Debtor,156000,Vat Debtor < One Year,1000,Default Value,1000,Default Value,Accounted,Fully Paid,"54,786.00",17/03/2023
York and Scarborough Teaching Hospitals NHS Foundation Trust BU,1322272553,6732973,STANDARD,16/02/2023,"54,786.00",21/02/2023,NEPNINTERFACE1,OTHSUPP,Roche Products Ltd,WELWYN,AL7 1TW,"4,277.00",1,ITEM,YAS0214768,,,,,,TOTAL TRUST,TOTAL TRUST,BALANCE SHEET,FINANCE - BALANCE SHEET,STORES,119201,Drugs,110000,Raw Materials And Consumables,1000,Default Value,1000,Default Value,Accounted,Fully Paid,"54,786.00",17/03/2023
York and Scarborough Teaching Hospitals NHS Foundation Trust BU,1322272553,6732973,STANDARD,16/02/2023,"54,786.00",21/02/2023,NEPNINTERFACE1,OTHSUPP,Roche Products Ltd,WELWYN,AL7 1TW,"21,385.00",1,ITEM,YAS0214768,,,,,,TOTAL TRUST,TOTAL TRUST,BALANCE SHEET,FINANCE - BALANCE SHEET,STORES,119201,Drugs,110000,Raw Materials And Consumables,1000,Default Value,1000,Default Value,Accounted,Fully Paid,"54,786.00",17/03/2023
York and Scarborough Teaching Hospitals NHS Foundation Trust BU,1322272553,6732973,STANDARD,16/02/2023,"54,786.00",21/02/2023,NEPNINTERFACE1,OTHSUPP,Roche Products Ltd,WELWYN,AL7 1TW,0.00,2,ITEM,YAS0214768,,,,,,TOTAL TRUST,TOTAL TRUST,BALANCE SHEET,FINANCE - BALANCE SHEET,DEBTORS,119405,Dr Vat Debtor,156000,Vat Debtor < One Year,1000,Default Value,1000,Default Value,Accounted,Fully Paid,"54,786.00",17/03/2023
York and Scarborough Teaching Hospitals NHS Foundation Trust BU,1322272553,6732973,STANDARD,16/02/2023,"54,786.00",21/02/2023,NEPNINTERFACE1,OTHSUPP,Roche Products Ltd,WELWYN,AL7 1TW,"24,270.00",2,ITEM,YAS0214768,,,,,,TOTAL TRUST,TOTAL TRUST,BALANCE SHEET,FINANCE - BALANCE SHEET,STORES,119201,Drugs,110000,Raw Materials And Consumables,1000,Default Value,1000,Default Value,Accounted,Fully Paid,"54,786.00",17/03/2023
York and Scarborough Teaching Hospitals NHS Foundation Trust BU,1322272553,6732973,STANDARD,16/02/2023,"54,786.00",21/02/2023,NEPNINTERFACE1,OTHSUPP,Roche Products Ltd,WELWYN,AL7 1TW,"4,854.00",2,ITEM,YAS0214768,,,,,,TOTAL TRUST,TOTAL TRUST,BALANCE SHEET,FINANCE - BALANCE SHEET,STORES,119201,Drugs,110000,Raw Materials And Consumables,1000,Default Value,1000,Default Value,Accounted,Fully Paid,"54,786.00",17/03/2023
York and Scarborough Teaching Hospitals NHS Foundation Trust BU,1322272870,6735117,STANDARD,20/02/2023,"32,760.00",01/03/2023,NEPNINTERFACE1,OTHSUPP,Roche Products Ltd,WELWYN,AL7 1TW,"27,300.00",1,ITEM,YMS0220676,,,,,,TOTAL TRUST,TOTAL TRUST,BALANCE SHEET,FINANCE - BALANCE SHEET,STORES,119201,Drugs,110000,Raw Materials And Consumables,1000,Default Value,1000,Default Value,Accounted,Fully Paid,"32,760.00",22/03/2023
York and Scarborough Teaching Hospitals NHS Foundation Trust BU,1322272870,6735117,STANDARD,20/02/2023,"32,760.00",01/03/2023,NEPNINTERFACE1,OTHSUPP,Roche Products Ltd,WELWYN,AL7 1TW,"5,460.00",1,ITEM,YMS0220676,,,,,,TOTAL TRUST,TOTAL TRUST,BALANCE SHEET,FINANCE - BALANCE SHEET,STORES,119201,Drugs,110000,Raw Materials And Consumables,1000,Default Value,1000,Default Value,Accounted,Fully Paid,"32,760.00",22/03/2023
York and Scarborough Teaching Hospitals NHS Foundation Trust BU,1322272870,6735117,STANDARD,20/02/2023,"32,760.00",01/03/2023,NEPNINTERFACE1,OTHSUPP,Roche Products Ltd,WELWYN,AL7 1TW,0.00,1,ITEM,YMS0220676,,,,,,TOTAL TRUST,TOTAL TRUST,BALANCE SHEET,FINANCE - BALANCE SHEET,DEBTORS,119405,Dr Vat Debtor,156000,Vat Debtor < One Year,1000,Default Value,1000,Default Value,Accounted,Fully Paid,"32,760.00",22/03/2023
York and Scarborough Teaching Hospitals NHS Foundation Trust BU,1322273287,6736195,STANDARD,21/02/2023,"29,328.00",02/03/2023,NEPNINTERFACE1,OTHSUPP,Roche Products Ltd,WELWYN,AL7 1TW,0.00,1,ITEM,YAS0221834,,,,,,TOTAL TRUST,TOTAL TRUST,BALANCE SHEET,FINANCE - BALANCE SHEET,DEBTORS,119405,Dr Vat Debtor,156000,Vat Debtor < One Year,1000,Default Value,1000,Default Value,Accounted,Fully Paid,"29,328.00",22/03/2023
York and Scarborough Teaching Hospitals NHS Foundation Trust BU,1322273287,6736195,STANDARD,21/02/2023,"29,328.00",02/03/2023,NEPNINTERFACE1,OTHSUPP,Roche Products Ltd,WELWYN,AL7 1TW,"4,888.00",1,ITEM,YAS0221834,,,,,,TOTAL TRUST,TOTAL TRUST,BALANCE SHEET,FINANCE - BALANCE SHEET,STORES,119201,Drugs,110000,Raw Materials And Consumables,1000,Default Value,1000,Default Value,Accounted,Fully Paid,"29,328.00",22/03/2023
York and Scarborough Teaching Hospitals NHS Foundation Trust BU,1322273287,6736195,STANDARD,21/02/2023,"29,328.00",02/03/2023,NEPNINTERFACE1,OTHSUPP,Roche Products Ltd,WELWYN,AL7 1TW,"24,440.00",1,ITEM,YAS0221834,,,,,,TOTAL TRUST,TOTAL TRUST,BALANCE SHEET,FINANCE - BALANCE SHEET,STORES,119201,Drugs,110000,Raw Materials And Consumables,1000,Default Value,1000,Default Value,Accounted,Fully Paid,"29,328.00",22/03/2023
York and Scarborough Teaching Hospitals NHS Foundation Trust BU,1322273634,6739498,STANDARD,24/02/2023,"39,739.20",08/03/2023,NEPNINTERFACE1,OTHSUPP,Roche Products Ltd,WELWYN,AL7 1TW,0.00,1,ITEM,YAS0223867,,,,,,TOTAL TRUST,TOTAL TRUST,BALANCE SHEET,FINANCE - BALANCE SHEET,DEBTORS,119405,Dr Vat Debtor,156000,Vat Debtor < One Year,1000,Default Value,1000,Default Value,Accounted,Fully Paid,"39,739.20",24/03/2023
York and Scarborough Teaching Hospitals NHS Foundation Trust BU,1322273634,6739498,STANDARD,24/02/2023,"39,739.20",08/03/2023,NEPNINTERFACE1,OTHSUPP,Roche Products Ltd,WELWYN,AL7 1TW,"6,110.00",1,ITEM,YAS0223867,,,,,,TOTAL TRUST,TOTAL TRUST,BALANCE SHEET,FINANCE - BALANCE SHEET,STORES,119201,Drugs,110000,Raw Materials And Consumables,1000,Default Value,1000,Default Value,Accounted,Fully Paid,"39,739.20",24/03/2023
York and Scarborough Teaching Hospitals NHS Foundation Trust BU,1322273634,6739498,STANDARD,24/02/2023,"39,739.20",08/03/2023,NEPNINTERFACE1,OTHSUPP,Roche Products Ltd,WELWYN,AL7 1TW,"30,550.00",1,ITEM,YAS0223867,,,,,,TOTAL TRUST,TOTAL TRUST,BALANCE SHEET,FINANCE - BALANCE SHEET,STORES,119201,Drugs,110000,Raw Materials And Consumables,1000,Default Value,1000,Default Value,Accounted,Fully Paid,"39,739.20",24/03/2023
York and Scarborough Teaching Hospitals NHS Foundation Trust BU,1322273634,6739498,STANDARD,24/02/2023,"39,739.20",08/03/2023,NEPNINTERFACE1,OTHSUPP,Roche Products Ltd,WELWYN,AL7 1TW,0.00,2,ITEM,YAS0223867,,,,,,TOTAL TRUST,TOTAL TRUST,BALANCE SHEET,FINANCE - BALANCE SHEET,DEBTORS,119405,Dr Vat Debtor,156000,Vat Debtor < One Year,1000,Default Value,1000,Default Value,Accounted,Fully Paid,"39,739.20",24/03/2023
York and Scarborough Teaching Hospitals NHS Foundation Trust BU,1322273634,6739498,STANDARD,24/02/2023,"39,739.20",08/03/2023,NEPNINTERFACE1,OTHSUPP,Roche Products Ltd,WELWYN,AL7 1TW,"2,566.00",2,ITEM,YAS0223867,,,,,,TOTAL TRUST,TOTAL TRUST,BALANCE SHEET,FINANCE - BALANCE SHEET,STORES,119201,Drugs,110000,Raw Materials And Consumables,1000,Default Value,1000,Default Value,Accounted,Fully Paid,"39,739.20",24/03/2023
York and Scarborough Teaching Hospitals NHS Foundation Trust BU,1322273634,6739498,STANDARD,24/02/2023,"39,739.20",08/03/2023,NEPNINTERFACE1,OTHSUPP,Roche Products Ltd,WELWYN,AL7 1TW,513.20,2,ITEM,YAS0223867,,,,,,TOTAL TRUST,TOTAL TRUST,BALANCE SHEET,FINANCE - BALANCE SHEET,STORES,119201,Drugs,110000,Raw Materials And Consumables,1000,Default Value,1000,Default Value,Accounted,Fully Paid,"39,739.20",24/03/2023
York and Scarborough Teaching Hospitals NHS Foundation Trust BU,1322273775,6739499,STANDARD,27/02/2023,"54,600.00",08/03/2023,NEPNINTERFACE1,OTHSUPP,Roche Products Ltd,WELWYN,AL7 1TW,"45,500.00",1,ITEM,YMS0224892,,,,,,TOTAL TRUST,TOTAL TRUST,BALANCE SHEET,FINANCE - BALANCE SHEET,STORES,119201,Drugs,110000,Raw Materials And Consumables,1000,Default Value,1000,Default Value,Accounted,Fully Paid,"54,600.00",29/03/2023
York and Scarborough Teaching Hospitals NHS Foundation Trust BU,1322273775,6739499,STANDARD,27/02/2023,"54,600.00",08/03/2023,NEPNINTERFACE1,OTHSUPP,Roche Products Ltd,WELWYN,AL7 1TW,"9,100.00",1,ITEM,YMS0224892,,,,,,TOTAL TRUST,TOTAL TRUST,BALANCE SHEET,FINANCE - BALANCE SHEET,STORES,119201,Drugs,110000,Raw Materials And Consumables,1000,Default Value,1000,Default Value,Accounted,Fully Paid,"54,600.00",29/03/2023
York and Scarborough Teaching Hospitals NHS Foundation Trust BU,1322273775,6739499,STANDARD,27/02/2023,"54,600.00",08/03/2023,NEPNINTERFACE1,OTHSUPP,Roche Products Ltd,WELWYN,AL7 1TW,0.00,1,ITEM,YMS0224892,,,,,,TOTAL TRUST,TOTAL TRUST,BALANCE SHEET,FINANCE - BALANCE SHEET,DEBTORS,119405,Dr Vat Debtor,156000,Vat Debtor < One Year,1000,Default Value,1000,Default Value,Accounted,Fully Paid,"54,600.00",29/03/2023
York and Scarborough Teaching Hospitals NHS Foundation Trust BU,1322274297,6740218,STANDARD,28/02/2023,"38,832.00",10/03/2023,NEPNINTERFACE1,OTHSUPP,Roche Products Ltd,WELWYN,AL7 1TW,0.00,1,ITEM,YAS0228927,,,,,,TOTAL TRUST,TOTAL TRUST,BALANCE SHEET,FINANCE - BALANCE SHEET,DEBTORS,119405,Dr Vat Debtor,156000,Vat Debtor < One Year,1000,Default Value,1000,Default Value,Accounted,Fully Paid,"38,832.00",29/03/2023
York and Scarborough Teaching Hospitals NHS Foundation Trust BU,1322274297,6740218,STANDARD,28/02/2023,"38,832.00",10/03/2023,NEPNINTERFACE1,OTHSUPP,Roche Products Ltd,WELWYN,AL7 1TW,"32,360.00",1,ITEM,YAS0228927,,,,,,TOTAL TRUST,TOTAL TRUST,BALANCE SHEET,FINANCE - BALANCE SHEET,STORES,119201,Drugs,110000,Raw Materials And Consumables,1000,Default Value,1000,Default Value,Accounted,Fully Paid,"38,832.00",29/03/2023
York and Scarborough Teaching Hospitals NHS Foundation Trust BU,1322274297,6740218,STANDARD,28/02/2023,"38,832.00",10/03/2023,NEPNINTERFACE1,OTHSUPP,Roche Products Ltd,WELWYN,AL7 1TW,"6,472.00",1,ITEM,YAS0228927,,,,,,TOTAL TRUST,TOTAL TRUST,BALANCE SHEET,FINANCE - BALANCE SHEET,STORES,119201,Drugs,110000,Raw Materials And Consumables,1000,Default Value,1000,Default Value,Accounted,Fully Paid,"38,832.00",29/03/2023
York and Scarborough Teaching Hospitals NHS Foundation Trust BU,1322274676,6741274,STANDARD,06/03/2023,"65,520.00",15/03/2023,NEPNINTERFACE1,OTHSUPP,Roche Products Ltd,WELWYN,AL7 1TW,"54,600.00",1,ITEM,YMS0306134,,,,,,TOTAL TRUST,TOTAL TRUST,BALANCE SHEET,FINANCE - BALANCE SHEET,STORES,119201,Drugs,110000,Raw Materials And Consumables,1000,Default Value,1000,Default Value,Accounted,Fully Paid,"65,520.00",31/03/2023
York and Scarborough Teaching Hospitals NHS Foundation Trust BU,1322274676,6741274,STANDARD,06/03/2023,"65,520.00",15/03/2023,NEPNINTERFACE1,OTHSUPP,Roche Products Ltd,WELWYN,AL7 1TW,0.00,1,ITEM,YMS0306134,,,,,,TOTAL TRUST,TOTAL TRUST,BALANCE SHEET,FINANCE - BALANCE SHEET,DEBTORS,119405,Dr Vat Debtor,156000,Vat Debtor < One Year,1000,Default Value,1000,Default Value,Accounted,Fully Paid,"65,520.00",31/03/2023
York and Scarborough Teaching Hospitals NHS Foundation Trust BU,1322274676,6741274,STANDARD,06/03/2023,"65,520.00",15/03/2023,NEPNINTERFACE1,OTHSUPP,Roche Products Ltd,WELWYN,AL7 1TW,"10,920.00",1,ITEM,YMS0306134,,,,,,TOTAL TRUST,TOTAL TRUST,BALANCE SHEET,FINANCE - BALANCE SHEET,STORES,119201,Drugs,110000,Raw Materials And Consumables,1000,Default Value,1000,Default Value,Accounted,Fully Paid,"65,520.00",31/03/2023
York and Scarborough Teaching Hospitals NHS Foundation Trust BU,1410200864,6720262,STANDARD,15/12/2022,"28,010.19",17/12/2022,RCBNFAIRBURNC1,TRUST,The Leeds Teaching Hospitals NHS Trust,FINANCE,LS9 7TF,-129.75,1,ITEM,Provision of Laboratory Testing Services - As And When Required - July 22 to March 23,,,,,,TOTAL TRUST,BALANCE SHEET,Balance Sheet,Finance Balance Sheet,Debtors,119417,Provider Consolidated invoices ,158000,Other Debtors < One Year,1505,Leeds Teaching Hosp Trust,1000,Default Value,Accounted,Fully Paid,"28,010.19",08/03/2023
York and Scarborough Teaching Hospitals NHS Foundation Trust BU,1410200864,6720262,STANDARD,15/12/2022,"28,010.19",17/12/2022,RCBNFAIRBURNC1,TRUST,The Leeds Teaching Hospitals NHS Trust,FINANCE,LS9 7TF,129.75,1,ITEM,Provision of Laboratory Testing Services - As And When Required - July 22 to March 23,,,,,,TOTAL TRUST,BALANCE SHEET,Balance Sheet,Finance Balance Sheet,Debtors,119417,Provider Consolidated invoices ,158000,Other Debtors < One Year,1505,Leeds Teaching Hosp Trust,1000,Default Value,Accounted,Fully Paid,"28,010.19",08/03/2023
York and Scarborough Teaching Hospitals NHS Foundation Trust BU,1410200864,6720262,STANDARD,15/12/2022,"28,010.19",17/12/2022,RCBNFAIRBURNC1,TRUST,The Leeds Teaching Hospitals NHS Trust,FINANCE,LS9 7TF,-518.16,2,ITEM,Provision of Laboratory Testing Services - As And When Required - July 22 to March 23,,,,,,TOTAL TRUST,BALANCE SHEET,Balance Sheet,Finance Balance Sheet,Debtors,119417,Provider Consolidated invoices ,158000,Other Debtors < One Year,1505,Leeds Teaching Hosp Trust,1000,Default Value,Accounted,Fully Paid,"28,010.19",08/03/2023
York and Scarborough Teaching Hospitals NHS Foundation Trust BU,1410200864,6720262,STANDARD,15/12/2022,"28,010.19",17/12/2022,RCBNFAIRBURNC1,TRUST,The Leeds Teaching Hospitals NHS Trust,FINANCE,LS9 7TF,518.16,2,ITEM,Provision of Laboratory Testing Services - As And When Required - July 22 to March 23,,,,,,TOTAL TRUST,BALANCE SHEET,Balance Sheet,Finance Balance Sheet,Debtors,119417,Provider Consolidated invoices ,158000,Other Debtors < One Year,1505,Leeds Teaching Hosp Trust,1000,Default Value,Accounted,Fully Paid,"28,010.19",08/03/2023
York and Scarborough Teaching Hospitals NHS Foundation Trust BU,1410200864,6720262,STANDARD,15/12/2022,"28,010.19",17/12/2022,RCBNFAIRBURNC1,TRUST,The Leeds Teaching Hospitals NHS Trust,FINANCE,LS9 7TF,"-1,089.90",3,ITEM,Provision of Laboratory Testing Services - As And When Required - July 22 to March 23,,,,,,TOTAL TRUST,BALANCE SHEET,Balance Sheet,Finance Balance Sheet,Debtors,119417,Provider Consolidated invoices ,158000,Other Debtors < One Year,1505,Leeds Teaching Hosp Trust,1000,Default Value,Accounted,Fully Paid,"28,010.19",08/03/2023
York and Scarborough Teaching Hospitals NHS Foundation Trust BU,1410200864,6720262,STANDARD,15/12/2022,"28,010.19",17/12/2022,RCBNFAIRBURNC1,TRUST,The Leeds Teaching Hospitals NHS Trust,FINANCE,LS9 7TF,"1,089.90",3,ITEM,Provision of Laboratory Testing Services - As And When Required - July 22 to March 23,,,,,,TOTAL TRUST,BALANCE SHEET,Balance Sheet,Finance Balance Sheet,Debtors,119417,Provider Consolidated invoices ,158000,Other Debtors < One Year,1505,Leeds Teaching Hosp Trust,1000,Default Value,Accounted,Fully Paid,"28,010.19",08/03/2023
York and Scarborough Teaching Hospitals NHS Foundation Trust BU,1410200864,6720262,STANDARD,15/12/2022,"28,010.19",17/12/2022,RCBNFAIRBURNC1,TRUST,The Leeds Teaching Hospitals NHS Trust,FINANCE,LS9 7TF,-204.16,4,ITEM,Provision of Laboratory Testing Services - As And When Required - July 22 to March 23,,,,,,TOTAL TRUST,BALANCE SHEET,Balance Sheet,Finance Balance Sheet,Debtors,119417,Provider Consolidated invoices ,158000,Other Debtors < One Year,1505,Leeds Teaching Hosp Trust,1000,Default Value,Accounted,Fully Paid,"28,010.19",08/03/2023
York and Scarborough Teaching Hospitals NHS Foundation Trust BU,1410200864,6720262,STANDARD,15/12/2022,"28,010.19",17/12/2022,RCBNFAIRBURNC1,TRUST,The Leeds Teaching Hospitals NHS Trust,FINANCE,LS9 7TF,204.16,4,ITEM,Provision of Laboratory Testing Services - As And When Required - July 22 to March 23,,,,,,TOTAL TRUST,BALANCE SHEET,Balance Sheet,Finance Balance Sheet,Debtors,119417,Provider Consolidated invoices ,158000,Other Debtors < One Year,1505,Leeds Teaching Hosp Trust,1000,Default Value,Accounted,Fully Paid,"28,010.19",08/03/2023
York and Scarborough Teaching Hospitals NHS Foundation Trust BU,1410200864,6720262,STANDARD,15/12/2022,"28,010.19",17/12/2022,RCBNFAIRBURNC1,TRUST,The Leeds Teaching Hospitals NHS Trust,FINANCE,LS9 7TF,-172.70,5,ITEM,Provision of Laboratory Testing Services - As And When Required - July 22 to March 23,,,,,,TOTAL TRUST,BALANCE SHEET,Balance Sheet,Finance Balance Sheet,Debtors,119417,Provider Consolidated invoices ,158000,Other Debtors < One Year,1505,Leeds Teaching Hosp Trust,1000,Default Value,Accounted,Fully Paid,"28,010.19",08/03/2023
York and Scarborough Teaching Hospitals NHS Foundation Trust BU,1410200864,6720262,STANDARD,15/12/2022,"28,010.19",17/12/2022,RCBNFAIRBURNC1,TRUST,The Leeds Teaching Hospitals NHS Trust,FINANCE,LS9 7TF,172.70,5,ITEM,Provision of Laboratory Testing Services - As And When Required - July 22 to March 23,,,,,,TOTAL TRUST,BALANCE SHEET,Balance Sheet,Finance Balance Sheet,Debtors,119417,Provider Consolidated invoices ,158000,Other Debtors < One Year,1505,Leeds Teaching Hosp Trust,1000,Default Value,Accounted,Fully Paid,"28,010.19",08/03/2023
York and Scarborough Teaching Hospitals NHS Foundation Trust BU,1410200864,6720262,STANDARD,15/12/2022,"28,010.19",17/12/2022,RCBNFAIRBURNC1,TRUST,The Leeds Teaching Hospitals NHS Trust,FINANCE,LS9 7TF,-172.70,6,ITEM,Provision of Laboratory Testing Services - As And When Required - July 22 to March 23,,,,,,TOTAL TRUST,BALANCE SHEET,Balance Sheet,Finance Balance Sheet,Debtors,119417,Provider Consolidated invoices ,158000,Other Debtors < One Year,1505,Leeds Teaching Hosp Trust,1000,Default Value,Accounted,Fully Paid,"28,010.19",08/03/2023
York and Scarborough Teaching Hospitals NHS Foundation Trust BU,1410200864,6720262,STANDARD,15/12/2022,"28,010.19",17/12/2022,RCBNFAIRBURNC1,TRUST,The Leeds Teaching Hospitals NHS Trust,FINANCE,LS9 7TF,172.70,6,ITEM,Provision of Laboratory Testing Services - As And When Required - July 22 to March 23,,,,,,TOTAL TRUST,BALANCE SHEET,Balance Sheet,Finance Balance Sheet,Debtors,119417,Provider Consolidated invoices ,158000,Other Debtors < One Year,1505,Leeds Teaching Hosp Trust,1000,Default Value,Accounted,Fully Paid,"28,010.19",08/03/2023
York and Scarborough Teaching Hospitals NHS Foundation Trust BU,1410200864,6720262,STANDARD,15/12/2022,"28,010.19",17/12/2022,RCBNFAIRBURNC1,TRUST,The Leeds Teaching Hospitals NHS Trust,FINANCE,LS9 7TF,-363.30,7,ITEM,Provision of Laboratory Testing Services - As And When Required - July 22 to March 23,,,,,,TOTAL TRUST,BALANCE SHEET,Balance Sheet,Finance Balance Sheet,Debtors,119417,Provider Consolidated invoices ,158000,Other Debtors < One Year,1505,Leeds Teaching Hosp Trust,1000,Default Value,Accounted,Fully Paid,"28,010.19",08/03/2023
York and Scarborough Teaching Hospitals NHS Foundation Trust BU,1410200864,6720262,STANDARD,15/12/2022,"28,010.19",17/12/2022,RCBNFAIRBURNC1,TRUST,The Leeds Teaching Hospitals NHS Trust,FINANCE,LS9 7TF,363.30,7,ITEM,Provision of Laboratory Testing Services - As And When Required - July 22 to March 23,,,,,,TOTAL TRUST,BALANCE SHEET,Balance Sheet,Finance Balance Sheet,Debtors,119417,Provider Consolidated invoices ,158000,Other Debtors < One Year,1505,Leeds Teaching Hosp Trust,1000,Default Value,Accounted,Fully Paid,"28,010.19",08/03/2023
York and Scarborough Teaching Hospitals NHS Foundation Trust BU,1410200864,6720262,STANDARD,15/12/2022,"28,010.19",17/12/2022,RCBNFAIRBURNC1,TRUST,The Leeds Teaching Hospitals NHS Trust,FINANCE,LS9 7TF,-373.76,8,ITEM,Provision of Laboratory Testing Services - As And When Required - July 22 to March 23,,,,,,TOTAL TRUST,BALANCE SHEET,Balance Sheet,Finance Balance Sheet,Debtors,119417,Provider Consolidated invoices ,158000,Other Debtors < One Year,1505,Leeds Teaching Hosp Trust,1000,Default Value,Accounted,Fully Paid,"28,010.19",08/03/2023
York and Scarborough Teaching Hospitals NHS Foundation Trust BU,1410200864,6720262,STANDARD,15/12/2022,"28,010.19",17/12/2022,RCBNFAIRBURNC1,TRUST,The Leeds Teaching Hospitals NHS Trust,FINANCE,LS9 7TF,373.76,8,ITEM,Provision of Laboratory Testing Services - As And When Required - July 22 to March 23,,,,,,TOTAL TRUST,BALANCE SHEET,Balance Sheet,Finance Balance Sheet,Debtors,119417,Provider Consolidated invoices ,158000,Other Debtors < One Year,1505,Leeds Teaching Hosp Trust,1000,Default Value,Accounted,Fully Paid,"28,010.19",08/03/2023
York and Scarborough Teaching Hospitals NHS Foundation Trust BU,1410200864,6720262,STANDARD,15/12/2022,"28,010.19",17/12/2022,RCBNFAIRBURNC1,TRUST,The Leeds Teaching Hospitals NHS Trust,FINANCE,LS9 7TF,-64.68,9,ITEM,Provision of Laboratory Testing Services - As And When Required - July 22 to March 23,,,,,,TOTAL TRUST,BALANCE SHEET,Balance Sheet,Finance Balance Sheet,Debtors,119417,Provider Consolidated invoices ,158000,Other Debtors < One Year,1505,Leeds Teaching Hosp Trust,1000,Default Value,Accounted,Fully Paid,"28,010.19",08/03/2023
York and Scarborough Teaching Hospitals NHS Foundation Trust BU,1410200864,6720262,STANDARD,15/12/2022,"28,010.19",17/12/2022,RCBNFAIRBURNC1,TRUST,The Leeds Teaching Hospitals NHS Trust,FINANCE,LS9 7TF,64.68,9,ITEM,Provision of Laboratory Testing Services - As And When Required - July 22 to March 23,,,,,,TOTAL TRUST,BALANCE SHEET,Balance Sheet,Finance Balance Sheet,Debtors,119417,Provider Consolidated invoices ,158000,Other Debtors < One Year,1505,Leeds Teaching Hosp Trust,1000,Default Value,Accounted,Fully Paid,"28,010.19",08/03/2023
York and Scarborough Teaching Hospitals NHS Foundation Trust BU,1410200864,6720262,STANDARD,15/12/2022,"28,010.19",17/12/2022,RCBNFAIRBURNC1,TRUST,The Leeds Teaching Hospitals NHS Trust,FINANCE,LS9 7TF,-280.29,10,ITEM,Provision of Laboratory Testing Services - As And When Required - July 22 to March 23,,,,,,TOTAL TRUST,BALANCE SHEET,Balance Sheet,Finance Balance Sheet,Debtors,119417,Provider Consolidated invoices ,158000,Other Debtors < One Year,1505,Leeds Teaching Hosp Trust,1000,Default Value,Accounted,Fully Paid,"28,010.19",08/03/2023
York and Scarborough Teaching Hospitals NHS Foundation Trust BU,1410200864,6720262,STANDARD,15/12/2022,"28,010.19",17/12/2022,RCBNFAIRBURNC1,TRUST,The Leeds Teaching Hospitals NHS Trust,FINANCE,LS9 7TF,280.29,10,ITEM,Provision of Laboratory Testing Services - As And When Required - July 22 to March 23,,,,,,TOTAL TRUST,BALANCE SHEET,Balance Sheet,Finance Balance Sheet,Debtors,119417,Provider Consolidated invoices ,158000,Other Debtors < One Year,1505,Leeds Teaching Hosp Trust,1000,Default Value,Accounted,Fully Paid,"28,010.19",08/03/2023
York and Scarborough Teaching Hospitals NHS Foundation Trust BU,1410200864,6720262,STANDARD,15/12/2022,"28,010.19",17/12/2022,RCBNFAIRBURNC1,TRUST,The Leeds Teaching Hospitals NHS Trust,FINANCE,LS9 7TF,-353.06,11,ITEM,Provision of Laboratory Testing Services - As And When Required - July 22 to March 23,,,,,,TOTAL TRUST,BALANCE SHEET,Balance Sheet,Finance Balance Sheet,Debtors,119417,Provider Consolidated invoices ,158000,Other Debtors < One Year,1505,Leeds Teaching Hosp Trust,1000,Default Value,Accounted,Fully Paid,"28,010.19",08/03/2023
York and Scarborough Teaching Hospitals NHS Foundation Trust BU,1410200864,6720262,STANDARD,15/12/2022,"28,010.19",17/12/2022,RCBNFAIRBURNC1,TRUST,The Leeds Teaching Hospitals NHS Trust,FINANCE,LS9 7TF,353.06,11,ITEM,Provision of Laboratory Testing Services - As And When Required - July 22 to March 23,,,,,,TOTAL TRUST,BALANCE SHEET,Balance Sheet,Finance Balance Sheet,Debtors,119417,Provider Consolidated invoices ,158000,Other Debtors < One Year,1505,Leeds Teaching Hosp Trust,1000,Default Value,Accounted,Fully Paid,"28,010.19",08/03/2023
York and Scarborough Teaching Hospitals NHS Foundation Trust BU,1410200864,6720262,STANDARD,15/12/2022,"28,010.19",17/12/2022,RCBNFAIRBURNC1,TRUST,The Leeds Teaching Hospitals NHS Trust,FINANCE,LS9 7TF,-77.80,12,ITEM,Provision of Laboratory Testing Services - As And When Required - July 22 to March 23,,,,,,TOTAL TRUST,BALANCE SHEET,Balance Sheet,Finance Balance Sheet,Debtors,119417,Provider Consolidated invoices ,158000,Other Debtors < One Year,1505,Leeds Teaching Hosp Trust,1000,Default Value,Accounted,Fully Paid,"28,010.19",08/03/2023
York and Scarborough Teaching Hospitals NHS Foundation Trust BU,1410200864,6720262,STANDARD,15/12/2022,"28,010.19",17/12/2022,RCBNFAIRBURNC1,TRUST,The Leeds Teaching Hospitals NHS Trust,FINANCE,LS9 7TF,77.80,12,ITEM,Provision of Laboratory Testing Services - As And When Required - July 22 to March 23,,,,,,TOTAL TRUST,BALANCE SHEET,Balance Sheet,Finance Balance Sheet,Debtors,119417,Provider Consolidated invoices ,158000,Other Debtors < One Year,1505,Leeds Teaching Hosp Trust,1000,Default Value,Accounted,Fully Paid,"28,010.19",08/03/2023
York and Scarborough Teaching Hospitals NHS Foundation Trust BU,1410200864,6720262,STANDARD,15/12/2022,"28,010.19",17/12/2022,RCBNFAIRBURNC1,TRUST,The Leeds Teaching Hospitals NHS Trust,FINANCE,LS9 7TF,-39.99,13,ITEM,Provision of Laboratory Testing Services - As And When Required - July 22 to March 23,,,,,,TOTAL TRUST,BALANCE SHEET,Balance Sheet,Finance Balance Sheet,Debtors,119417,Provider Consolidated invoices ,158000,Other Debtors < One Year,1505,Leeds Teaching Hosp Trust,1000,Default Value,Accounted,Fully Paid,"28,010.19",08/03/2023
York and Scarborough Teaching Hospitals NHS Foundation Trust BU,1410200864,6720262,STANDARD,15/12/2022,"28,010.19",17/12/2022,RCBNFAIRBURNC1,TRUST,The Leeds Teaching Hospitals NHS Trust,FINANCE,LS9 7TF,39.99,13,ITEM,Provision of Laboratory Testing Services - As And When Required - July 22 to March 23,,,,,,TOTAL TRUST,BALANCE SHEET,Balance Sheet,Finance Balance Sheet,Debtors,119417,Provider Consolidated invoices ,158000,Other Debtors < One Year,1505,Leeds Teaching Hosp Trust,1000,Default Value,Accounted,Fully Paid,"28,010.19",08/03/2023
York and Scarborough Teaching Hospitals NHS Foundation Trust BU,1410200864,6720262,STANDARD,15/12/2022,"28,010.19",17/12/2022,RCBNFAIRBURNC1,TRUST,The Leeds Teaching Hospitals NHS Trust,FINANCE,LS9 7TF,0.00,14,TAX,NEP VAT REGIME - VAT TAX,XMT,,,,,TOTAL TRUST,BALANCE SHEET,Balance Sheet,Finance Balance Sheet,Debtors,119417,Provider Consolidated invoices ,158000,Other Debtors < One Year,1505,Leeds Teaching Hosp Trust,1000,Default Value,Accounted,Fully Paid,"28,010.19",08/03/2023
York and Scarborough Teaching Hospitals NHS Foundation Trust BU,1410200864,6720262,STANDARD,15/12/2022,"28,010.19",17/12/2022,RCBNFAIRBURNC1,TRUST,The Leeds Teaching Hospitals NHS Trust,FINANCE,LS9 7TF,0.00,14,TAX,NEP VAT REGIME - VAT TAX,XMT,,,,,TOTAL TRUST,TOTAL TRUST,BALANCE SHEET,FINANCE - BALANCE SHEET,DEBTORS,119405,Dr Vat Debtor,156000,Vat Debtor < One Year,1000,Default Value,1000,Default Value,Accounted,Fully Paid,"28,010.19",08/03/2023
York and Scarborough Teaching Hospitals NHS Foundation Trust BU,1410200864,6720262,STANDARD,15/12/2022,"28,010.19",17/12/2022,RCBNFAIRBURNC1,TRUST,The Leeds Teaching Hospitals NHS Trust,FINANCE,LS9 7TF,0.00,14,TAX,NEP VAT REGIME - VAT TAX,XMT,,,,,TOTAL TRUST,BALANCE SHEET,Balance Sheet,Finance Balance Sheet,Debtors,119417,Provider Consolidated invoices ,158000,Other Debtors < One Year,1505,Leeds Teaching Hosp Trust,1000,Default Value,Accounted,Fully Paid,"28,010.19",08/03/2023
York and Scarborough Teaching Hospitals NHS Foundation Trust BU,1410200864,6720262,STANDARD,15/12/2022,"28,010.19",17/12/2022,RCBNFAIRBURNC1,TRUST,The Leeds Teaching Hospitals NHS Trust,FINANCE,LS9 7TF,0.00,14,TAX,NEP VAT REGIME - VAT TAX,XMT,,,,,TOTAL TRUST,TOTAL TRUST,BALANCE SHEET,FINANCE - BALANCE SHEET,DEBTORS,119405,Dr Vat Debtor,156000,Vat Debtor < One Year,1000,Default Value,1000,Default Value,Accounted,Fully Paid,"28,010.19",08/03/2023
York and Scarborough Teaching Hospitals NHS Foundation Trust BU,1410200864,6720262,STANDARD,15/12/2022,"28,010.19",17/12/2022,RCBNFAIRBURNC1,TRUST,The Leeds Teaching Hospitals NHS Trust,FINANCE,LS9 7TF,0.00,14,TAX,NEP VAT REGIME - VAT TAX,XMT,,,,,TOTAL TRUST,BALANCE SHEET,Balance Sheet,Finance Balance Sheet,Debtors,119417,Provider Consolidated invoices ,158000,Other Debtors < One Year,1505,Leeds Teaching Hosp Trust,1000,Default Value,Accounted,Fully Paid,"28,010.19",08/03/2023
York and Scarborough Teaching Hospitals NHS Foundation Trust BU,1410200864,6720262,STANDARD,15/12/2022,"28,010.19",17/12/2022,RCBNFAIRBURNC1,TRUST,The Leeds Teaching Hospitals NHS Trust,FINANCE,LS9 7TF,0.00,14,TAX,NEP VAT REGIME - VAT TAX,XMT,,,,,TOTAL TRUST,TOTAL TRUST,BALANCE SHEET,FINANCE - BALANCE SHEET,DEBTORS,119405,Dr Vat Debtor,156000,Vat Debtor < One Year,1000,Default Value,1000,Default Value,Accounted,Fully Paid,"28,010.19",08/03/2023
York and Scarborough Teaching Hospitals NHS Foundation Trust BU,1410200864,6720262,STANDARD,15/12/2022,"28,010.19",17/12/2022,RCBNFAIRBURNC1,TRUST,The Leeds Teaching Hospitals NHS Trust,FINANCE,LS9 7TF,0.00,14,TAX,NEP VAT REGIME - VAT TAX,XMT,,,,,TOTAL TRUST,BALANCE SHEET,Balance Sheet,Finance Balance Sheet,Debtors,119417,Provider Consolidated invoices ,158000,Other Debtors < One Year,1505,Leeds Teaching Hosp Trust,1000,Default Value,Accounted,Fully Paid,"28,010.19",08/03/2023
York and Scarborough Teaching Hospitals NHS Foundation Trust BU,1410200864,6720262,STANDARD,15/12/2022,"28,010.19",17/12/2022,RCBNFAIRBURNC1,TRUST,The Leeds Teaching Hospitals NHS Trust,FINANCE,LS9 7TF,0.00,14,TAX,NEP VAT REGIME - VAT TAX,XMT,,,,,TOTAL TRUST,TOTAL TRUST,BALANCE SHEET,FINANCE - BALANCE SHEET,DEBTORS,119405,Dr Vat Debtor,156000,Vat Debtor < One Year,1000,Default Value,1000,Default Value,Accounted,Fully Paid,"28,010.19",08/03/2023
York and Scarborough Teaching Hospitals NHS Foundation Trust BU,1410200864,6720262,STANDARD,15/12/2022,"28,010.19",17/12/2022,RCBNFAIRBURNC1,TRUST,The Leeds Teaching Hospitals NHS Trust,FINANCE,LS9 7TF,0.00,14,TAX,NEP VAT REGIME - VAT TAX,XMT,,,,,TOTAL TRUST,BALANCE SHEET,Balance Sheet,Finance Balance Sheet,Debtors,119417,Provider Consolidated invoices ,158000,Other Debtors < One Year,1505,Leeds Teaching Hosp Trust,1000,Default Value,Accounted,Fully Paid,"28,010.19",08/03/2023
York and Scarborough Teaching Hospitals NHS Foundation Trust BU,1410200864,6720262,STANDARD,15/12/2022,"28,010.19",17/12/2022,RCBNFAIRBURNC1,TRUST,The Leeds Teaching Hospitals NHS Trust,FINANCE,LS9 7TF,0.00,14,TAX,NEP VAT REGIME - VAT TAX,XMT,,,,,TOTAL TRUST,TOTAL TRUST,BALANCE SHEET,FINANCE - BALANCE SHEET,DEBTORS,119405,Dr Vat Debtor,156000,Vat Debtor < One Year,1000,Default Value,1000,Default Value,Accounted,Fully Paid,"28,010.19",08/03/2023
York and Scarborough Teaching Hospitals NHS Foundation Trust BU,1410200864,6720262,STANDARD,15/12/2022,"28,010.19",17/12/2022,RCBNFAIRBURNC1,TRUST,The Leeds Teaching Hospitals NHS Trust,FINANCE,LS9 7TF,0.00,14,TAX,NEP VAT REGIME - VAT TAX,XMT,,,,,TOTAL TRUST,BALANCE SHEET,Balance Sheet,Finance Balance Sheet,Debtors,119417,Provider Consolidated invoices ,158000,Other Debtors < One Year,1505,Leeds Teaching Hosp Trust,1000,Default Value,Accounted,Fully Paid,"28,010.19",08/03/2023
York and Scarborough Teaching Hospitals NHS Foundation Trust BU,1410200864,6720262,STANDARD,15/12/2022,"28,010.19",17/12/2022,RCBNFAIRBURNC1,TRUST,The Leeds Teaching Hospitals NHS Trust,FINANCE,LS9 7TF,0.00,14,TAX,NEP VAT REGIME - VAT TAX,XMT,,,,,TOTAL TRUST,TOTAL TRUST,BALANCE SHEET,FINANCE - BALANCE SHEET,DEBTORS,119405,Dr Vat Debtor,156000,Vat Debtor < One Year,1000,Default Value,1000,Default Value,Accounted,Fully Paid,"28,010.19",08/03/2023
York and Scarborough Teaching Hospitals NHS Foundation Trust BU,1410200864,6720262,STANDARD,15/12/2022,"28,010.19",17/12/2022,RCBNFAIRBURNC1,TRUST,The Leeds Teaching Hospitals NHS Trust,FINANCE,LS9 7TF,0.00,14,TAX,NEP VAT REGIME - VAT TAX,XMT,,,,,TOTAL TRUST,BALANCE SHEET,Balance Sheet,Finance Balance Sheet,Debtors,119417,Provider Consolidated invoices ,158000,Other Debtors < One Year,1505,Leeds Teaching Hosp Trust,1000,Default Value,Accounted,Fully Paid,"28,010.19",08/03/2023
York and Scarborough Teaching Hospitals NHS Foundation Trust BU,1410200864,6720262,STANDARD,15/12/2022,"28,010.19",17/12/2022,RCBNFAIRBURNC1,TRUST,The Leeds Teaching Hospitals NHS Trust,FINANCE,LS9 7TF,0.00,14,TAX,NEP VAT REGIME - VAT TAX,XMT,,,,,TOTAL TRUST,TOTAL TRUST,BALANCE SHEET,FINANCE - BALANCE SHEET,DEBTORS,119405,Dr Vat Debtor,156000,Vat Debtor < One Year,1000,Default Value,1000,Default Value,Accounted,Fully Paid,"28,010.19",08/03/2023
York and Scarborough Teaching Hospitals NHS Foundation Trust BU,1410200864,6720262,STANDARD,15/12/2022,"28,010.19",17/12/2022,RCBNFAIRBURNC1,TRUST,The Leeds Teaching Hospitals NHS Trust,FINANCE,LS9 7TF,0.00,14,TAX,NEP VAT REGIME - VAT TAX,XMT,,,,,TOTAL TRUST,BALANCE SHEET,Balance Sheet,Finance Balance Sheet,Debtors,119417,Provider Consolidated invoices ,158000,Other Debtors < One Year,1505,Leeds Teaching Hosp Trust,1000,Default Value,Accounted,Fully Paid,"28,010.19",08/03/2023
York and Scarborough Teaching Hospitals NHS Foundation Trust BU,1410200864,6720262,STANDARD,15/12/2022,"28,010.19",17/12/2022,RCBNFAIRBURNC1,TRUST,The Leeds Teaching Hospitals NHS Trust,FINANCE,LS9 7TF,0.00,14,TAX,NEP VAT REGIME - VAT TAX,XMT,,,,,TOTAL TRUST,TOTAL TRUST,BALANCE SHEET,FINANCE - BALANCE SHEET,DEBTORS,119405,Dr Vat Debtor,156000,Vat Debtor < One Year,1000,Default Value,1000,Default Value,Accounted,Fully Paid,"28,010.19",08/03/2023
York and Scarborough Teaching Hospitals NHS Foundation Trust BU,1410200864,6720262,STANDARD,15/12/2022,"28,010.19",17/12/2022,RCBNFAIRBURNC1,TRUST,The Leeds Teaching Hospitals NHS Trust,FINANCE,LS9 7TF,0.00,14,TAX,NEP VAT REGIME - VAT TAX,XMT,,,,,TOTAL TRUST,BALANCE SHEET,Balance Sheet,Finance Balance Sheet,Debtors,119417,Provider Consolidated invoices ,158000,Other Debtors < One Year,1505,Leeds Teaching Hosp Trust,1000,Default Value,Accounted,Fully Paid,"28,010.19",08/03/2023
York and Scarborough Teaching Hospitals NHS Foundation Trust BU,1410200864,6720262,STANDARD,15/12/2022,"28,010.19",17/12/2022,RCBNFAIRBURNC1,TRUST,The Leeds Teaching Hospitals NHS Trust,FINANCE,LS9 7TF,0.00,14,TAX,NEP VAT REGIME - VAT TAX,XMT,,,,,TOTAL TRUST,TOTAL TRUST,BALANCE SHEET,FINANCE - BALANCE SHEET,DEBTORS,119405,Dr Vat Debtor,156000,Vat Debtor < One Year,1000,Default Value,1000,Default Value,Accounted,Fully Paid,"28,010.19",08/03/2023
York and Scarborough Teaching Hospitals NHS Foundation Trust BU,1410200864,6720262,STANDARD,15/12/2022,"28,010.19",17/12/2022,RCBNFAIRBURNC1,TRUST,The Leeds Teaching Hospitals NHS Trust,FINANCE,LS9 7TF,0.00,14,TAX,NEP VAT REGIME - VAT TAX,XMT,,,,,TOTAL TRUST,BALANCE SHEET,Balance Sheet,Finance Balance Sheet,Debtors,119417,Provider Consolidated invoices ,158000,Other Debtors < One Year,1505,Leeds Teaching Hosp Trust,1000,Default Value,Accounted,Fully Paid,"28,010.19",08/03/2023
York and Scarborough Teaching Hospitals NHS Foundation Trust BU,1410200864,6720262,STANDARD,15/12/2022,"28,010.19",17/12/2022,RCBNFAIRBURNC1,TRUST,The Leeds Teaching Hospitals NHS Trust,FINANCE,LS9 7TF,0.00,14,TAX,NEP VAT REGIME - VAT TAX,XMT,,,,,TOTAL TRUST,TOTAL TRUST,BALANCE SHEET,FINANCE - BALANCE SHEET,DEBTORS,119405,Dr Vat Debtor,156000,Vat Debtor < One Year,1000,Default Value,1000,Default Value,Accounted,Fully Paid,"28,010.19",08/03/2023
York and Scarborough Teaching Hospitals NHS Foundation Trust BU,1410200864,6720262,STANDARD,15/12/2022,"28,010.19",17/12/2022,RCBNFAIRBURNC1,TRUST,The Leeds Teaching Hospitals NHS Trust,FINANCE,LS9 7TF,0.00,14,TAX,NEP VAT REGIME - VAT TAX,XMT,,,,,TOTAL TRUST,BALANCE SHEET,Balance Sheet,Finance Balance Sheet,Debtors,119417,Provider Consolidated invoices ,158000,Other Debtors < One Year,1505,Leeds Teaching Hosp Trust,1000,Default Value,Accounted,Fully Paid,"28,010.19",08/03/2023
York and Scarborough Teaching Hospitals NHS Foundation Trust BU,1410200864,6720262,STANDARD,15/12/2022,"28,010.19",17/12/2022,RCBNFAIRBURNC1,TRUST,The Leeds Teaching Hospitals NHS Trust,FINANCE,LS9 7TF,0.00,14,TAX,NEP VAT REGIME - VAT TAX,XMT,,,,,TOTAL TRUST,TOTAL TRUST,BALANCE SHEET,FINANCE - BALANCE SHEET,DEBTORS,119405,Dr Vat Debtor,156000,Vat Debtor < One Year,1000,Default Value,1000,Default Value,Accounted,Fully Paid,"28,010.19",08/03/2023
York and Scarborough Teaching Hospitals NHS Foundation Trust BU,1410200864,6720262,STANDARD,15/12/2022,"28,010.19",17/12/2022,RCBNFAIRBURNC1,TRUST,The Leeds Teaching Hospitals NHS Trust,FINANCE,LS9 7TF,0.00,14,TAX,NEP VAT REGIME - VAT TAX,XMT,,,,,TOTAL TRUST,BALANCE SHEET,Balance Sheet,Finance Balance Sheet,Debtors,119417,Provider Consolidated invoices ,158000,Other Debtors < One Year,1505,Leeds Teaching Hosp Trust,1000,Default Value,Accounted,Fully Paid,"28,010.19",08/03/2023
York and Scarborough Teaching Hospitals NHS Foundation Trust BU,1410200864,6720262,STANDARD,15/12/2022,"28,010.19",17/12/2022,RCBNFAIRBURNC1,TRUST,The Leeds Teaching Hospitals NHS Trust,FINANCE,LS9 7TF,0.00,14,TAX,NEP VAT REGIME - VAT TAX,XMT,,,,,TOTAL TRUST,TOTAL TRUST,BALANCE SHEET,FINANCE - BALANCE SHEET,DEBTORS,119405,Dr Vat Debtor,156000,Vat Debtor < One Year,1000,Default Value,1000,Default Value,Accounted,Fully Paid,"28,010.19",08/03/2023
York and Scarborough Teaching Hospitals NHS Foundation Trust BU,1410200864,6720262,STANDARD,15/12/2022,"28,010.19",17/12/2022,RCBNFAIRBURNC1,TRUST,The Leeds Teaching Hospitals NHS Trust,FINANCE,LS9 7TF,0.00,14,TAX,NEP VAT REGIME - VAT TAX,XMT,,,,,TOTAL TRUST,BALANCE SHEET,Balance Sheet,Finance Balance Sheet,Debtors,119417,Provider Consolidated invoices ,158000,Other Debtors < One Year,1505,Leeds Teaching Hosp Trust,1000,Default Value,Accounted,Fully Paid,"28,010.19",08/03/2023
York and Scarborough Teaching Hospitals NHS Foundation Trust BU,1410200864,6720262,STANDARD,15/12/2022,"28,010.19",17/12/2022,RCBNFAIRBURNC1,TRUST,The Leeds Teaching Hospitals NHS Trust,FINANCE,LS9 7TF,0.00,14,TAX,NEP VAT REGIME - VAT TAX,XMT,,,,,TOTAL TRUST,TOTAL TRUST,BALANCE SHEET,FINANCE - BALANCE SHEET,DEBTORS,119405,Dr Vat Debtor,156000,Vat Debtor < One Year,1000,Default Value,1000,Default Value,Accounted,Fully Paid,"28,010.19",08/03/2023
York and Scarborough Teaching Hospitals NHS Foundation Trust BU,1410200864,6720262,STANDARD,15/12/2022,"28,010.19",17/12/2022,RCBNFAIRBURNC1,TRUST,The Leeds Teaching Hospitals NHS Trust,FINANCE,LS9 7TF,0.00,14,TAX,NEP VAT REGIME - VAT TAX,XMT,,,,,TOTAL TRUST,BALANCE SHEET,Balance Sheet,Finance Balance Sheet,Debtors,119417,Provider Consolidated invoices ,158000,Other Debtors < One Year,1505,Leeds Teaching Hosp Trust,1000,Default Value,Accounted,Fully Paid,"28,010.19",08/03/2023
York and Scarborough Teaching Hospitals NHS Foundation Trust BU,1410200864,6720262,STANDARD,15/12/2022,"28,010.19",17/12/2022,RCBNFAIRBURNC1,TRUST,The Leeds Teaching Hospitals NHS Trust,FINANCE,LS9 7TF,0.00,14,TAX,NEP VAT REGIME - VAT TAX,XMT,,,,,TOTAL TRUST,TOTAL TRUST,BALANCE SHEET,FINANCE - BALANCE SHEET,DEBTORS,119405,Dr Vat Debtor,156000,Vat Debtor < One Year,1000,Default Value,1000,Default Value,Accounted,Fully Paid,"28,010.19",08/03/2023
York and Scarborough Teaching Hospitals NHS Foundation Trust BU,1410200864,6720262,STANDARD,15/12/2022,"28,010.19",17/12/2022,RCBNFAIRBURNC1,TRUST,The Leeds Teaching Hospitals NHS Trust,FINANCE,LS9 7TF,0.00,14,TAX,NEP VAT REGIME - VAT TAX,XMT,,,,,TOTAL TRUST,BALANCE SHEET,Balance Sheet,Finance Balance Sheet,Debtors,119417,Provider Consolidated invoices ,158000,Other Debtors < One Year,1505,Leeds Teaching Hosp Trust,1000,Default Value,Accounted,Fully Paid,"28,010.19",08/03/2023
York and Scarborough Teaching Hospitals NHS Foundation Trust BU,1410200864,6720262,STANDARD,15/12/2022,"28,010.19",17/12/2022,RCBNFAIRBURNC1,TRUST,The Leeds Teaching Hospitals NHS Trust,FINANCE,LS9 7TF,0.00,14,TAX,NEP VAT REGIME - VAT TAX,XMT,,,,,TOTAL TRUST,TOTAL TRUST,BALANCE SHEET,FINANCE - BALANCE SHEET,DEBTORS,119405,Dr Vat Debtor,156000,Vat Debtor < One Year,1000,Default Value,1000,Default Value,Accounted,Fully Paid,"28,010.19",08/03/2023
York and Scarborough Teaching Hospitals NHS Foundation Trust BU,1410200864,6720262,STANDARD,15/12/2022,"28,010.19",17/12/2022,RCBNFAIRBURNC1,TRUST,The Leeds Teaching Hospitals NHS Trust,FINANCE,LS9 7TF,0.00,14,TAX,NEP VAT REGIME - VAT TAX,XMT,,,,,TOTAL TRUST,BALANCE SHEET,Balance Sheet,Finance Balance Sheet,Debtors,119417,Provider Consolidated invoices ,158000,Other Debtors < One Year,1505,Leeds Teaching Hosp Trust,1000,Default Value,Accounted,Fully Paid,"28,010.19",08/03/2023
York and Scarborough Teaching Hospitals NHS Foundation Trust BU,1410200864,6720262,STANDARD,15/12/2022,"28,010.19",17/12/2022,RCBNFAIRBURNC1,TRUST,The Leeds Teaching Hospitals NHS Trust,FINANCE,LS9 7TF,0.00,14,TAX,NEP VAT REGIME - VAT TAX,XMT,,,,,TOTAL TRUST,TOTAL TRUST,BALANCE SHEET,FINANCE - BALANCE SHEET,DEBTORS,119405,Dr Vat Debtor,156000,Vat Debtor < One Year,1000,Default Value,1000,Default Value,Accounted,Fully Paid,"28,010.19",08/03/2023
York and Scarborough Teaching Hospitals NHS Foundation Trust BU,1410200864,6720262,STANDARD,15/12/2022,"28,010.19",17/12/2022,RCBNFAIRBURNC1,TRUST,The Leeds Teaching Hospitals NHS Trust,FINANCE,LS9 7TF,0.00,14,TAX,NEP VAT REGIME - VAT TAX,XMT,,,,,TOTAL TRUST,BALANCE SHEET,Balance Sheet,Finance Balance Sheet,Debtors,119417,Provider Consolidated invoices ,158000,Other Debtors < One Year,1505,Leeds Teaching Hosp Trust,1000,Default Value,Accounted,Fully Paid,"28,010.19",08/03/2023
York and Scarborough Teaching Hospitals NHS Foundation Trust BU,1410200864,6720262,STANDARD,15/12/2022,"28,010.19",17/12/2022,RCBNFAIRBURNC1,TRUST,The Leeds Teaching Hospitals NHS Trust,FINANCE,LS9 7TF,0.00,14,TAX,NEP VAT REGIME - VAT TAX,XMT,,,,,TOTAL TRUST,TOTAL TRUST,BALANCE SHEET,FINANCE - BALANCE SHEET,DEBTORS,119405,Dr Vat Debtor,156000,Vat Debtor < One Year,1000,Default Value,1000,Default Value,Accounted,Fully Paid,"28,010.19",08/03/2023
York and Scarborough Teaching Hospitals NHS Foundation Trust BU,1410200864,6720262,STANDARD,15/12/2022,"28,010.19",17/12/2022,RCBNFAIRBURNC1,TRUST,The Leeds Teaching Hospitals NHS Trust,FINANCE,LS9 7TF,0.00,14,TAX,NEP VAT REGIME - VAT TAX,XMT,,,,,TOTAL TRUST,BALANCE SHEET,Balance Sheet,Finance Balance Sheet,Debtors,119417,Provider Consolidated invoices ,158000,Other Debtors < One Year,1505,Leeds Teaching Hosp Trust,1000,Default Value,Accounted,Fully Paid,"28,010.19",08/03/2023
York and Scarborough Teaching Hospitals NHS Foundation Trust BU,1410200864,6720262,STANDARD,15/12/2022,"28,010.19",17/12/2022,RCBNFAIRBURNC1,TRUST,The Leeds Teaching Hospitals NHS Trust,FINANCE,LS9 7TF,0.00,14,TAX,NEP VAT REGIME - VAT TAX,XMT,,,,,TOTAL TRUST,TOTAL TRUST,BALANCE SHEET,FINANCE - BALANCE SHEET,DEBTORS,119405,Dr Vat Debtor,156000,Vat Debtor < One Year,1000,Default Value,1000,Default Value,Accounted,Fully Paid,"28,010.19",08/03/2023
York and Scarborough Teaching Hospitals NHS Foundation Trust BU,1410200864,6720262,STANDARD,15/12/2022,"28,010.19",17/12/2022,RCBNFAIRBURNC1,TRUST,The Leeds Teaching Hospitals NHS Trust,FINANCE,LS9 7TF,0.00,14,TAX,NEP VAT REGIME - VAT TAX,XMT,,,,,TOTAL TRUST,BALANCE SHEET,Balance Sheet,Finance Balance Sheet,Debtors,119417,Provider Consolidated invoices ,158000,Other Debtors < One Year,1505,Leeds Teaching Hosp Trust,1000,Default Value,Accounted,Fully Paid,"28,010.19",08/03/2023
York and Scarborough Teaching Hospitals NHS Foundation Trust BU,1410200864,6720262,STANDARD,15/12/2022,"28,010.19",17/12/2022,RCBNFAIRBURNC1,TRUST,The Leeds Teaching Hospitals NHS Trust,FINANCE,LS9 7TF,0.00,14,TAX,NEP VAT REGIME - VAT TAX,XMT,,,,,TOTAL TRUST,TOTAL TRUST,BALANCE SHEET,FINANCE - BALANCE SHEET,DEBTORS,119405,Dr Vat Debtor,156000,Vat Debtor < One Year,1000,Default Value,1000,Default Value,Accounted,Fully Paid,"28,010.19",08/03/2023
York and Scarborough Teaching Hospitals NHS Foundation Trust BU,1410200864,6720262,STANDARD,15/12/2022,"28,010.19",17/12/2022,RCBNFAIRBURNC1,TRUST,The Leeds Teaching Hospitals NHS Trust,FINANCE,LS9 7TF,0.00,14,TAX,NEP VAT REGIME - VAT TAX,XMT,,,,,TOTAL TRUST,BALANCE SHEET,Balance Sheet,Finance Balance Sheet,Debtors,119417,Provider Consolidated invoices ,158000,Other Debtors < One Year,1505,Leeds Teaching Hosp Trust,1000,Default Value,Accounted,Fully Paid,"28,010.19",08/03/2023
York and Scarborough Teaching Hospitals NHS Foundation Trust BU,1410200864,6720262,STANDARD,15/12/2022,"28,010.19",17/12/2022,RCBNFAIRBURNC1,TRUST,The Leeds Teaching Hospitals NHS Trust,FINANCE,LS9 7TF,0.00,14,TAX,NEP VAT REGIME - VAT TAX,XMT,,,,,TOTAL TRUST,TOTAL TRUST,BALANCE SHEET,FINANCE - BALANCE SHEET,DEBTORS,119405,Dr Vat Debtor,156000,Vat Debtor < One Year,1000,Default Value,1000,Default Value,Accounted,Fully Paid,"28,010.19",08/03/2023
York and Scarborough Teaching Hospitals NHS Foundation Trust BU,1410200864,6720262,STANDARD,15/12/2022,"28,010.19",17/12/2022,RCBNFAIRBURNC1,TRUST,The Leeds Teaching Hospitals NHS Trust,FINANCE,LS9 7TF,0.00,14,TAX,NEP VAT REGIME - VAT TAX,XMT,,,,,TOTAL TRUST,BALANCE SHEET,Balance Sheet,Finance Balance Sheet,Debtors,119417,Provider Consolidated invoices ,158000,Other Debtors < One Year,1505,Leeds Teaching Hosp Trust,1000,Default Value,Accounted,Fully Paid,"28,010.19",08/03/2023
York and Scarborough Teaching Hospitals NHS Foundation Trust BU,1410200864,6720262,STANDARD,15/12/2022,"28,010.19",17/12/2022,RCBNFAIRBURNC1,TRUST,The Leeds Teaching Hospitals NHS Trust,FINANCE,LS9 7TF,0.00,14,TAX,NEP VAT REGIME - VAT TAX,XMT,,,,,TOTAL TRUST,TOTAL TRUST,BALANCE SHEET,FINANCE - BALANCE SHEET,DEBTORS,119405,Dr Vat Debtor,156000,Vat Debtor < One Year,1000,Default Value,1000,Default Value,Accounted,Fully Paid,"28,010.19",08/03/2023
York and Scarborough Teaching Hospitals NHS Foundation Trust BU,1410200864,6720262,STANDARD,15/12/2022,"28,010.19",17/12/2022,RCBNFAIRBURNC1,TRUST,The Leeds Teaching Hospitals NHS Trust,FINANCE,LS9 7TF,0.00,14,TAX,NEP VAT REGIME - VAT TAX,XMT,,,,,TOTAL TRUST,BALANCE SHEET,Balance Sheet,Finance Balance Sheet,Debtors,119417,Provider Consolidated invoices ,158000,Other Debtors < One Year,1505,Leeds Teaching Hosp Trust,1000,Default Value,Accounted,Fully Paid,"28,010.19",08/03/2023
York and Scarborough Teaching Hospitals NHS Foundation Trust BU,1410200864,6720262,STANDARD,15/12/2022,"28,010.19",17/12/2022,RCBNFAIRBURNC1,TRUST,The Leeds Teaching Hospitals NHS Trust,FINANCE,LS9 7TF,0.00,14,TAX,NEP VAT REGIME - VAT TAX,XMT,,,,,TOTAL TRUST,TOTAL TRUST,BALANCE SHEET,FINANCE - BALANCE SHEET,DEBTORS,119405,Dr Vat Debtor,156000,Vat Debtor < One Year,1000,Default Value,1000,Default Value,Accounted,Fully Paid,"28,010.19",08/03/2023
York and Scarborough Teaching Hospitals NHS Foundation Trust BU,1410200864,6720262,STANDARD,15/12/2022,"28,010.19",17/12/2022,RCBNFAIRBURNC1,TRUST,The Leeds Teaching Hospitals NHS Trust,FINANCE,LS9 7TF,0.00,14,TAX,NEP VAT REGIME - VAT TAX,XMT,,,,,TOTAL TRUST,BALANCE SHEET,Balance Sheet,Finance Balance Sheet,Debtors,119417,Provider Consolidated invoices ,158000,Other Debtors < One Year,1505,Leeds Teaching Hosp Trust,1000,Default Value,Accounted,Fully Paid,"28,010.19",08/03/2023
York and Scarborough Teaching Hospitals NHS Foundation Trust BU,1410200864,6720262,STANDARD,15/12/2022,"28,010.19",17/12/2022,RCBNFAIRBURNC1,TRUST,The Leeds Teaching Hospitals NHS Trust,FINANCE,LS9 7TF,0.00,14,TAX,NEP VAT REGIME - VAT TAX,XMT,,,,,TOTAL TRUST,TOTAL TRUST,BALANCE SHEET,FINANCE - BALANCE SHEET,DEBTORS,119405,Dr Vat Debtor,156000,Vat Debtor < One Year,1000,Default Value,1000,Default Value,Accounted,Fully Paid,"28,010.19",08/03/2023
York and Scarborough Teaching Hospitals NHS Foundation Trust BU,1410200864,6720262,STANDARD,15/12/2022,"28,010.19",17/12/2022,RCBNFAIRBURNC1,TRUST,The Leeds Teaching Hospitals NHS Trust,FINANCE,LS9 7TF,0.00,14,TAX,NEP VAT REGIME - VAT TAX,XMT,,,,,TOTAL TRUST,BALANCE SHEET,Balance Sheet,Finance Balance Sheet,Debtors,119417,Provider Consolidated invoices ,158000,Other Debtors < One Year,1505,Leeds Teaching Hosp Trust,1000,Default Value,Accounted,Fully Paid,"28,010.19",08/03/2023
York and Scarborough Teaching Hospitals NHS Foundation Trust BU,1410200864,6720262,STANDARD,15/12/2022,"28,010.19",17/12/2022,RCBNFAIRBURNC1,TRUST,The Leeds Teaching Hospitals NHS Trust,FINANCE,LS9 7TF,0.00,14,TAX,NEP VAT REGIME - VAT TAX,XMT,,,,,TOTAL TRUST,TOTAL TRUST,BALANCE SHEET,FINANCE - BALANCE SHEET,DEBTORS,119405,Dr Vat Debtor,156000,Vat Debtor < One Year,1000,Default Value,1000,Default Value,Accounted,Fully Paid,"28,010.19",08/03/2023
York and Scarborough Teaching Hospitals NHS Foundation Trust BU,1410200864,6720262,STANDARD,15/12/2022,"28,010.19",17/12/2022,RCBNFAIRBURNC1,TRUST,The Leeds Teaching Hospitals NHS Trust,FINANCE,LS9 7TF,0.00,14,TAX,NEP VAT REGIME - VAT TAX,XMT,,,,,TOTAL TRUST,BALANCE SHEET,Balance Sheet,Finance Balance Sheet,Debtors,119417,Provider Consolidated invoices ,158000,Other Debtors < One Year,1505,Leeds Teaching Hosp Trust,1000,Default Value,Accounted,Fully Paid,"28,010.19",08/03/2023
York and Scarborough Teaching Hospitals NHS Foundation Trust BU,1410200864,6720262,STANDARD,15/12/2022,"28,010.19",17/12/2022,RCBNFAIRBURNC1,TRUST,The Leeds Teaching Hospitals NHS Trust,FINANCE,LS9 7TF,0.00,14,TAX,NEP VAT REGIME - VAT TAX,XMT,,,,,TOTAL TRUST,TOTAL TRUST,BALANCE SHEET,FINANCE - BALANCE SHEET,DEBTORS,119405,Dr Vat Debtor,156000,Vat Debtor < One Year,1000,Default Value,1000,Default Value,Accounted,Fully Paid,"28,010.19",08/03/2023
York and Scarborough Teaching Hospitals NHS Foundation Trust BU,1410200864,6720262,STANDARD,15/12/2022,"28,010.19",17/12/2022,RCBNFAIRBURNC1,TRUST,The Leeds Teaching Hospitals NHS Trust,FINANCE,LS9 7TF,0.00,14,TAX,NEP VAT REGIME - VAT TAX,XMT,,,,,TOTAL TRUST,BALANCE SHEET,Balance Sheet,Finance Balance Sheet,Debtors,119417,Provider Consolidated invoices ,158000,Other Debtors < One Year,1505,Leeds Teaching Hosp Trust,1000,Default Value,Accounted,Fully Paid,"28,010.19",08/03/2023
York and Scarborough Teaching Hospitals NHS Foundation Trust BU,1410200864,6720262,STANDARD,15/12/2022,"28,010.19",17/12/2022,RCBNFAIRBURNC1,TRUST,The Leeds Teaching Hospitals NHS Trust,FINANCE,LS9 7TF,0.00,14,TAX,NEP VAT REGIME - VAT TAX,XMT,,,,,TOTAL TRUST,TOTAL TRUST,BALANCE SHEET,FINANCE - BALANCE SHEET,DEBTORS,119405,Dr Vat Debtor,156000,Vat Debtor < One Year,1000,Default Value,1000,Default Value,Accounted,Fully Paid,"28,010.19",08/03/2023
York and Scarborough Teaching Hospitals NHS Foundation Trust BU,1410200864,6720262,STANDARD,15/12/2022,"28,010.19",17/12/2022,RCBNFAIRBURNC1,TRUST,The Leeds Teaching Hospitals NHS Trust,FINANCE,LS9 7TF,"28,010.19",15,ITEM,Provision of Laboratory Testing Services - As And When Required - July 22 to March 23,,,,,,TOTAL TRUST,BALANCE SHEET,Balance Sheet,Finance Balance Sheet,Debtors,119417,Provider Consolidated invoices ,158000,Other Debtors < One Year,1505,Leeds Teaching Hosp Trust,1000,Default Value,Accounted,Fully Paid,"28,010.19",08/03/2023
York and Scarborough Teaching Hospitals NHS Foundation Trust BU,1410200864,6720262,STANDARD,15/12/2022,"28,010.19",17/12/2022,RCBNFAIRBURNC1,TRUST,The Leeds Teaching Hospitals NHS Trust,FINANCE,LS9 7TF,0.00,16,TAX,RCBN400114720,ZERO,,,,,TOTAL TRUST,TOTAL TRUST,BALANCE SHEET,FINANCE - BALANCE SHEET,DEBTORS,119405,Dr Vat Debtor,156000,Vat Debtor < One Year,1000,Default Value,1000,Default Value,Accounted,Fully Paid,"28,010.19",08/03/2023
York and Scarborough Teaching Hospitals NHS Foundation Trust BU,1410200864,6720262,STANDARD,15/12/2022,"28,010.19",17/12/2022,RCBNFAIRBURNC1,TRUST,The Leeds Teaching Hospitals NHS Trust,FINANCE,LS9 7TF,0.00,16,TAX,RCBN400114720,ZERO,,,,,TOTAL TRUST,BALANCE SHEET,Balance Sheet,Finance Balance Sheet,Debtors,119417,Provider Consolidated invoices ,158000,Other Debtors < One Year,1505,Leeds Teaching Hosp Trust,1000,Default Value,Accounted,Fully Paid,"28,010.19",08/03/2023
York and Scarborough Teaching Hospitals NHS Foundation Trust BU,1410200867,6723750,STANDARD,15/12/2022,"28,841.13",17/12/2022,RCBNFAIRBURNC1,TRUST,The Leeds Teaching Hospitals NHS Trust,FINANCE,LS9 7TF,51.90,1,ITEM,Provision of Laboratory Testing Services - As And When Required - July 22 to March 23,,,,,,TOTAL TRUST,BALANCE SHEET,Balance Sheet,Finance Balance Sheet,Debtors,119417,Provider Consolidated invoices ,158000,Other Debtors < One Year,1505,Leeds Teaching Hosp Trust,1000,Default Value,Accounted,Fully Paid,"28,841.13",08/03/2023
York and Scarborough Teaching Hospitals NHS Foundation Trust BU,1410200867,6723750,STANDARD,15/12/2022,"28,841.13",17/12/2022,RCBNFAIRBURNC1,TRUST,The Leeds Teaching Hospitals NHS Trust,FINANCE,LS9 7TF,-51.90,1,ITEM,Provision of Laboratory Testing Services - As And When Required - July 22 to March 23,,,,,,TOTAL TRUST,BALANCE SHEET,Balance Sheet,Finance Balance Sheet,Debtors,119417,Provider Consolidated invoices ,158000,Other Debtors < One Year,1505,Leeds Teaching Hosp Trust,1000,Default Value,Accounted,Fully Paid,"28,841.13",08/03/2023
York and Scarborough Teaching Hospitals NHS Foundation Trust BU,1410200867,6723750,STANDARD,15/12/2022,"28,841.13",17/12/2022,RCBNFAIRBURNC1,TRUST,The Leeds Teaching Hospitals NHS Trust,FINANCE,LS9 7TF,690.88,2,ITEM,Provision of Laboratory Testing Services - As And When Required - July 22 to March 23,,,,,,TOTAL TRUST,BALANCE SHEET,Balance Sheet,Finance Balance Sheet,Debtors,119417,Provider Consolidated invoices ,158000,Other Debtors < One Year,1505,Leeds Teaching Hosp Trust,1000,Default Value,Accounted,Fully Paid,"28,841.13",08/03/2023
York and Scarborough Teaching Hospitals NHS Foundation Trust BU,1410200867,6723750,STANDARD,15/12/2022,"28,841.13",17/12/2022,RCBNFAIRBURNC1,TRUST,The Leeds Teaching Hospitals NHS Trust,FINANCE,LS9 7TF,-690.88,2,ITEM,Provision of Laboratory Testing Services - As And When Required - July 22 to March 23,,,,,,TOTAL TRUST,BALANCE SHEET,Balance Sheet,Finance Balance Sheet,Debtors,119417,Provider Consolidated invoices ,158000,Other Debtors < One Year,1505,Leeds Teaching Hosp Trust,1000,Default Value,Accounted,Fully Paid,"28,841.13",08/03/2023
York and Scarborough Teaching Hospitals NHS Foundation Trust BU,1410200867,6723750,STANDARD,15/12/2022,"28,841.13",17/12/2022,RCBNFAIRBURNC1,TRUST,The Leeds Teaching Hospitals NHS Trust,FINANCE,LS9 7TF,"1,401.30",3,ITEM,Provision of Laboratory Testing Services - As And When Required - July 22 to March 23,,,,,,TOTAL TRUST,BALANCE SHEET,Balance Sheet,Finance Balance Sheet,Debtors,119417,Provider Consolidated invoices ,158000,Other Debtors < One Year,1505,Leeds Teaching Hosp Trust,1000,Default Value,Accounted,Fully Paid,"28,841.13",08/03/2023
York and Scarborough Teaching Hospitals NHS Foundation Trust BU,1410200867,6723750,STANDARD,15/12/2022,"28,841.13",17/12/2022,RCBNFAIRBURNC1,TRUST,The Leeds Teaching Hospitals NHS Trust,FINANCE,LS9 7TF,"-1,401.30",3,ITEM,Provision of Laboratory Testing Services - As And When Required - July 22 to March 23,,,,,,TOTAL TRUST,BALANCE SHEET,Balance Sheet,Finance Balance Sheet,Debtors,119417,Provider Consolidated invoices ,158000,Other Debtors < One Year,1505,Leeds Teaching Hosp Trust,1000,Default Value,Accounted,Fully Paid,"28,841.13",08/03/2023
York and Scarborough Teaching Hospitals NHS Foundation Trust BU,1410200867,6723750,STANDARD,15/12/2022,"28,841.13",17/12/2022,RCBNFAIRBURNC1,TRUST,The Leeds Teaching Hospitals NHS Trust,FINANCE,LS9 7TF,306.24,4,ITEM,Provision of Laboratory Testing Services - As And When Required - July 22 to March 23,,,,,,TOTAL TRUST,BALANCE SHEET,Balance Sheet,Finance Balance Sheet,Debtors,119417,Provider Consolidated invoices ,158000,Other Debtors < One Year,1505,Leeds Teaching Hosp Trust,1000,Default Value,Accounted,Fully Paid,"28,841.13",08/03/2023
York and Scarborough Teaching Hospitals NHS Foundation Trust BU,1410200867,6723750,STANDARD,15/12/2022,"28,841.13",17/12/2022,RCBNFAIRBURNC1,TRUST,The Leeds Teaching Hospitals NHS Trust,FINANCE,LS9 7TF,-306.24,4,ITEM,Provision of Laboratory Testing Services - As And When Required - July 22 to March 23,,,,,,TOTAL TRUST,BALANCE SHEET,Balance Sheet,Finance Balance Sheet,Debtors,119417,Provider Consolidated invoices ,158000,Other Debtors < One Year,1505,Leeds Teaching Hosp Trust,1000,Default Value,Accounted,Fully Paid,"28,841.13",08/03/2023
York and Scarborough Teaching Hospitals NHS Foundation Trust BU,1410200867,6723750,STANDARD,15/12/2022,"28,841.13",17/12/2022,RCBNFAIRBURNC1,TRUST,The Leeds Teaching Hospitals NHS Trust,FINANCE,LS9 7TF,86.35,5,ITEM,Provision of Laboratory Testing Services - As And When Required - July 22 to March 23,,,,,,TOTAL TRUST,BALANCE SHEET,Balance Sheet,Finance Balance Sheet,Debtors,119417,Provider Consolidated invoices ,158000,Other Debtors < One Year,1505,Leeds Teaching Hosp Trust,1000,Default Value,Accounted,Fully Paid,"28,841.13",08/03/2023
York and Scarborough Teaching Hospitals NHS Foundation Trust BU,1410200867,6723750,STANDARD,15/12/2022,"28,841.13",17/12/2022,RCBNFAIRBURNC1,TRUST,The Leeds Teaching Hospitals NHS Trust,FINANCE,LS9 7TF,-86.35,5,ITEM,Provision of Laboratory Testing Services - As And When Required - July 22 to March 23,,,,,,TOTAL TRUST,BALANCE SHEET,Balance Sheet,Finance Balance Sheet,Debtors,119417,Provider Consolidated invoices ,158000,Other Debtors < One Year,1505,Leeds Teaching Hosp Trust,1000,Default Value,Accounted,Fully Paid,"28,841.13",08/03/2023
York and Scarborough Teaching Hospitals NHS Foundation Trust BU,1410200867,6723750,STANDARD,15/12/2022,"28,841.13",17/12/2022,RCBNFAIRBURNC1,TRUST,The Leeds Teaching Hospitals NHS Trust,FINANCE,LS9 7TF,555.17,6,ITEM,Provision of Laboratory Testing Services - As And When Required - July 22 to March 23,,,,,,TOTAL TRUST,BALANCE SHEET,Balance Sheet,Finance Balance Sheet,Debtors,119417,Provider Consolidated invoices ,158000,Other Debtors < One Year,1505,Leeds Teaching Hosp Trust,1000,Default Value,Accounted,Fully Paid,"28,841.13",08/03/2023
York and Scarborough Teaching Hospitals NHS Foundation Trust BU,1410200867,6723750,STANDARD,15/12/2022,"28,841.13",17/12/2022,RCBNFAIRBURNC1,TRUST,The Leeds Teaching Hospitals NHS Trust,FINANCE,LS9 7TF,-555.17,6,ITEM,Provision of Laboratory Testing Services - As And When Required - July 22 to March 23,,,,,,TOTAL TRUST,BALANCE SHEET,Balance Sheet,Finance Balance Sheet,Debtors,119417,Provider Consolidated invoices ,158000,Other Debtors < One Year,1505,Leeds Teaching Hosp Trust,1000,Default Value,Accounted,Fully Paid,"28,841.13",08/03/2023
York and Scarborough Teaching Hospitals NHS Foundation Trust BU,1410200867,6723750,STANDARD,15/12/2022,"28,841.13",17/12/2022,RCBNFAIRBURNC1,TRUST,The Leeds Teaching Hospitals NHS Trust,FINANCE,LS9 7TF,690.80,7,ITEM,Provision of Laboratory Testing Services - As And When Required - July 22 to March 23,,,,,,TOTAL TRUST,BALANCE SHEET,Balance Sheet,Finance Balance Sheet,Debtors,119417,Provider Consolidated invoices ,158000,Other Debtors < One Year,1505,Leeds Teaching Hosp Trust,1000,Default Value,Accounted,Fully Paid,"28,841.13",08/03/2023
York and Scarborough Teaching Hospitals NHS Foundation Trust BU,1410200867,6723750,STANDARD,15/12/2022,"28,841.13",17/12/2022,RCBNFAIRBURNC1,TRUST,The Leeds Teaching Hospitals NHS Trust,FINANCE,LS9 7TF,-690.80,7,ITEM,Provision of Laboratory Testing Services - As And When Required - July 22 to March 23,,,,,,TOTAL TRUST,BALANCE SHEET,Balance Sheet,Finance Balance Sheet,Debtors,119417,Provider Consolidated invoices ,158000,Other Debtors < One Year,1505,Leeds Teaching Hosp Trust,1000,Default Value,Accounted,Fully Paid,"28,841.13",08/03/2023
York and Scarborough Teaching Hospitals NHS Foundation Trust BU,1410200867,6723750,STANDARD,15/12/2022,"28,841.13",17/12/2022,RCBNFAIRBURNC1,TRUST,The Leeds Teaching Hospitals NHS Trust,FINANCE,LS9 7TF,259.50,8,ITEM,Provision of Laboratory Testing Services - As And When Required - July 22 to March 23,,,,,,TOTAL TRUST,BALANCE SHEET,Balance Sheet,Finance Balance Sheet,Debtors,119417,Provider Consolidated invoices ,158000,Other Debtors < One Year,1505,Leeds Teaching Hosp Trust,1000,Default Value,Accounted,Fully Paid,"28,841.13",08/03/2023
York and Scarborough Teaching Hospitals NHS Foundation Trust BU,1410200867,6723750,STANDARD,15/12/2022,"28,841.13",17/12/2022,RCBNFAIRBURNC1,TRUST,The Leeds Teaching Hospitals NHS Trust,FINANCE,LS9 7TF,-259.50,8,ITEM,Provision of Laboratory Testing Services - As And When Required - July 22 to March 23,,,,,,TOTAL TRUST,BALANCE SHEET,Balance Sheet,Finance Balance Sheet,Debtors,119417,Provider Consolidated invoices ,158000,Other Debtors < One Year,1505,Leeds Teaching Hosp Trust,1000,Default Value,Accounted,Fully Paid,"28,841.13",08/03/2023
York and Scarborough Teaching Hospitals NHS Foundation Trust BU,1410200867,6723750,STANDARD,15/12/2022,"28,841.13",17/12/2022,RCBNFAIRBURNC1,TRUST,The Leeds Teaching Hospitals NHS Trust,FINANCE,LS9 7TF,280.32,9,ITEM,Provision of Laboratory Testing Services - As And When Required - July 22 to March 23,,,,,,TOTAL TRUST,BALANCE SHEET,Balance Sheet,Finance Balance Sheet,Debtors,119417,Provider Consolidated invoices ,158000,Other Debtors < One Year,1505,Leeds Teaching Hosp Trust,1000,Default Value,Accounted,Fully Paid,"28,841.13",08/03/2023
York and Scarborough Teaching Hospitals NHS Foundation Trust BU,1410200867,6723750,STANDARD,15/12/2022,"28,841.13",17/12/2022,RCBNFAIRBURNC1,TRUST,The Leeds Teaching Hospitals NHS Trust,FINANCE,LS9 7TF,-280.32,9,ITEM,Provision of Laboratory Testing Services - As And When Required - July 22 to March 23,,,,,,TOTAL TRUST,BALANCE SHEET,Balance Sheet,Finance Balance Sheet,Debtors,119417,Provider Consolidated invoices ,158000,Other Debtors < One Year,1505,Leeds Teaching Hosp Trust,1000,Default Value,Accounted,Fully Paid,"28,841.13",08/03/2023
York and Scarborough Teaching Hospitals NHS Foundation Trust BU,1410200867,6723750,STANDARD,15/12/2022,"28,841.13",17/12/2022,RCBNFAIRBURNC1,TRUST,The Leeds Teaching Hospitals NHS Trust,FINANCE,LS9 7TF,97.02,10,ITEM,Provision of Laboratory Testing Services - As And When Required - July 22 to March 23,,,,,,TOTAL TRUST,BALANCE SHEET,Balance Sheet,Finance Balance Sheet,Debtors,119417,Provider Consolidated invoices ,158000,Other Debtors < One Year,1505,Leeds Teaching Hosp Trust,1000,Default Value,Accounted,Fully Paid,"28,841.13",08/03/2023
York and Scarborough Teaching Hospitals NHS Foundation Trust BU,1410200867,6723750,STANDARD,15/12/2022,"28,841.13",17/12/2022,RCBNFAIRBURNC1,TRUST,The Leeds Teaching Hospitals NHS Trust,FINANCE,LS9 7TF,-97.02,10,ITEM,Provision of Laboratory Testing Services - As And When Required - July 22 to March 23,,,,,,TOTAL TRUST,BALANCE SHEET,Balance Sheet,Finance Balance Sheet,Debtors,119417,Provider Consolidated invoices ,158000,Other Debtors < One Year,1505,Leeds Teaching Hosp Trust,1000,Default Value,Accounted,Fully Paid,"28,841.13",08/03/2023
York and Scarborough Teaching Hospitals NHS Foundation Trust BU,1410200867,6723750,STANDARD,15/12/2022,"28,841.13",17/12/2022,RCBNFAIRBURNC1,TRUST,The Leeds Teaching Hospitals NHS Trust,FINANCE,LS9 7TF,46.68,11,ITEM,Provision of Laboratory Testing Services - As And When Required - July 22 to March 23,,,,,,TOTAL TRUST,BALANCE SHEET,Balance Sheet,Finance Balance Sheet,Debtors,119417,Provider Consolidated invoices ,158000,Other Debtors < One Year,1505,Leeds Teaching Hosp Trust,1000,Default Value,Accounted,Fully Paid,"28,841.13",08/03/2023
York and Scarborough Teaching Hospitals NHS Foundation Trust BU,1410200867,6723750,STANDARD,15/12/2022,"28,841.13",17/12/2022,RCBNFAIRBURNC1,TRUST,The Leeds Teaching Hospitals NHS Trust,FINANCE,LS9 7TF,-46.68,11,ITEM,Provision of Laboratory Testing Services - As And When Required - July 22 to March 23,,,,,,TOTAL TRUST,BALANCE SHEET,Balance Sheet,Finance Balance Sheet,Debtors,119417,Provider Consolidated invoices ,158000,Other Debtors < One Year,1505,Leeds Teaching Hosp Trust,1000,Default Value,Accounted,Fully Paid,"28,841.13",08/03/2023
York and Scarborough Teaching Hospitals NHS Foundation Trust BU,1410200867,6723750,STANDARD,15/12/2022,"28,841.13",17/12/2022,RCBNFAIRBURNC1,TRUST,The Leeds Teaching Hospitals NHS Trust,FINANCE,LS9 7TF,39.99,12,ITEM,Provision of Laboratory Testing Services - As And When Required - July 22 to March 23,,,,,,TOTAL TRUST,BALANCE SHEET,Balance Sheet,Finance Balance Sheet,Debtors,119417,Provider Consolidated invoices ,158000,Other Debtors < One Year,1505,Leeds Teaching Hosp Trust,1000,Default Value,Accounted,Fully Paid,"28,841.13",08/03/2023
York and Scarborough Teaching Hospitals NHS Foundation Trust BU,1410200867,6723750,STANDARD,15/12/2022,"28,841.13",17/12/2022,RCBNFAIRBURNC1,TRUST,The Leeds Teaching Hospitals NHS Trust,FINANCE,LS9 7TF,-39.99,12,ITEM,Provision of Laboratory Testing Services - As And When Required - July 22 to March 23,,,,,,TOTAL TRUST,BALANCE SHEET,Balance Sheet,Finance Balance Sheet,Debtors,119417,Provider Consolidated invoices ,158000,Other Debtors < One Year,1505,Leeds Teaching Hosp Trust,1000,Default Value,Accounted,Fully Paid,"28,841.13",08/03/2023
York and Scarborough Teaching Hospitals NHS Foundation Trust BU,1410200867,6723750,STANDARD,15/12/2022,"28,841.13",17/12/2022,RCBNFAIRBURNC1,TRUST,The Leeds Teaching Hospitals NHS Trust,FINANCE,LS9 7TF,542.80,13,ITEM,Provision of Laboratory Testing Services - As And When Required - July 22 to March 23,,,,,,TOTAL TRUST,BALANCE SHEET,Balance Sheet,Finance Balance Sheet,Debtors,119417,Provider Consolidated invoices ,158000,Other Debtors < One Year,1505,Leeds Teaching Hosp Trust,1000,Default Value,Accounted,Fully Paid,"28,841.13",08/03/2023
York and Scarborough Teaching Hospitals NHS Foundation Trust BU,1410200867,6723750,STANDARD,15/12/2022,"28,841.13",17/12/2022,RCBNFAIRBURNC1,TRUST,The Leeds Teaching Hospitals NHS Trust,FINANCE,LS9 7TF,-542.80,13,ITEM,Provision of Laboratory Testing Services - As And When Required - July 22 to March 23,,,,,,TOTAL TRUST,BALANCE SHEET,Balance Sheet,Finance Balance Sheet,Debtors,119417,Provider Consolidated invoices ,158000,Other Debtors < One Year,1505,Leeds Teaching Hosp Trust,1000,Default Value,Accounted,Fully Paid,"28,841.13",08/03/2023
York and Scarborough Teaching Hospitals NHS Foundation Trust BU,1410200867,6723750,STANDARD,15/12/2022,"28,841.13",17/12/2022,RCBNFAIRBURNC1,TRUST,The Leeds Teaching Hospitals NHS Trust,FINANCE,LS9 7TF,0.00,14,TAX,NEP VAT REGIME - VAT TAX,XMT,,,,,TOTAL TRUST,BALANCE SHEET,Balance Sheet,Finance Balance Sheet,Debtors,119417,Provider Consolidated invoices ,158000,Other Debtors < One Year,1505,Leeds Teaching Hosp Trust,1000,Default Value,Accounted,Fully Paid,"28,841.13",08/03/2023
York and Scarborough Teaching Hospitals NHS Foundation Trust BU,1410200867,6723750,STANDARD,15/12/2022,"28,841.13",17/12/2022,RCBNFAIRBURNC1,TRUST,The Leeds Teaching Hospitals NHS Trust,FINANCE,LS9 7TF,0.00,14,TAX,NEP VAT REGIME - VAT TAX,XMT,,,,,TOTAL TRUST,TOTAL TRUST,BALANCE SHEET,FINANCE - BALANCE SHEET,DEBTORS,119405,Dr Vat Debtor,156000,Vat Debtor < One Year,1000,Default Value,1000,Default Value,Accounted,Fully Paid,"28,841.13",08/03/2023
York and Scarborough Teaching Hospitals NHS Foundation Trust BU,1410200867,6723750,STANDARD,15/12/2022,"28,841.13",17/12/2022,RCBNFAIRBURNC1,TRUST,The Leeds Teaching Hospitals NHS Trust,FINANCE,LS9 7TF,0.00,14,TAX,NEP VAT REGIME - VAT TAX,XMT,,,,,TOTAL TRUST,BALANCE SHEET,Balance Sheet,Finance Balance Sheet,Debtors,119417,Provider Consolidated invoices ,158000,Other Debtors < One Year,1505,Leeds Teaching Hosp Trust,1000,Default Value,Accounted,Fully Paid,"28,841.13",08/03/2023
